Workbook

Sheet Menu
E3: Instruction

Sheet Input Sheet
A1: Relative Humidity | B1: Air Temp | C1: Mean Radiant | D1: Air Speed | E1: Metabolic Rate | F1: clothing Rate
A2: 95 | B2: 19.8 | C2: 0 | D2: 0 | E2: 1 | F2: 0.5
A3: 84 | B3: 20.6 | C3: 0 | D3: 0
A4: 87 | B4: 20.4 | C4: 0 | D4: 0
A5: 82 | B5: 20.3 | C5: 0 | D5: 0
A6: 83 | B6: 20.2 | C6: 0 | D6: 0
A7: 84 | B7: 20.3 | C7: 0 | D7: 0
A8: 80 | B8: 21.2 | C8: 0 | D8: 0
A9: 75 | B9: 22.4 | C9: 0 | D9: 0
A10: 70 | B10: 23.6 | C10: 0 | D10: 0
A11: 67 | B11: 24.7 | C11: 0 | D11: 0
A12: 61 | B12: 25.5 | C12: 0 | D12: 0
A13: 60 | B13: 26.2 | C13: 0 | D13: 0
A14: 59 | B14: 26.6 | C14: 0 | D14: 0
A15: 58 | B15: 26.9 | C15: 0 | D15: 0
A16: 59 | B16: 27 | C16: 0 | D16: 0
A17: 62 | B17: 26.8 | C17: 0 | D17: 0
A18: 75 | B18: 26.3 | C18: 0 | D18: 0
A19: 83 | B19: 25.5 | C19: 0 | D19: 0
A20: 88 | B20: 24.5 | C20: 0 | D20: 0
A21: 86 | B21: 24.2 | C21: 0 | D21: 0
A22: 90 | B22: 23.4 | C22: 0 | D22: 0
A23: 86 | B23: 22.9 | C23: 0 | D23: 0
A24: 86 | B24: 22.4 | C24: 0 | D24: 0
A25: 90 | B25: 21.8 | C25: 0 | D25: 0
A26: 87 | B26: 21.2 | C26: 0 | D26: 0
A27: 91 | B27: 20 | C27: 0 | D27: 0
A28: 88 | B28: 20.3 | C28: 0 | D28: 0
A29: 92 | B29: 20.2 | C29: 0 | D29: 0
A30: 95 | B30: 19.9 | C30: 0 | D30: 0
A31: 96 | B31: 20 | C31: 0 | D31: 0
A32: 93 | B32: 21 | C32: 0 | D32: 0
A33: 86 | B33: 22.2 | C33: 0 | D33: 0
A34: 86 | B34: 23.3 | C34: 0 | D34: 0
A35: 73 | B35: 24.1 | C35: 0 | D35: 0
A36: 71 | B36: 24.8 | C36: 0 | D36: 0
A37: 71 | B37: 25.4 | C37: 0 | D37: 0
A38: 68 | B38: 26 | C38: 0 | D38: 0
A39: 67 | B39: 26.3 | C39: 0 | D39: 0
A40: 69 | B40: 26.3 | C40: 0 | D40: 0
A41: 70 | B41: 26.1 | C41: 0 | D41: 0
A42: 82 | B42: 25.6 | C42: 0 | D42: 0
A43: 86 | B43: 25 | C43: 0 | D43: 0
A44: 86 | B44: 24.2 | C44: 0 | D44: 0
A45: 86 | B45: 23.4 | C45: 0 | D45: 0
A46: 93 | B46: 22.9 | C46: 0 | D46: 0
A47: 97 | B47: 22.2 | C47: 0 | D47: 0
A48: 97 | B48: 21.2 | C48: 0 | D48: 0
A49: 99 | B49: 20.8 | C49: 0 | D49: 0
A50: 99 | B50: 20.4 | C50: 0 | D50: 0
A51: 99 | B51: 19.9 | C51: 0 | D51: 0
A52: 99 | B52: 19.7 | C52: 0 | D52: 0
A53: 99 | B53: 19.4 | C53: 0 | D53: 0
A54: 99 | B54: 19.2 | C54: 0 | D54: 0
A55: 99 | B55: 19.3 | C55: 0 | D55: 0
A56: 98 | B56: 20.6 | C56: 0 | D56: 0
A57: 94 | B57: 22 | C57: 0 | D57: 0
A58: 83 | B58: 23.6 | C58: 0 | D58: 0
A59: 77 | B59: 24.8 | C59: 0 | D59: 0
A60: 69 | B60: 25.9 | C60: 0 | D60: 0
A61: 65 | B61: 26.8 | C61: 0 | D61: 0
A62: 63 | B62: 27.4 | C62: 0 | D62: 0
A63: 63 | B63: 27.7 | C63: 0 | D63: 0
A64: 62 | B64: 27.8 | C64: 0 | D64: 0
A65: 59 | B65: 27.5 | C65: 0 | D65: 0
A66: 73 | B66: 26.9 | C66: 0 | D66: 0
A67: 64 | B67: 26.1 | C67: 0 | D67: 0
A68: 69 | B68: 25.1 | C68: 0 | D68: 0
A69: 74 | B69: 24.1 | C69: 0 | D69: 0
A70: 79 | B70: 23 | C70: 0 | D70: 0
A71: 82 | B71: 21.9 | C71: 0 | D71: 0
A72: 86 | B72: 20.8 | C72: 0 | D72: 0
A73: 89 | B73: 19.7 | C73: 0 | D73: 0
A74: 93 | B74: 18.7 | C74: 0 | D74: 0
A75: 95 | B75: 17.7 | C75: 0 | D75: 0
A76: 94 | B76: 17.1 | C76: 0 | D76: 0
A77: 95 | B77: 16.5 | C77: 0 | D77: 0
A78: 92 | B78: 16.1 | C78: 0 | D78: 0
A79: 92 | B79: 16.3 | C79: 0 | D79: 0
A80: 86 | B80: 18.4 | C80: 0 | D80: 0
A81: 79 | B81: 20.6 | C81: 0 | D81: 0
A82: 68 | B82: 22.8 | C82: 0 | D82: 0
A83: 64 | B83: 24.8 | C83: 0 | D83: 0
A84: 59 | B84: 26.5 | C84: 0 | D84: 0
A85: 54 | B85: 27.9 | C85: 0 | D85: 0
A86: 52 | B86: 28.9 | C86: 0 | D86: 0
A87: 52 | B87: 29.5 | C87: 0 | D87: 0
A88: 50 | B88: 29.7 | C88: 0 | D88: 0
A89: 50 | B89: 29.4 | C89: 0 | D89: 0
A90: 51 | B90: 28.5 | C90: 0 | D90: 0
A91: 58 | B91: 27.1 | C91: 0 | D91: 0
A92: 67 | B92: 25.4 | C92: 0 | D92: 0
A93: 76 | B93: 24.1 | C93: 0 | D93: 0
A94: 81 | B94: 22.9 | C94: 0 | D94: 0
A95: 84 | B95: 21.6 | C95: 0 | D95: 0
A96: 86 | B96: 20.3 | C96: 0 | D96: 0
A97: 93 | B97: 19 | C97: 0 | D97: 0
A98: 88 | B98: 18.2 | C98: 0 | D98: 0
A99: 89 | B99: 17.2 | C99: 0 | D99: 0
A100: 91 | B100: 16.7 | C100: 0 | D100: 0
A101: 91 | B101: 16.2 | C101: 0 | D101: 0
A102: 97 | B102: 15.9 | C102: 0 | D102: 0
A103: 98 | B103: 16 | C103: 0 | D103: 0
A104: 89 | B104: 18.1 | C104: 0 | D104: 0
A105: 81 | B105: 20.3 | C105: 0 | D105: 0
A106: 69 | B106: 22.6 | C106: 0 | D106: 0
A107: 61 | B107: 24.6 | C107: 0 | D107: 0
A108: 56 | B108: 26.4 | C108: 0 | D108: 0
A109: 53 | B109: 27.8 | C109: 0 | D109: 0
A110: 48 | B110: 28.8 | C110: 0 | D110: 0
A111: 48 | B111: 29.4 | C111: 0 | D111: 0
A112: 46 | B112: 29.6 | C112: 0 | D112: 0
A113: 48 | B113: 29.3 | C113: 0 | D113: 0
A114: 48 | B114: 28.4 | C114: 0 | D114: 0
A115: 50 | B115: 26.9 | C115: 0 | D115: 0
A116: 54 | B116: 25.3 | C116: 0 | D116: 0
A117: 63 | B117: 24 | C117: 0 | D117: 0
A118: 68 | B118: 22.7 | C118: 0 | D118: 0
A119: 71 | B119: 21.4 | C119: 0 | D119: 0
A120: 73 | B120: 20.1 | C120: 0 | D120: 0
A121: 77 | B121: 18.9 | C121: 0 | D121: 0
A122: 79 | B122: 18.1 | C122: 0 | D122: 0
A123: 79 | B123: 17.1 | C123: 0 | D123: 0
A124: 79 | B124: 16.6 | C124: 0 | D124: 0
A125: 81 | B125: 16.1 | C125: 0 | D125: 0
A126: 82 | B126: 15.7 | C126: 0 | D126: 0
A127: 82 | B127: 15.8 | C127: 0 | D127: 0
A128: 76 | B128: 17.6 | C128: 0 | D128: 0
A129: 70 | B129: 19.6 | C129: 0 | D129: 0
A130: 64 | B130: 21.6 | C130: 0 | D130: 0
A131: 59 | B131: 23.4 | C131: 0 | D131: 0
A132: 55 | B132: 25 | C132: 0 | D132: 0
A133: 52 | B133: 26.2 | C133: 0 | D133: 0
A134: 50 | B134: 27.1 | C134: 0 | D134: 0
A135: 48 | B135: 27.6 | C135: 0 | D135: 0
A136: 48 | B136: 27.7 | C136: 0 | D136: 0
A137: 49 | B137: 27.4 | C137: 0 | D137: 0
A138: 51 | B138: 26.6 | C138: 0 | D138: 0
A139: 54 | B139: 25.2 | C139: 0 | D139: 0
A140: 58 | B140: 23.7 | C140: 0 | D140: 0
A141: 64 | B141: 22.5 | C141: 0 | D141: 0
A142: 68 | B142: 21.3 | C142: 0 | D142: 0
A143: 72 | B143: 20.1 | C143: 0 | D143: 0
A144: 73 | B144: 19 | C144: 0 | D144: 0
A145: 75 | B145: 17.8 | C145: 0 | D145: 0
A146: 77 | B146: 17.2 | C146: 0 | D146: 0
A147: 81 | B147: 16.6 | C147: 0 | D147: 0
A148: 83 | B148: 16.3 | C148: 0 | D148: 0
A149: 81 | B149: 16 | C149: 0 | D149: 0
A150: 87 | B150: 15.7 | C150: 0 | D150: 0
A151: 86 | B151: 15.8 | C151: 0 | D151: 0
A152: 82 | B152: 17.7 | C152: 0 | D152: 0
A153: 75 | B153: 19.7 | C153: 0 | D153: 0
A154: 67 | B154: 21.7 | C154: 0 | D154: 0
A155: 62 | B155: 23.5 | C155: 0 | D155: 0
A156: 60 | B156: 25.1 | C156: 0 | D156: 0
A157: 58 | B157: 26.4 | C157: 0 | D157: 0
A158: 58 | B158: 27.3 | C158: 0 | D158: 0
A159: 54 | B159: 27.9 | C159: 0 | D159: 0
A160: 55 | B160: 28.2 | C160: 0 | D160: 0
A161: 55 | B161: 28 | C161: 0 | D161: 0
A162: 58 | B162: 27.2 | C162: 0 | D162: 0
A163: 66 | B163: 25.9 | C163: 0 | D163: 0
A164: 75 | B164: 24.4 | C164: 0 | D164: 0
A165: 82 | B165: 23.7 | C165: 0 | D165: 0
A166: 83 | B166: 22.9 | C166: 0 | D166: 0
A167: 85 | B167: 22.1 | C167: 0 | D167: 0
A168: 88 | B168: 21.4 | C168: 0 | D168: 0
A169: 90 | B169: 20.6 | C169: 0 | D169: 0
A170: 86 | B170: 20.2 | C170: 0 | D170: 0
A171: 88 | B171: 19.8 | C171: 0 | D171: 0
A172: 88 | B172: 19.6 | C172: 0 | D172: 0
A173: 88 | B173: 19.4 | C173: 0 | D173: 0
A174: 93 | B174: 19.3 | C174: 0 | D174: 0
A175: 99 | B175: 19.1 | C175: 0 | D175: 0
A176: 98 | B176: 20 | C176: 0 | D176: 0
A177: 98 | B177: 20.5 | C177: 0 | D177: 0
A178: 98 | B178: 20.5 | C178: 0 | D178: 0
A179: 92 | B179: 21.1 | C179: 0 | D179: 0
A180: 88 | B180: 21.8 | C180: 0 | D180: 0
A181: 85 | B181: 22.2 | C181: 0 | D181: 0
A182: 85 | B182: 22.6 | C182: 0 | D182: 0
A183: 90 | B183: 22.7 | C183: 0 | D183: 0
A184: 87 | B184: 22.8 | C184: 0 | D184: 0
A185: 87 | B185: 22.6 | C185: 0 | D185: 0
A186: 88 | B186: 22.3 | C186: 0 | D186: 0
A187: 93 | B187: 21.5 | C187: 0 | D187: 0
A188: 88 | B188: 21.6 | C188: 0 | D188: 0
A189: 90 | B189: 21.1 | C189: 0 | D189: 0
A190: 95 | B190: 20.6 | C190: 0 | D190: 0
A191: 99 | B191: 19.7 | C191: 0 | D191: 0
A192: 99 | B192: 17.6 | C192: 0 | D192: 0
A193: 99 | B193: 18.2 | C193: 0 | D193: 0
A194: 99 | B194: 17.5 | C194: 0 | D194: 0
A195: 98 | B195: 18 | C195: 0 | D195: 0
A196: 98 | B196: 17.9 | C196: 0 | D196: 0
A197: 99 | B197: 17.4 | C197: 0 | D197: 0
A198: 99 | B198: 17 | C198: 0 | D198: 0
A199: 99 | B199: 17.6 | C199: 0 | D199: 0
A200: 99 | B200: 18.4 | C200: 0 | D200: 0
... 8561 more rows

Sheet _xltb_storage_ (hidden)
A1: XL Toolbox Settings
B2: export_preset | C2: <?xml version="1.0" encoding="utf-16"?> <Preset xmlns:xsd="http://www.w3.org/2001/XMLSchema" xmlns:xsi="http://www.w3.org/2001/XMLSchema-instance"> <Name>Png, 300 dpi, RGB, Transparent canvas</Name> <Dpi>300</Dpi> <FileType>Png</FileType> <ColorSpace>Rgb</ColorSpace> <Transparency>TransparentCanvas</Transparency> <UseColorProfile>false</UseColorProfile> <ColorProfile>sRGB Color Space Profile</ColorProfile> </Preset>
B3: export_path | C3: C:\Users\Théo.L\Documents\Research\Attia_Theo_article\02_Photos\[10a]Antananarivo_Model_Comparison.png

Sheet Chart
C2: ASHRAE 2010 Sta
H5: 439 | I5: =H5/8760 -> 0.05011415525
A10: 2501 | B10: 0.2853394181 | C10: ComfortZone
A11: 2 | B11: <0.5% | C11: Humidification
A12: 6262 | B12: 0.7144324016 | C12: Dehumidification
A18: 4830 | B18: 0.5506783719 | C18: ComfortZone
A19: 1963 | B19: 0.2238057234 | C19: Active Cooling
A20: 723 | B20: 0.08243073766 | C20: Ventilation
A21: 1252 | B21: 0.1427431308 | C21: Passive Heating
A22: 3 | B22: <0.5% | C22: Active Heating
M8767: 2629

Sheet Data (hidden)
E1: tana | G1: percent | H1: toama
A2: =MOD(1+A1,100) -> 1 | B2: 1 | D2: 95 | E2: 19.8 | G2: 98 | H2: 26.8
A3: 2 | B3: =IF(A3=99,B2+0.5,B2) -> 1 | D3: 84 | E3: 20.6 | G3: 92 | H3: 28
A4: 3 | B4: 1 | D4: 87 | E4: 20.4 | G4: 91 | H4: 27.7
A5: 4 | B5: 1 | D5: 82 | E5: 20.3 | G5: 90 | H5: 27.9
A6: 5 | B6: 1 | D6: 83 | E6: 20.2 | G6: 89 | H6: 28
A7: 6 | B7: 1 | D7: 84 | E7: 20.3 | G7: 86 | H7: 28.2
A8: 7 | B8: 1 | D8: 80 | E8: 21.2 | G8: 88 | H8: 28.2
A9: 8 | B9: 1 | D9: 75 | E9: 22.4 | G9: 85 | H9: 28.6
A10: 9 | B10: 1 | D10: 70 | E10: 23.6 | G10: 79 | H10: 28.9
A11: 10 | B11: 1 | D11: 67 | E11: 24.7 | G11: 85 | H11: 29
A12: 11 | B12: 1 | D12: 61 | E12: 25.5 | G12: 88 | H12: 29
A13: 12 | B13: 1 | D13: 60 | E13: 26.2 | G13: 85 | H13: 29.4
A14: 13 | B14: 1 | D14: 59 | E14: 26.6 | G14: 76 | H14: 29.5
A15: 14 | B15: 1 | D15: 58 | E15: 26.9 | G15: 85 | H15: 29.5
A16: 15 | B16: 1 | D16: 59 | E16: 27 | G16: 85 | H16: 29.5
A17: 16 | B17: 1 | D17: 62 | E17: 26.8 | G17: 89 | H17: 29.1
A18: 17 | B18: 1 | D18: 75 | E18: 26.3 | G18: 95 | H18: 28.4
A19: 18 | B19: 1 | D19: 83 | E19: 25.5 | G19: 99 | H19: 27.3
A20: 19 | B20: 1 | D20: 88 | E20: 24.5 | G20: 99 | H20: 27.1
A21: 20 | B21: 1 | D21: 86 | E21: 24.2 | G21: 98 | H21: 27.5
A22: 21 | B22: 1 | D22: 90 | E22: 23.4 | G22: 99 | H22: 26.6
A23: 22 | B23: 1 | D23: 86 | E23: 22.9 | G23: 99 | H23: 26.7
A24: 23 | B24: 1 | D24: 86 | E24: 22.4 | G24: 91 | H24: 27.2
A25: 24 | B25: 1 | D25: 90 | E25: 21.8 | G25: 88 | H25: 27.8
A26: 25 | B26: 1 | D26: 87 | E26: 21.2 | G26: 93 | H26: 27
A27: 26 | B27: 1 | D27: 91 | E27: 20 | G27: 99 | H27: 25.5
A28: 27 | B28: 1 | D28: 88 | E28: 20.3 | G28: 94 | H28: 26.5
A29: 28 | B29: 1 | D29: 92 | E29: 20.2 | G29: 93 | H29: 27.1
A30: 29 | B30: 1 | D30: 95 | E30: 19.9 | G30: 95 | H30: 26.9
A31: 30 | B31: 1 | D31: 96 | E31: 20 | G31: 92 | H31: 27.2
A32: 31 | B32: 1 | D32: 93 | E32: 21 | G32: 95 | H32: 27.4
A33: 32 | B33: 1 | D33: 86 | E33: 22.2 | G33: 89 | H33: 27.8
A34: 33 | B34: 1 | D34: 86 | E34: 23.3 | G34: 85 | H34: 28.3
A35: 34 | B35: 1 | D35: 73 | E35: 24.1 | G35: 87 | H35: 28.7
A36: 35 | B36: 1 | D36: 71 | E36: 24.8 | G36: 87 | H36: 29
A37: 36 | B37: 1 | D37: 71 | E37: 25.4 | G37: 88 | H37: 29.2
A38: 37 | B38: 1 | D38: 68 | E38: 26 | G38: 83 | H38: 29.3
A39: 38 | B39: 1 | D39: 67 | E39: 26.3 | G39: 87 | H39: 29.3
A40: 39 | B40: 1 | D40: 69 | E40: 26.3 | G40: 89 | H40: 29.4
A41: 40 | B41: 1 | D41: 70 | E41: 26.1 | G41: 86 | H41: 29.4
A42: 41 | B42: 1 | D42: 82 | E42: 25.6 | G42: 95 | H42: 28.8
A43: 42 | B43: 1 | D43: 86 | E43: 25 | G43: 98 | H43: 28.5
A44: 43 | B44: 1 | D44: 86 | E44: 24.2 | G44: 95 | H44: 28.1
A45: 44 | B45: 1 | D45: 86 | E45: 23.4 | G45: 99 | H45: 27.4
A46: 45 | B46: 1 | D46: 93 | E46: 22.9 | G46: 97 | H46: 28.2
A47: 46 | B47: 1 | D47: 97 | E47: 22.2 | G47: 97 | H47: 28
A48: 47 | B48: 1 | D48: 97 | E48: 21.2 | G48: 99 | H48: 26.4
A49: 48 | B49: 1 | D49: 99 | E49: 20.8 | G49: 99 | H49: 25.7
A50: 49 | B50: 1 | D50: 99 | E50: 20.4 | G50: 97 | H50: 27.6
A51: 50 | B51: 1 | D51: 99 | E51: 19.9 | G51: 98 | H51: 27.3
A52: 51 | B52: 1 | D52: 99 | E52: 19.7 | G52: 99 | H52: 26.4
A53: 52 | B53: 1 | D53: 99 | E53: 19.4 | G53: 99 | H53: 25.4
A54: 53 | B54: 1 | D54: 99 | E54: 19.2 | G54: 99 | H54: 25.8
A55: 54 | B55: 1 | D55: 99 | E55: 19.3 | G55: 97 | H55: 27.3
A56: 55 | B56: 1 | D56: 98 | E56: 20.6 | G56: 97 | H56: 27.8
A57: 56 | B57: 1 | D57: 94 | E57: 22 | G57: 97 | H57: 28.2
A58: 57 | B58: 1 | D58: 83 | E58: 23.6 | G58: 97 | H58: 28.7
A59: 58 | B59: 1 | D59: 77 | E59: 24.8 | G59: 98 | H59: 28.6
A60: 59 | B60: 1 | D60: 69 | E60: 25.9 | G60: 94 | H60: 29
A61: 60 | B61: 1 | D61: 65 | E61: 26.8 | G61: 92 | H61: 29.3
A62: 61 | B62: 1 | D62: 63 | E62: 27.4 | G62: 88 | H62: 29.6
A63: 62 | B63: 1 | D63: 63 | E63: 27.7 | G63: 88 | H63: 29.9
A64: 63 | B64: 1 | D64: 62 | E64: 27.8 | G64: 86 | H64: 30
A65: 64 | B65: 1 | D65: 59 | E65: 27.5 | G65: 85 | H65: 29.9
A66: =MOD(1+A65,100) -> 65 | B66: 1 | D66: 73 | E66: 26.9 | G66: 88 | H66: 29.1
A67: 66 | B67: =IF(A67=99,B66+0.5,B66) -> 1 | D67: 64 | E67: 26.1 | G67: 89 | H67: 29
A68: 67 | B68: 1 | D68: 69 | E68: 25.1 | G68: 87 | H68: 29.2
A69: 68 | B69: 1 | D69: 74 | E69: 24.1 | G69: 86 | H69: 28.8
A70: 69 | B70: 1 | D70: 79 | E70: 23 | G70: 88 | H70: 28.3
A71: 70 | B71: 1 | D71: 82 | E71: 21.9 | G71: 95 | H71: 27.2
A72: 71 | B72: 1 | D72: 86 | E72: 20.8 | G72: 91 | H72: 27.6
A73: 72 | B73: 1 | D73: 89 | E73: 19.7 | G73: 92 | H73: 27
A74: 73 | B74: 1 | D74: 93 | E74: 18.7 | G74: 98 | H74: 26.1
A75: 74 | B75: 1 | D75: 95 | E75: 17.7 | G75: 98 | H75: 24.9
A76: 75 | B76: 1 | D76: 94 | E76: 17.1 | G76: 98 | H76: 24.3
A77: 76 | B77: 1 | D77: 95 | E77: 16.5 | G77: 98 | H77: 23.6
A78: 77 | B78: 1 | D78: 92 | E78: 16.1 | G78: 98 | H78: 23.1
A79: 78 | B79: 1 | D79: 92 | E79: 16.3 | G79: 97 | H79: 23.3
A80: 79 | B80: 1 | D80: 86 | E80: 18.4 | G80: 91 | H80: 24.7
A81: 80 | B81: 1 | D81: 79 | E81: 20.6 | G81: 87 | H81: 26.3
A82: 81 | B82: 1 | D82: 68 | E82: 22.8 | G82: 75 | H82: 27.9
A83: 82 | B83: 1 | D83: 64 | E83: 24.8 | G83: 73 | H83: 29.3
A84: 83 | B84: 1 | D84: 59 | E84: 26.5 | G84: 69 | H84: 30.5
A85: 84 | B85: 1 | D85: 54 | E85: 27.9 | G85: 65 | H85: 31.5
A86: 85 | B86: 1 | D86: 52 | E86: 28.9 | G86: 64 | H86: 32.2
A87: 86 | B87: 1 | D87: 52 | E87: 29.5 | G87: 64 | H87: 32.5
A88: 87 | B88: 1 | D88: 50 | E88: 29.7 | G88: 63 | H88: 32.6
A89: 88 | B89: 1 | D89: 50 | E89: 29.4 | G89: 64 | H89: 32.3
A90: 89 | B90: 1 | D90: 51 | E90: 28.5 | G90: 64 | H90: 31.5
A91: 90 | B91: 1 | D91: 58 | E91: 27.1 | G91: 72 | H91: 30.4
A92: 91 | B92: 1 | D92: 67 | E92: 25.4 | G92: 80 | H92: 29.2
A93: 92 | B93: 1 | D93: 76 | E93: 24.1 | G93: 86 | H93: 28.3
A94: 93 | B94: 1 | D94: 81 | E94: 22.9 | G94: 90 | H94: 27.5
A95: 94 | B95: 1 | D95: 84 | E95: 21.6 | G95: 91 | H95: 26.6
A96: 95 | B96: 1 | D96: 86 | E96: 20.3 | G96: 93 | H96: 25.8
A97: 96 | B97: 1 | D97: 93 | E97: 19 | G97: 99 | H97: 25
A98: 97 | B98: 1 | D98: 88 | E98: 18.2 | G98: 92 | H98: 24.7
A99: 98 | B99: 1 | D99: 89 | E99: 17.2 | G99: 92 | H99: 24.4
A100: 99 | B100: 1.5 | D100: 91 | E100: 16.7 | G100: 93 | H100: 24.3
A101: 0 | B101: 1.5 | D101: 91 | E101: 16.2 | G101: 92 | H101: 24.1
A102: 1 | B102: 1.5 | D102: 97 | E102: 15.9 | G102: 92 | H102: 24.1
A103: 2 | B103: 1.5 | D103: 98 | E103: 16 | G103: 99 | H103: 24.3
A104: 3 | B104: 1.5 | D104: 89 | E104: 18.1 | G104: 90 | H104: 25.8
A105: 4 | B105: 1.5 | D105: 81 | E105: 20.3 | G105: 83 | H105: 27.3
A106: 5 | B106: 1.5 | D106: 69 | E106: 22.6 | G106: 78 | H106: 29.1
A107: 6 | B107: 1.5 | D107: 61 | E107: 24.6 | G107: 68 | H107: 30.5
A108: 7 | B108: 1.5 | D108: 56 | E108: 26.4 | G108: 64 | H108: 31.7
A109: 8 | B109: 1.5 | D109: 53 | E109: 27.8 | G109: 65 | H109: 31.5
A110: 9 | B110: 1.5 | D110: 48 | E110: 28.8 | G110: 64 | H110: 31.2
A111: 10 | B111: 1.5 | D111: 48 | E111: 29.4 | G111: 78 | H111: 30.5
A112: 11 | B112: 1.5 | D112: 46 | E112: 29.6 | G112: 85 | H112: 30
A113: 12 | B113: 1.5 | D113: 48 | E113: 29.3 | G113: 85 | H113: 29.4
A114: 13 | B114: 1.5 | D114: 48 | E114: 28.4 | G114: 85 | H114: 28.8
A115: 14 | B115: 1.5 | D115: 50 | E115: 26.9 | G115: 88 | H115: 27.7
A116: 15 | B116: 1.5 | D116: 54 | E116: 25.3 | G116: 85 | H116: 27.6
A117: 16 | B117: 1.5 | D117: 63 | E117: 24 | G117: 88 | H117: 27.1
A118: 17 | B118: 1.5 | D118: 68 | E118: 22.7 | G118: 88 | H118: 26.6
A119: 18 | B119: 1.5 | D119: 71 | E119: 21.4 | G119: 88 | H119: 26.1
A120: 19 | B120: 1.5 | D120: 73 | E120: 20.1 | G120: 85 | H120: 25.5
A121: 20 | B121: 1.5 | D121: 77 | E121: 18.9 | G121: 88 | H121: 25.1
A122: 21 | B122: 1.5 | D122: 79 | E122: 18.1 | G122: 88 | H122: 24.5
A123: 22 | B123: 1.5 | D123: 79 | E123: 17.1 | G123: 88 | H123: 23.8
A124: 23 | B124: 1.5 | D124: 79 | E124: 16.6 | G124: 89 | H124: 23.4
A125: 24 | B125: 1.5 | D125: 81 | E125: 16.1 | G125: 89 | H125: 23
A126: 25 | B126: 1.5 | D126: 82 | E126: 15.7 | G126: 89 | H126: 22.7
A127: 26 | B127: 1.5 | D127: 82 | E127: 15.8 | G127: 89 | H127: 22.9
A128: 27 | B128: 1.5 | D128: 76 | E128: 17.6 | G128: 85 | H128: 24.2
A129: 28 | B129: 1.5 | D129: 70 | E129: 19.6 | G129: 72 | H129: 25.6
A130: =MOD(1+A129,100) -> 29 | B130: 1.5 | D130: 64 | E130: 21.6 | G130: 67 | H130: 27.1
A131: 30 | B131: =IF(A131=99,B130+0.5,B130) -> 1.5 | D131: 59 | E131: 23.4 | G131: 64 | H131: 28.2
A132: 31 | B132: 1.5 | D132: 55 | E132: 25 | G132: 61 | H132: 29.3
A133: 32 | B133: 1.5 | D133: 52 | E133: 26.2 | G133: 59 | H133: 30.1
A134: 33 | B134: 1.5 | D134: 50 | E134: 27.1 | G134: 57 | H134: 30.8
A135: 34 | B135: 1.5 | D135: 48 | E135: 27.6 | G135: 58 | H135: 31.2
A136: 35 | B136: 1.5 | D136: 48 | E136: 27.7 | G136: 57 | H136: 31.2
A137: 36 | B137: 1.5 | D137: 49 | E137: 27.4 | G137: 57 | H137: 30.9
A138: 37 | B138: 1.5 | D138: 51 | E138: 26.6 | G138: 59 | H138: 30.3
A139: 38 | B139: 1.5 | D139: 54 | E139: 25.2 | G139: 61 | H139: 29.3
A140: 39 | B140: 1.5 | D140: 58 | E140: 23.7 | G140: 64 | H140: 28.3
A141: 40 | B141: 1.5 | D141: 64 | E141: 22.5 | G141: 71 | H141: 27.6
A142: 41 | B142: 1.5 | D142: 68 | E142: 21.3 | G142: 74 | H142: 26.8
A143: 42 | B143: 1.5 | D143: 72 | E143: 20.1 | G143: 77 | H143: 26.1
A144: 43 | B144: 1.5 | D144: 73 | E144: 19 | G144: 77 | H144: 25.3
A145: 44 | B145: 1.5 | D145: 75 | E145: 17.8 | G145: 78 | H145: 24.6
A146: 45 | B146: 1.5 | D146: 77 | E146: 17.2 | G146: 85 | H146: 24.1
A147: 46 | B147: 1.5 | D147: 81 | E147: 16.6 | G147: 90 | H147: 23.6
A148: 47 | B148: 1.5 | D148: 83 | E148: 16.3 | G148: 92 | H148: 23.4
A149: 48 | B149: 1.5 | D149: 81 | E149: 16 | G149: 90 | H149: 23.1
A150: 49 | B150: 1.5 | D150: 87 | E150: 15.7 | G150: 93 | H150: 22.9
A151: 50 | B151: 1.5 | D151: 86 | E151: 15.8 | G151: 96 | H151: 23
A152: 51 | B152: 1.5 | D152: 82 | E152: 17.7 | G152: 90 | H152: 24.3
A153: 52 | B153: 1.5 | D153: 75 | E153: 19.7 | G153: 81 | H153: 25.8
A154: 53 | B154: 1.5 | D154: 67 | E154: 21.7 | G154: 79 | H154: 27.2
A155: 54 | B155: 1.5 | D155: 62 | E155: 23.5 | G155: 71 | H155: 28.4
A156: 55 | B156: 1.5 | D156: 60 | E156: 25.1 | G156: 70 | H156: 29.4
A157: 56 | B157: 1.5 | D157: 58 | E157: 26.4 | G157: 69 | H157: 30.2
A158: 57 | B158: 1.5 | D158: 58 | E158: 27.3 | G158: 70 | H158: 30.8
A159: 58 | B159: 1.5 | D159: 54 | E159: 27.9 | G159: 66 | H159: 31.1
A160: 59 | B160: 1.5 | D160: 55 | E160: 28.2 | G160: 66 | H160: 31.2
A161: 60 | B161: 1.5 | D161: 55 | E161: 28 | G161: 66 | H161: 31
A162: 61 | B162: 1.5 | D162: 58 | E162: 27.2 | G162: 69 | H162: 30.3
A163: 62 | B163: 1.5 | D163: 66 | E163: 25.9 | G163: 74 | H163: 29.4
A164: 63 | B164: 1.5 | D164: 75 | E164: 24.4 | G164: 82 | H164: 28.4
A165: 64 | B165: 1.5 | D165: 82 | E165: 23.7 | G165: 85 | H165: 27.9
A166: 65 | B166: 1.5 | D166: 83 | E166: 22.9 | G166: 85 | H166: 27.3
A167: 66 | B167: 1.5 | D167: 85 | E167: 22.1 | G167: 86 | H167: 26.7
A168: 67 | B168: 1.5 | D168: 88 | E168: 21.4 | G168: 88 | H168: 26.2
A169: 68 | B169: 1.5 | D169: 90 | E169: 20.6 | G169: 89 | H169: 25.6
A170: 69 | B170: 1.5 | D170: 86 | E170: 20.2 | G170: 91 | H170: 25.2
A171: 70 | B171: 1.5 | D171: 88 | E171: 19.8 | G171: 95 | H171: 24.6
A172: 71 | B172: 1.5 | D172: 88 | E172: 19.6 | G172: 91 | H172: 24.7
A173: 72 | B173: 1.5 | D173: 88 | E173: 19.4 | G173: 93 | H173: 24.7
A174: 73 | B174: 1.5 | D174: 93 | E174: 19.3 | G174: 98 | H174: 23.8
A175: 74 | B175: 1.5 | D175: 99 | E175: 19.1 | G175: 98 | H175: 24.1
A176: 75 | B176: 1.5 | D176: 98 | E176: 20 | G176: 93 | H176: 25.4
A177: 76 | B177: 1.5 | D177: 98 | E177: 20.5 | G177: 91 | H177: 26.1
A178: 77 | B178: 1.5 | D178: 98 | E178: 20.5 | G178: 87 | H178: 26.8
A179: 78 | B179: 1.5 | D179: 92 | E179: 21.1 | G179: 85 | H179: 27.6
A180: 79 | B180: 1.5 | D180: 88 | E180: 21.8 | G180: 85 | H180: 28.1
A181: 80 | B181: 1.5 | D181: 85 | E181: 22.2 | G181: 74 | H181: 28.5
A182: 81 | B182: 1.5 | D182: 85 | E182: 22.6 | G182: 85 | H182: 28.8
A183: 82 | B183: 1.5 | D183: 90 | E183: 22.7 | G183: 75 | H183: 29
A184: 83 | B184: 1.5 | D184: 87 | E184: 22.8 | G184: 91 | H184: 28
A185: 84 | B185: 1.5 | D185: 87 | E185: 22.6 | G185: 88 | H185: 28.7
A186: 85 | B186: 1.5 | D186: 88 | E186: 22.3 | G186: 85 | H186: 28.5
A187: 86 | B187: 1.5 | D187: 93 | E187: 21.5 | G187: 85 | H187: 28.2
A188: 87 | B188: 1.5 | D188: 88 | E188: 21.6 | G188: 85 | H188: 27.8
A189: 88 | B189: 1.5 | D189: 90 | E189: 21.1 | G189: 93 | H189: 25.1
A190: 89 | B190: 1.5 | D190: 95 | E190: 20.6 | G190: 88 | H190: 26.1
A191: 90 | B191: 1.5 | D191: 99 | E191: 19.7 | G191: 87 | H191: 25.6
A192: 91 | B192: 1.5 | D192: 99 | E192: 17.6 | G192: 94 | H192: 24.9
A193: 92 | B193: 1.5 | D193: 99 | E193: 18.2 | G193: 96 | H193: 24.2
A194: =MOD(1+A193,100) -> 93 | B194: 1.5 | D194: 99 | E194: 17.5 | G194: 98 | H194: 23.6
A195: 94 | B195: =IF(A195=99,B194+0.5,B194) -> 1.5 | D195: 98 | E195: 18 | G195: 98 | H195: 22.9
A196: 95 | B196: 1.5 | D196: 98 | E196: 17.9 | G196: 98 | H196: 22.5
A197: 96 | B197: 1.5 | D197: 99 | E197: 17.4 | G197: 98 | H197: 22.1
A198: 97 | B198: 1.5 | D198: 99 | E198: 17 | G198: 98 | H198: 21.8
A199: 98 | B199: 1.5 | D199: 99 | E199: 17.6 | G199: 98 | H199: 21.9
A200: 99 | B200: 2 | D200: 99 | E200: 18.4 | G200: 98 | H200: 23.3
... 8561 more rows

Sheet Adaptative
A1: Date/Time | B1: Outdoor Air Temperature | C1: Outdoor Mean Daily Temperature [°C] | D1: Running Mean Temperature [°C] | E1: Adaptive Comfort ASHRAE 55 Lower Temperature [°C] | F1: Adaptive Comfort ASHRAE 55 Upper Temperature [°C] | G1: Adaptive EN 15251 [°C] | H1: Givoni 0.5m/s | I1: Givoni 1m/s | J1: Givoni 1.5 m/s | K1: Givoni Lower | L1: Monthly Mean Temperature | M1: Adaptive EN 15251
A2: 1900-01-01 | B2: ='Input Sheet'!B2 -> 19.8 | D2: =D3 -> 16.69948267 | E2: =L2*0.31+15.3 -> 21.93960501 | F2: =L2*0.31+20.3 -> 26.93960501 | G2: =0.33*D2+17.8 -> 23.31082928 | H2: 27 | I2: 30 | J2: 32 | K2: 18 | L2: =AVERAGE(B2:B336,B8378:B8761) -> 21.41808067 | M2: =0.33*D2+17.8 -> 23.31082928
A3: 1900-01-01T01:00:00 | B3: ='Input Sheet'!B3 -> 20.6 | D3: 16.69948267 | E3: 21.93887204 | F3: 26.93887204 | G3: =0.33*D3+17.8 -> 23.31082928 | H3: 27 | I3: 30 | J3: 32 | K3: 18 | L3: =AVERAGE(B3:B337,B8379:B8762) -> 21.41571627 | M3: =0.33*D3+17.8 -> 23.31082928
A4: 1900-01-01T02:00:00 | B4: ='Input Sheet'!B4 -> 20.4 | D4: 16.69948267 | E4: 21.93844089 | F4: 26.93844089 | G4: 23.31082928 | H4: 27 | I4: 30 | J4: 32 | K4: 18 | L4: =AVERAGE(B4:B338,B8380:B8763) -> 21.41432545 | M4: 23.31082928
A5: 1900-01-01T03:00:00 | B5: ='Input Sheet'!B5 -> 20.3 | D5: 16.69948267 | E5: 21.9381822 | F5: 26.9381822 | G5: 23.31082928 | H5: 27 | I5: 30 | J5: 32 | K5: 18 | L5: 21.41349096 | M5: 23.31082928
A6: 1900-01-01T04:00:00 | B6: ='Input Sheet'!B6 -> 20.2 | D6: 16.69948267 | E6: 21.93809597 | F6: 26.93809597 | G6: 23.31082928 | H6: 27 | I6: 30 | J6: 32 | K6: 18 | L6: 21.4132128 | M6: 23.31082928
A7: 1900-01-01T05:00:00 | B7: ='Input Sheet'!B7 -> 20.3 | D7: 16.69948267 | E7: 21.93813908 | F7: 26.93813908 | G7: 23.31082928 | H7: 27 | I7: 30 | J7: 32 | K7: 18 | L7: 21.41335188 | M7: 23.31082928
A8: 1900-01-01T06:00:00 | B8: ='Input Sheet'!B8 -> 21.2 | D8: 16.69948267 | E8: 21.93809597 | F8: 26.93809597 | G8: 23.31082928 | H8: 27 | I8: 30 | J8: 32 | K8: 18 | L8: 21.4132128 | M8: 23.31082928
A9: 1900-01-01T07:00:00 | B9: ='Input Sheet'!B9 -> 22.4 | D9: 16.69948267 | E9: 21.93727677 | F9: 26.93727677 | G9: 23.31082928 | H9: 27 | I9: 30 | J9: 32 | K9: 18 | L9: 21.41057024 | M9: 23.31082928
A10: 1900-01-01T08:00:00 | B10: ='Input Sheet'!B10 -> 23.6 | D10: 16.69948267 | E10: 21.93637135 | F10: 26.93637135 | G10: 23.31082928 | H10: 27 | I10: 30 | J10: 32 | K10: 18 | L10: 21.40764951 | M10: 23.31082928
A11: 1900-01-01T09:00:00 | B11: ='Input Sheet'!B11 -> 24.7 | D11: 16.69948267 | E11: 21.93555216 | F11: 26.93555216 | G11: 23.31082928 | H11: 27 | I11: 30 | J11: 32 | K11: 18 | L11: 21.40500695 | M11: 23.31082928
A12: 1900-01-01T10:00:00 | B12: ='Input Sheet'!B12 -> 25.5 | D12: 16.69948267 | E12: 21.93490542 | F12: 26.93490542 | G12: 23.31082928 | H12: 27 | I12: 30 | J12: 32 | K12: 18 | L12: 21.40292072 | M12: 23.31082928
A13: 1900-01-01T11:00:00 | B13: ='Input Sheet'!B13 -> 26.2 | D13: 16.69948267 | E13: 21.93447427 | F13: 26.93447427 | G13: 23.31082928 | H13: 27 | I13: 30 | J13: 32 | K13: 18 | L13: 21.4015299 | M13: 23.31082928
A14: 1900-01-01T12:00:00 | B14: ='Input Sheet'!B14 -> 26.6 | D14: 16.69948267 | E14: 21.93425869 | F14: 26.93425869 | G14: 23.31082928 | H14: 27 | I14: 30 | J14: 32 | K14: 18 | L14: 21.40083449 | M14: 23.31082928
A15: 1900-01-01T13:00:00 | B15: ='Input Sheet'!B15 -> 26.9 | D15: 16.69948267 | E15: 21.93434492 | F15: 26.93434492 | G15: 23.31082928 | H15: 27 | I15: 30 | J15: 32 | K15: 18 | L15: 21.40111266 | M15: 23.31082928
A16: 1900-01-01T14:00:00 | B16: ='Input Sheet'!B16 -> 27 | D16: 16.69948267 | E16: 21.93468985 | F16: 26.93468985 | G16: 23.31082928 | H16: 27 | I16: 30 | J16: 32 | K16: 18 | L16: 21.40222531 | M16: 23.31082928
A17: 1900-01-01T15:00:00 | B17: ='Input Sheet'!B17 -> 26.8 | D17: 16.69948267 | E17: 21.93533658 | F17: 26.93533658 | G17: 23.31082928 | H17: 27 | I17: 30 | J17: 32 | K17: 18 | L17: 21.40431154 | M17: 23.31082928
A18: 1900-01-01T16:00:00 | B18: ='Input Sheet'!B18 -> 26.3 | D18: 16.69948267 | E18: 21.93581085 | F18: 26.93581085 | G18: 23.31082928 | H18: 27 | I18: 30 | J18: 32 | K18: 18 | L18: 21.40584145 | M18: 23.31082928
A19: 1900-01-01T17:00:00 | B19: ='Input Sheet'!B19 -> 25.5 | D19: 16.69948267 | E19: 21.93667316 | F19: 26.93667316 | G19: 23.31082928 | H19: 27 | I19: 30 | J19: 32 | K19: 18 | L19: 21.40862309 | M19: 23.31082928
A20: 1900-01-01T18:00:00 | B20: ='Input Sheet'!B20 -> 24.5 | D20: 16.69948267 | E20: 21.93826843 | F20: 26.93826843 | G20: 23.31082928 | H20: 27 | I20: 30 | J20: 32 | K20: 18 | L20: 21.41376912 | M20: 23.31082928
A21: 1900-01-01T19:00:00 | B21: ='Input Sheet'!B21 -> 24.2 | D21: 16.69948267 | E21: 21.93999305 | F21: 26.93999305 | G21: 23.31082928 | H21: 27 | I21: 30 | J21: 32 | K21: 18 | L21: 21.41933241 | M21: 23.31082928
A22: 1900-01-01T20:00:00 | B22: ='Input Sheet'!B22 -> 23.4 | D22: 16.69948267 | E22: 21.94167455 | F22: 26.94167455 | G22: 23.31082928 | H22: 27 | I22: 30 | J22: 32 | K22: 18 | L22: 21.42475661 | M22: 23.31082928
A23: 1900-01-01T21:00:00 | B23: ='Input Sheet'!B23 -> 22.9 | D23: 16.69948267 | E23: 21.94344228 | F23: 26.94344228 | G23: 23.31082928 | H23: 27 | I23: 30 | J23: 32 | K23: 18 | L23: 21.43045897 | M23: 23.31082928
A24: 1900-01-01T22:00:00 | B24: ='Input Sheet'!B24 -> 22.4 | D24: 16.69948267 | E24: 21.94525313 | F24: 26.94525313 | G24: 23.31082928 | H24: 27 | I24: 30 | J24: 32 | K24: 18 | L24: 21.43630042 | M24: 23.31082928
A25: 1900-01-01T23:00:00 | B25: ='Input Sheet'!B25 -> 21.8 | C25: =AVERAGE(B2:B25) -> 23.47916667 | D25: 16.69948267 | E25: 21.94710709 | F25: 26.94710709 | G25: 23.31082928 | H25: 27 | I25: 30 | J25: 32 | K25: 18 | L25: 21.44228095 | M25: 23.31082928
A26: 1900-01-02 | B26: ='Input Sheet'!B26 -> 21.2 | D26: 16.69948267 | E26: 21.94904729 | F26: 26.94904729 | G26: 23.31082928 | H26: 27 | I26: 30 | J26: 32 | K26: 18 | L26: 21.44853964 | M26: 23.31082928
A27: 1900-01-02T01:00:00 | B27: ='Input Sheet'!B27 -> 20 | D27: 16.69948267 | E27: 21.95094437 | F27: 26.95094437 | G27: 23.31082928 | H27: 27 | I27: 30 | J27: 32 | K27: 18 | L27: 21.45465925 | M27: 23.31082928
A28: 1900-01-02T02:00:00 | B28: ='Input Sheet'!B28 -> 20.3 | D28: 16.69948267 | E28: 21.9527121 | F28: 26.9527121 | G28: 23.31082928 | H28: 27 | I28: 30 | J28: 32 | K28: 18 | L28: 21.46036161 | M28: 23.31082928
A29: 1900-01-02T03:00:00 | B29: ='Input Sheet'!B29 -> 20.2 | D29: 16.69948267 | E29: 21.95400556 | F29: 26.95400556 | G29: 23.31082928 | H29: 27 | I29: 30 | J29: 32 | K29: 18 | L29: 21.46453408 | M29: 23.31082928
A30: 1900-01-02T04:00:00 | B30: ='Input Sheet'!B30 -> 19.9 | D30: 16.69948267 | E30: 21.95512656 | F30: 26.95512656 | G30: 23.31082928 | H30: 27 | I30: 30 | J30: 32 | K30: 18 | L30: 21.46815021 | M30: 23.31082928
A31: 1900-01-02T05:00:00 | B31: ='Input Sheet'!B31 -> 20 | D31: 16.69948267 | E31: 21.95603199 | F31: 26.95603199 | G31: 23.31082928 | H31: 27 | I31: 30 | J31: 32 | K31: 18 | L31: 21.47107093 | M31: 23.31082928
A32: 1900-01-02T06:00:00 | B32: ='Input Sheet'!B32 -> 21 | D32: 16.69948267 | E32: 21.95646314 | F32: 26.95646314 | G32: 23.31082928 | H32: 27 | I32: 30 | J32: 32 | K32: 18 | L32: 21.47246175 | M32: 23.31082928
A33: 1900-01-02T07:00:00 | B33: ='Input Sheet'!B33 -> 22.2 | D33: 16.69948267 | E33: 21.95585953 | F33: 26.95585953 | G33: 23.31082928 | H33: 27 | I33: 30 | J33: 32 | K33: 18 | L33: 21.4705146 | M33: 23.31082928
A34: 1900-01-02T08:00:00 | B34: ='Input Sheet'!B34 -> 23.3 | D34: 16.69948267 | E34: 21.95486787 | F34: 26.95486787 | G34: 23.31082928 | H34: 27 | I34: 30 | J34: 32 | K34: 18 | L34: 21.46731572 | M34: 23.31082928
A35: 1900-01-02T09:00:00 | B35: ='Input Sheet'!B35 -> 24.1 | D35: 16.69948267 | E35: 21.95361752 | F35: 26.95361752 | G35: 23.31082928 | H35: 27 | I35: 30 | J35: 32 | K35: 18 | L35: 21.46328234 | M35: 23.31082928
A36: 1900-01-02T10:00:00 | B36: ='Input Sheet'!B36 -> 24.8 | D36: 16.69948267 | E36: 21.95219471 | F36: 26.95219471 | G36: 23.31082928 | H36: 27 | I36: 30 | J36: 32 | K36: 18 | L36: 21.45869263 | M36: 23.31082928
A37: 1900-01-02T11:00:00 | B37: ='Input Sheet'!B37 -> 25.4 | D37: 16.69948267 | E37: 21.95064256 | F37: 26.95064256 | G37: 23.31082928 | H37: 27 | I37: 30 | J37: 32 | K37: 18 | L37: 21.45368567 | M37: 23.31082928
A38: 1900-01-02T12:00:00 | B38: ='Input Sheet'!B38 -> 26 | D38: 16.69948267 | E38: 21.9490904 | F38: 26.9490904 | G38: 23.31082928 | H38: 27 | I38: 30 | J38: 32 | K38: 18 | L38: 21.44867872 | M38: 23.31082928
A39: 1900-01-02T13:00:00 | B39: ='Input Sheet'!B39 -> 26.3 | D39: 16.69948267 | E39: 21.94758136 | F39: 26.94758136 | G39: 23.31082928 | H39: 27 | I39: 30 | J39: 32 | K39: 18 | L39: 21.44381085 | M39: 23.31082928
A40: 1900-01-02T14:00:00 | B40: ='Input Sheet'!B40 -> 26.3 | D40: 16.69948267 | E40: 21.94611544 | F40: 26.94611544 | G40: 23.31082928 | H40: 27 | I40: 30 | J40: 32 | K40: 18 | L40: 21.43908206 | M40: 23.31082928
A41: 1900-01-02T15:00:00 | B41: ='Input Sheet'!B41 -> 26.1 | D41: 16.69948267 | E41: 21.94473574 | F41: 26.94473574 | G41: 23.31082928 | H41: 27 | I41: 30 | J41: 32 | K41: 18 | L41: 21.43463143 | M41: 23.31082928
A42: 1900-01-02T16:00:00 | B42: ='Input Sheet'!B42 -> 25.6 | D42: 16.69948267 | E42: 21.94357163 | F42: 26.94357163 | G42: 23.31082928 | H42: 27 | I42: 30 | J42: 32 | K42: 18 | L42: 21.43087622 | M42: 23.31082928
A43: 1900-01-02T17:00:00 | B43: ='Input Sheet'!B43 -> 25 | D43: 16.69948267 | E43: 21.94262309 | F43: 26.94262309 | G43: 23.31082928 | H43: 27 | I43: 30 | J43: 32 | K43: 18 | L43: 21.42781641 | M43: 23.31082928
A44: 1900-01-02T18:00:00 | B44: ='Input Sheet'!B44 -> 24.2 | D44: 16.69948267 | E44: 21.94197636 | F44: 26.94197636 | G44: 23.31082928 | H44: 27 | I44: 30 | J44: 32 | K44: 18 | L44: 21.42573018 | M44: 23.31082928
A45: 1900-01-02T19:00:00 | B45: ='Input Sheet'!B45 -> 23.4 | D45: 16.69948267 | E45: 21.9415452 | F45: 26.9415452 | G45: 23.31082928 | H45: 27 | I45: 30 | J45: 32 | K45: 18 | L45: 21.42433936 | M45: 23.31082928
A46: 1900-01-02T20:00:00 | B46: ='Input Sheet'!B46 -> 22.9 | D46: 16.69948267 | E46: 21.94081224 | F46: 26.94081224 | G46: 23.31082928 | H46: 27 | I46: 30 | J46: 32 | K46: 18 | L46: 21.42197497 | M46: 23.31082928
A47: 1900-01-02T21:00:00 | B47: ='Input Sheet'!B47 -> 22.2 | D47: 16.69948267 | E47: 21.9398637 | F47: 26.9398637 | G47: 23.31082928 | H47: 27 | I47: 30 | J47: 32 | K47: 18 | L47: 21.41891516 | M47: 23.31082928
A48: 1900-01-02T22:00:00 | B48: ='Input Sheet'!B48 -> 21.2 | D48: 16.69948267 | E48: 21.93865647 | F48: 26.93865647 | G48: 23.31082928 | H48: 27 | I48: 30 | J48: 32 | K48: 18 | L48: 21.41502086 | M48: 23.31082928
A49: 1900-01-02T23:00:00 | B49: ='Input Sheet'!B49 -> 20.8 | C49: =AVERAGE(B26:B49) -> 23.01666667 | D49: 16.69948267 | E49: 21.93723366 | F49: 26.93723366 | G49: 23.31082928 | H49: 27 | I49: 30 | J49: 32 | K49: 18 | L49: 21.41043115 | M49: 23.31082928
A50: 1900-01-03 | B50: ='Input Sheet'!B50 -> 20.4 | D50: 16.69948267 | E50: 21.93555216 | F50: 26.93555216 | G50: 23.31082928 | H50: 27 | I50: 30 | J50: 32 | K50: 18 | L50: 21.40500695 | M50: 23.31082928
A51: 1900-01-03T01:00:00 | B51: ='Input Sheet'!B51 -> 19.9 | D51: 16.69948267 | E51: 21.93335327 | F51: 26.93335327 | G51: 23.31082928 | H51: 27 | I51: 30 | J51: 32 | K51: 18 | L51: 21.39791377 | M51: 23.31082928
A52: 1900-01-03T02:00:00 | B52: ='Input Sheet'!B52 -> 19.7 | D52: 16.69948267 | E52: 21.93115438 | F52: 26.93115438 | G52: 23.31082928 | H52: 27 | I52: 30 | J52: 32 | K52: 18 | L52: 21.39082058 | M52: 23.31082928
A53: 1900-01-03T03:00:00 | B53: ='Input Sheet'!B53 -> 19.4 | D53: 16.69948267 | E53: 21.92895549 | F53: 26.92895549 | G53: 23.31082928 | H53: 27 | I53: 30 | J53: 32 | K53: 18 | L53: 21.3837274 | M53: 23.31082928
A54: 1900-01-03T04:00:00 | B54: ='Input Sheet'!B54 -> 19.2 | D54: 16.69948267 | E54: 21.92667038 | F54: 26.92667038 | G54: 23.31082928 | H54: 27 | I54: 30 | J54: 32 | K54: 18 | L54: 21.37635605 | M54: 23.31082928
A55: 1900-01-03T05:00:00 | B55: ='Input Sheet'!B55 -> 19.3 | D55: 16.69948267 | E55: 21.92434214 | F55: 26.92434214 | G55: 23.31082928 | H55: 27 | I55: 30 | J55: 32 | K55: 18 | L55: 21.36884562 | M55: 23.31082928
A56: 1900-01-03T06:00:00 | B56: ='Input Sheet'!B56 -> 20.6 | D56: 16.69948267 | E56: 21.92197079 | F56: 26.92197079 | G56: 23.31082928 | H56: 27 | I56: 30 | J56: 32 | K56: 18 | L56: 21.36119611 | M56: 23.31082928
A57: 1900-01-03T07:00:00 | B57: ='Input Sheet'!B57 -> 22 | D57: 16.69948267 | E57: 21.9194701 | F57: 26.9194701 | G57: 23.31082928 | H57: 27 | I57: 30 | J57: 32 | K57: 18 | L57: 21.35312935 | M57: 23.31082928
A58: 1900-01-03T08:00:00 | B58: ='Input Sheet'!B58 -> 23.6 | D58: 16.69948267 | E58: 21.91722809 | F58: 26.91722809 | G58: 23.31082928 | H58: 27 | I58: 30 | J58: 32 | K58: 18 | L58: 21.34589708 | M58: 23.31082928
A59: 1900-01-03T09:00:00 | B59: ='Input Sheet'!B59 -> 24.8 | D59: 16.69948267 | E59: 21.91597775 | F59: 26.91597775 | G59: 23.31082928 | H59: 27 | I59: 30 | J59: 32 | K59: 18 | L59: 21.3418637 | M59: 23.31082928
A60: 1900-01-03T10:00:00 | B60: ='Input Sheet'!B60 -> 25.9 | D60: 16.69948267 | E60: 21.91567594 | F60: 26.91567594 | G60: 23.31082928 | H60: 27 | I60: 30 | J60: 32 | K60: 18 | L60: 21.34089013 | M60: 23.31082928
A61: 1900-01-03T11:00:00 | B61: ='Input Sheet'!B61 -> 26.8 | D61: 16.69948267 | E61: 21.91533102 | F61: 26.91533102 | G61: 23.31082928 | H61: 27 | I61: 30 | J61: 32 | K61: 18 | L61: 21.33977747 | M61: 23.31082928
A62: 1900-01-03T12:00:00 | B62: ='Input Sheet'!B62 -> 27.4 | D62: 16.69948267 | E62: 21.91546036 | F62: 26.91546036 | G62: 23.31082928 | H62: 27 | I62: 30 | J62: 32 | K62: 18 | L62: 21.34019471 | M62: 23.31082928
A63: 1900-01-03T13:00:00 | B63: ='Input Sheet'!B63 -> 27.7 | D63: 16.69948267 | E63: 21.91593463 | F63: 26.91593463 | G63: 23.31082928 | H63: 27 | I63: 30 | J63: 32 | K63: 18 | L63: 21.34172462 | M63: 23.31082928
A64: 1900-01-03T14:00:00 | B64: ='Input Sheet'!B64 -> 27.8 | D64: 16.69948267 | E64: 21.91627955 | F64: 26.91627955 | G64: 23.31082928 | H64: 27 | I64: 30 | J64: 32 | K64: 18 | L64: 21.34283727 | M64: 23.31082928
A65: 1900-01-03T15:00:00 | B65: ='Input Sheet'!B65 -> 27.5 | D65: 16.69948267 | E65: 21.91658136 | F65: 26.91658136 | G65: 23.31082928 | H65: 27 | I65: 30 | J65: 32 | K65: 18 | L65: 21.34381085 | M65: 23.31082928
A66: 1900-01-03T16:00:00 | B66: ='Input Sheet'!B66 -> 26.9 | D66: =D67 -> 16.69948267 | E66: =L66*0.31+15.3 -> 21.91649513 | F66: =L66*0.31+20.3 -> 26.91649513 | G66: 23.31082928 | H66: 27 | I66: 30 | J66: 32 | K66: 18 | L66: 21.34353268 | M66: 23.31082928
A67: 1900-01-03T17:00:00 | B67: ='Input Sheet'!B67 -> 26.1 | D67: 16.69948267 | E67: 21.91623644 | F67: 26.91623644 | G67: =0.33*D67+17.8 -> 23.31082928 | H67: 27 | I67: 30 | J67: 32 | K67: 18 | L67: 21.34269819 | M67: =0.33*D67+17.8 -> 23.31082928
A68: 1900-01-03T18:00:00 | B68: ='Input Sheet'!B68 -> 25.1 | D68: 16.69948267 | E68: 21.91576217 | F68: 26.91576217 | G68: 23.31082928 | H68: 27 | I68: 30 | J68: 32 | K68: 18 | L68: =AVERAGE(B68:B402,B8444:B8827) -> 21.34116829 | M68: 23.31082928
A69: 1900-01-03T19:00:00 | B69: ='Input Sheet'!B69 -> 24.1 | D69: 16.69948267 | E69: 21.91502921 | F69: 26.91502921 | G69: 23.31082928 | H69: 27 | I69: 30 | J69: 32 | K69: 18 | L69: 21.33880389 | M69: 23.31082928
A70: 1900-01-03T20:00:00 | B70: ='Input Sheet'!B70 -> 23 | D70: 16.69948267 | E70: 21.91399444 | F70: 26.91399444 | G70: 23.31082928 | H70: 27 | I70: 30 | J70: 32 | K70: 18 | L70: 21.33546592 | M70: 23.31082928
A71: 1900-01-03T21:00:00 | B71: ='Input Sheet'!B71 -> 21.9 | D71: 16.69948267 | E71: 21.91287344 | F71: 26.91287344 | G71: 23.31082928 | H71: 27 | I71: 30 | J71: 32 | K71: 18 | L71: 21.33184979 | M71: 23.31082928
A72: 1900-01-03T22:00:00 | B72: ='Input Sheet'!B72 -> 20.8 | D72: 16.69948267 | E72: 21.9116662 | F72: 26.9116662 | G72: 23.31082928 | H72: 27 | I72: 30 | J72: 32 | K72: 18 | L72: 21.32795549 | M72: 23.31082928
A73: 1900-01-03T23:00:00 | B73: ='Input Sheet'!B73 -> 19.7 | C73: =AVERAGE(B50:B73) -> 23.31666667 | D73: 16.69948267 | E73: 21.91037274 | F73: 26.91037274 | G73: 23.31082928 | H73: 27 | I73: 30 | J73: 32 | K73: 18 | L73: 21.32378303 | M73: 23.31082928
A74: 1900-01-04 | B74: ='Input Sheet'!B74 -> 18.7 | D74: 16.69948267 | E74: 21.90899305 | F74: 26.90899305 | G74: 23.31082928 | H74: 27 | I74: 30 | J74: 32 | K74: 18 | L74: 21.31933241 | M74: 23.31082928
A75: 1900-01-04T01:00:00 | B75: ='Input Sheet'!B75 -> 17.7 | D75: 16.69948267 | E75: 21.90761335 | F75: 26.90761335 | G75: 23.31082928 | H75: 27 | I75: 30 | J75: 32 | K75: 18 | L75: 21.31488178 | M75: 23.31082928
A76: 1900-01-04T02:00:00 | B76: ='Input Sheet'!B76 -> 17.1 | D76: 16.69948267 | E76: 21.90653547 | F76: 26.90653547 | G76: 23.31082928 | H76: 27 | I76: 30 | J76: 32 | K76: 18 | L76: 21.31140473 | M76: 23.31082928
A77: 1900-01-04T03:00:00 | B77: ='Input Sheet'!B77 -> 16.5 | D77: 16.69948267 | E77: 21.90545758 | F77: 26.90545758 | G77: 23.31082928 | H77: 27 | I77: 30 | J77: 32 | K77: 18 | L77: 21.30792768 | M77: 23.31082928
A78: 1900-01-04T04:00:00 | B78: ='Input Sheet'!B78 -> 16.1 | D78: 16.69948267 | E78: 21.90446592 | F78: 26.90446592 | G78: 23.31082928 | H78: 27 | I78: 30 | J78: 32 | K78: 18 | L78: 21.30472879 | M78: 23.31082928
A79: 1900-01-04T05:00:00 | B79: ='Input Sheet'!B79 -> 16.3 | D79: 16.69948267 | E79: 21.90343115 | F79: 26.90343115 | G79: 23.31082928 | H79: 27 | I79: 30 | J79: 32 | K79: 18 | L79: 21.30139082 | M79: 23.31082928
A80: 1900-01-04T06:00:00 | B80: ='Input Sheet'!B80 -> 18.4 | D80: 16.69948267 | E80: 21.90218081 | F80: 26.90218081 | G80: 23.31082928 | H80: 27 | I80: 30 | J80: 32 | K80: 18 | L80: 21.29735744 | M80: 23.31082928
A81: 1900-01-04T07:00:00 | B81: ='Input Sheet'!B81 -> 20.6 | D81: 16.69948267 | E81: 21.8999388 | F81: 26.8999388 | G81: 23.31082928 | H81: 27 | I81: 30 | J81: 32 | K81: 18 | L81: 21.29012517 | M81: 23.31082928
A82: 1900-01-04T08:00:00 | B82: ='Input Sheet'!B82 -> 22.8 | D82: 16.69948267 | E82: 21.89748122 | F82: 26.89748122 | G82: 23.31082928 | H82: 27 | I82: 30 | J82: 32 | K82: 18 | L82: 21.2821975 | M82: 23.31082928
A83: 1900-01-04T09:00:00 | B83: ='Input Sheet'!B83 -> 24.8 | D83: 16.69948267 | E83: 21.89498053 | F83: 26.89498053 | G83: 23.31082928 | H83: 27 | I83: 30 | J83: 32 | K83: 18 | L83: 21.27413074 | M83: 23.31082928
A84: 1900-01-04T10:00:00 | B84: ='Input Sheet'!B84 -> 26.5 | D84: 16.69948267 | E84: 21.89256606 | F84: 26.89256606 | G84: 23.31082928 | H84: 27 | I84: 30 | J84: 32 | K84: 18 | L84: 21.26634214 | M84: 23.31082928
A85: 1900-01-04T11:00:00 | B85: ='Input Sheet'!B85 -> 27.9 | D85: 16.69948267 | E85: 21.89023783 | F85: 26.89023783 | G85: 23.31082928 | H85: 27 | I85: 30 | J85: 32 | K85: 18 | L85: 21.25883171 | M85: 23.31082928
A86: 1900-01-04T12:00:00 | B86: ='Input Sheet'!B86 -> 28.9 | D86: 16.69948267 | E86: 21.88864256 | F86: 26.88864256 | G86: 23.31082928 | H86: 27 | I86: 30 | J86: 32 | K86: 18 | L86: 21.25368567 | M86: 23.31082928
A87: 1900-01-04T13:00:00 | B87: ='Input Sheet'!B87 -> 29.5 | D87: 16.69948267 | E87: 21.8876509 | F87: 26.8876509 | G87: 23.31082928 | H87: 27 | I87: 30 | J87: 32 | K87: 18 | L87: 21.25048679 | M87: 23.31082928
A88: 1900-01-04T14:00:00 | B88: ='Input Sheet'!B88 -> 29.7 | D88: 16.69948267 | E88: 21.88717663 | F88: 26.88717663 | G88: 23.31082928 | H88: 27 | I88: 30 | J88: 32 | K88: 18 | L88: 21.24895688 | M88: 23.31082928
A89: 1900-01-04T15:00:00 | B89: ='Input Sheet'!B89 -> 29.4 | D89: 16.69948267 | E89: 21.88713352 | F89: 26.88713352 | G89: 23.31082928 | H89: 27 | I89: 30 | J89: 32 | K89: 18 | L89: 21.2488178 | M89: 23.31082928
A90: 1900-01-04T16:00:00 | B90: ='Input Sheet'!B90 -> 28.5 | D90: 16.69948267 | E90: 21.88743533 | F90: 26.88743533 | G90: 23.31082928 | H90: 27 | I90: 30 | J90: 32 | K90: 18 | L90: 21.24979138 | M90: 23.31082928
A91: 1900-01-04T17:00:00 | B91: ='Input Sheet'!B91 -> 27.1 | D91: 16.69948267 | E91: 21.88803894 | F91: 26.88803894 | G91: 23.31082928 | H91: 27 | I91: 30 | J91: 32 | K91: 18 | L91: 21.25173853 | M91: 23.31082928
A92: 1900-01-04T18:00:00 | B92: ='Input Sheet'!B92 -> 25.4 | D92: 16.69948267 | E92: 21.88881502 | F92: 26.88881502 | G92: 23.31082928 | H92: 27 | I92: 30 | J92: 32 | K92: 18 | L92: 21.254242 | M92: 23.31082928
A93: 1900-01-04T19:00:00 | B93: ='Input Sheet'!B93 -> 24.1 | D93: 16.69948267 | E93: 21.88950487 | F93: 26.88950487 | G93: 23.31082928 | H93: 27 | I93: 30 | J93: 32 | K93: 18 | L93: 21.25646732 | M93: 23.31082928
A94: 1900-01-04T20:00:00 | B94: ='Input Sheet'!B94 -> 22.9 | D94: 16.69948267 | E94: 21.88997914 | F94: 26.88997914 | G94: 23.31082928 | H94: 27 | I94: 30 | J94: 32 | K94: 18 | L94: 21.25799722 | M94: 23.31082928
A95: 1900-01-04T21:00:00 | B95: ='Input Sheet'!B95 -> 21.6 | D95: 16.69948267 | E95: 21.89049652 | F95: 26.89049652 | G95: 23.31082928 | H95: 27 | I95: 30 | J95: 32 | K95: 18 | L95: 21.2596662 | M95: 23.31082928
A96: 1900-01-04T22:00:00 | B96: ='Input Sheet'!B96 -> 20.3 | D96: 16.69948267 | E96: 21.89110014 | F96: 26.89110014 | G96: 23.31082928 | H96: 27 | I96: 30 | J96: 32 | K96: 18 | L96: 21.26161335 | M96: 23.31082928
A97: 1900-01-04T23:00:00 | B97: ='Input Sheet'!B97 -> 19 | C97: =AVERAGE(B74:B97) -> 22.90833333 | D97: 16.69948267 | E97: 21.8918331 | F97: 26.8918331 | G97: 23.31082928 | H97: 27 | I97: 30 | J97: 32 | K97: 18 | L97: 21.26397775 | M97: 23.31082928
A98: 1900-01-05 | B98: ='Input Sheet'!B98 -> 18.2 | D98: 16.69948267 | E98: 21.89260918 | F98: 26.89260918 | G98: 23.31082928 | H98: 27 | I98: 30 | J98: 32 | K98: 18 | L98: 21.26648122 | M98: 23.31082928
A99: 1900-01-05T01:00:00 | B99: ='Input Sheet'!B99 -> 17.2 | D99: 16.69948267 | E99: 21.8932128 | F99: 26.8932128 | G99: 23.31082928 | H99: 27 | I99: 30 | J99: 32 | K99: 18 | L99: 21.26842837 | M99: 23.31082928
A100: 1900-01-05T02:00:00 | B100: ='Input Sheet'!B100 -> 16.7 | D100: 16.69948267 | E100: 21.8940751 | F100: 26.8940751 | G100: 23.31082928 | H100: 27 | I100: 30 | J100: 32 | K100: 18 | L100: 21.27121001 | M100: 23.31082928
A101: 1900-01-05T03:00:00 | B101: ='Input Sheet'!B101 -> 16.2 | D101: 16.69948267 | E101: 21.89506676 | F101: 26.89506676 | G101: 23.31082928 | H101: 27 | I101: 30 | J101: 32 | K101: 18 | L101: 21.2744089 | M101: 23.31082928
A102: 1900-01-05T04:00:00 | B102: ='Input Sheet'!B102 -> 15.9 | D102: 16.69948267 | E102: 21.89618776 | F102: 26.89618776 | G102: 23.31082928 | H102: 27 | I102: 30 | J102: 32 | K102: 18 | L102: 21.27802503 | M102: 23.31082928
A103: 1900-01-05T05:00:00 | B103: ='Input Sheet'!B103 -> 16 | D103: 16.69948267 | E103: 21.89743811 | F103: 26.89743811 | G103: 23.31082928 | H103: 27 | I103: 30 | J103: 32 | K103: 18 | L103: 21.28205841 | M103: 23.31082928
A104: 1900-01-05T06:00:00 | B104: ='Input Sheet'!B104 -> 18.1 | D104: 16.69948267 | E104: 21.89851599 | F104: 26.89851599 | G104: 23.31082928 | H104: 27 | I104: 30 | J104: 32 | K104: 18 | L104: 21.28553547 | M104: 23.31082928
A105: 1900-01-05T07:00:00 | B105: ='Input Sheet'!B105 -> 20.3 | D105: 16.69948267 | E105: 21.89873157 | F105: 26.89873157 | G105: 23.31082928 | H105: 27 | I105: 30 | J105: 32 | K105: 18 | L105: 21.28623088 | M105: 23.31082928
A106: 1900-01-05T08:00:00 | B106: ='Input Sheet'!B106 -> 22.6 | D106: 16.69948267 | E106: 21.8982573 | F106: 26.8982573 | G106: 23.31082928 | H106: 27 | I106: 30 | J106: 32 | K106: 18 | L106: 21.28470097 | M106: 23.31082928
A107: 1900-01-05T09:00:00 | B107: ='Input Sheet'!B107 -> 24.6 | D107: 16.69948267 | E107: 21.89726565 | F107: 26.89726565 | G107: 23.31082928 | H107: 27 | I107: 30 | J107: 32 | K107: 18 | L107: 21.28150209 | M107: 23.31082928
A108: 1900-01-05T10:00:00 | B108: ='Input Sheet'!B108 -> 26.4 | D108: 16.69948267 | E108: 21.89610153 | F108: 26.89610153 | G108: 23.31082928 | H108: 27 | I108: 30 | J108: 32 | K108: 18 | L108: 21.27774687 | M108: 23.31082928
A109: 1900-01-05T11:00:00 | B109: ='Input Sheet'!B109 -> 27.8 | D109: 16.69948267 | E109: 21.89485118 | F109: 26.89485118 | G109: 23.31082928 | H109: 27 | I109: 30 | J109: 32 | K109: 18 | L109: 21.27371349 | M109: 23.31082928
A110: 1900-01-05T12:00:00 | B110: ='Input Sheet'!B110 -> 28.8 | D110: 16.69948267 | E110: 21.89403199 | F110: 26.89403199 | G110: 23.31082928 | H110: 27 | I110: 30 | J110: 32 | K110: 18 | L110: 21.27107093 | M110: 23.31082928
A111: 1900-01-05T13:00:00 | B111: ='Input Sheet'!B111 -> 29.4 | D111: 16.69948267 | E111: 21.89347149 | F111: 26.89347149 | G111: 23.31082928 | H111: 27 | I111: 30 | J111: 32 | K111: 18 | L111: 21.26926287 | M111: 23.31082928
A112: 1900-01-05T14:00:00 | B112: ='Input Sheet'!B112 -> 29.6 | D112: 16.69948267 | E112: 21.89247983 | F112: 26.89247983 | G112: 23.31082928 | H112: 27 | I112: 30 | J112: 32 | K112: 18 | L112: 21.26606398 | M112: 23.31082928
A113: 1900-01-05T15:00:00 | B113: ='Input Sheet'!B113 -> 29.3 | D113: 16.69948267 | E113: 21.89092768 | F113: 26.89092768 | G113: 23.31082928 | H113: 27 | I113: 30 | J113: 32 | K113: 18 | L113: 21.26105702 | M113: 23.31082928
A114: 1900-01-05T16:00:00 | B114: ='Input Sheet'!B114 -> 28.4 | D114: 16.69948267 | E114: 21.88915994 | F114: 26.88915994 | G114: 23.31082928 | H114: 27 | I114: 30 | J114: 32 | K114: 18 | L114: 21.25535466 | M114: 23.31082928
A115: 1900-01-05T17:00:00 | B115: ='Input Sheet'!B115 -> 26.9 | D115: 16.69948267 | E115: 21.88739221 | F115: 26.88739221 | G115: 23.31082928 | H115: 27 | I115: 30 | J115: 32 | K115: 18 | L115: 21.24965229 | M115: 23.31082928
A116: 1900-01-05T18:00:00 | B116: ='Input Sheet'!B116 -> 25.3 | D116: 16.69948267 | E116: 21.88601252 | F116: 26.88601252 | G116: 23.31082928 | H116: 27 | I116: 30 | J116: 32 | K116: 18 | L116: 21.24520167 | M116: 23.31082928
A117: 1900-01-05T19:00:00 | B117: ='Input Sheet'!B117 -> 24 | D117: 16.69948267 | E117: 21.88515021 | F117: 26.88515021 | G117: 23.31082928 | H117: 27 | I117: 30 | J117: 32 | K117: 18 | L117: 21.24242003 | M117: 23.31082928
A118: 1900-01-05T20:00:00 | B118: ='Input Sheet'!B118 -> 22.7 | D118: 16.69948267 | E118: 21.88450348 | F118: 26.88450348 | G118: 23.31082928 | H118: 27 | I118: 30 | J118: 32 | K118: 18 | L118: 21.2403338 | M118: 23.31082928
A119: 1900-01-05T21:00:00 | B119: ='Input Sheet'!B119 -> 21.4 | D119: 16.69948267 | E119: 21.88389986 | F119: 26.88389986 | G119: 23.31082928 | H119: 27 | I119: 30 | J119: 32 | K119: 18 | L119: 21.23838665 | M119: 23.31082928
A120: 1900-01-05T22:00:00 | B120: ='Input Sheet'!B120 -> 20.1 | D120: 16.69948267 | E120: 21.88394298 | F120: 26.88394298 | G120: 23.31082928 | H120: 27 | I120: 30 | J120: 32 | K120: 18 | L120: 21.23852573 | M120: 23.31082928
A121: 1900-01-05T23:00:00 | B121: ='Input Sheet'!B121 -> 18.9 | C121: =AVERAGE(B98:B121) -> 22.7 | D121: 16.69948267 | E121: 21.88437413 | F121: 26.88437413 | G121: 23.31082928 | H121: 27 | I121: 30 | J121: 32 | K121: 18 | L121: 21.23991655 | M121: 23.31082928
A122: 1900-01-06 | B122: ='Input Sheet'!B122 -> 18.1 | D122: 16.69948267 | E122: 21.88515021 | F122: 26.88515021 | G122: 23.31082928 | H122: 27 | I122: 30 | J122: 32 | K122: 18 | L122: 21.24242003 | M122: 23.31082928
A123: 1900-01-06T01:00:00 | B123: ='Input Sheet'!B123 -> 17.1 | D123: 16.69948267 | E123: 21.88614186 | F123: 26.88614186 | G123: 23.31082928 | H123: 27 | I123: 30 | J123: 32 | K123: 18 | L123: 21.24561892 | M123: 23.31082928
A124: 1900-01-06T02:00:00 | B124: ='Input Sheet'!B124 -> 16.6 | D124: 16.69948267 | E124: 21.88713352 | F124: 26.88713352 | G124: 23.31082928 | H124: 27 | I124: 30 | J124: 32 | K124: 18 | L124: 21.2488178 | M124: 23.31082928
A125: 1900-01-06T03:00:00 | B125: ='Input Sheet'!B125 -> 16.1 | D125: 16.69948267 | E125: 21.8879096 | F125: 26.8879096 | G125: 23.31082928 | H125: 27 | I125: 30 | J125: 32 | K125: 18 | L125: 21.25132128 | M125: 23.31082928
A126: 1900-01-06T04:00:00 | B126: ='Input Sheet'!B126 -> 15.7 | D126: 16.69948267 | E126: 21.88868567 | F126: 26.88868567 | G126: 23.31082928 | H126: 27 | I126: 30 | J126: 32 | K126: 18 | L126: 21.25382476 | M126: 23.31082928
A127: 1900-01-06T05:00:00 | B127: ='Input Sheet'!B127 -> 15.8 | D127: 16.69948267 | E127: 21.88937552 | F127: 26.88937552 | G127: 23.31082928 | H127: 27 | I127: 30 | J127: 32 | K127: 18 | L127: 21.25605007 | M127: 23.31082928
A128: 1900-01-06T06:00:00 | B128: ='Input Sheet'!B128 -> 17.6 | D128: 16.69948267 | E128: 21.88989291 | F128: 26.88989291 | G128: 23.31082928 | H128: 27 | I128: 30 | J128: 32 | K128: 18 | L128: 21.25771905 | M128: 23.31082928
A129: 1900-01-06T07:00:00 | B129: ='Input Sheet'!B129 -> 19.6 | D129: 16.69948267 | E129: 21.89019471 | F129: 26.89019471 | G129: 23.31082928 | H129: 27 | I129: 30 | J129: 32 | K129: 18 | L129: 21.25869263 | M129: 23.31082928
A130: 1900-01-06T08:00:00 | B130: ='Input Sheet'!B130 -> 21.6 | D130: =D131 -> 16.69948267 | E130: =L130*0.31+15.3 -> 21.89023783 | F130: =L130*0.31+20.3 -> 26.89023783 | G130: 23.31082928 | H130: 27 | I130: 30 | J130: 32 | K130: 18 | L130: 21.25883171 | M130: 23.31082928
A131: 1900-01-06T09:00:00 | B131: ='Input Sheet'!B131 -> 23.4 | D131: 16.69948267 | E131: 21.89036718 | F131: 26.89036718 | G131: =0.33*D131+17.8 -> 23.31082928 | H131: 27 | I131: 30 | J131: 32 | K131: 18 | L131: 21.25924896 | M131: =0.33*D131+17.8 -> 23.31082928
A132: 1900-01-06T10:00:00 | B132: ='Input Sheet'!B132 -> 25 | D132: 16.69948267 | E132: 21.89062587 | F132: 26.89062587 | G132: 23.31082928 | H132: 27 | I132: 30 | J132: 32 | K132: 18 | L132: =AVERAGE(B132:B466,B8508:B8891) -> 21.26008345 | M132: 23.31082928
A133: 1900-01-06T11:00:00 | B133: ='Input Sheet'!B133 -> 26.2 | D133: 16.69948267 | E133: 21.89118637 | F133: 26.89118637 | G133: 23.31082928 | H133: 27 | I133: 30 | J133: 32 | K133: 18 | L133: 21.26189152 | M133: 23.31082928
A134: 1900-01-06T12:00:00 | B134: ='Input Sheet'!B134 -> 27.1 | D134: 16.69948267 | E134: 21.89196245 | F134: 26.89196245 | G134: 23.31082928 | H134: 27 | I134: 30 | J134: 32 | K134: 18 | L134: 21.26439499 | M134: 23.31082928
A135: 1900-01-06T13:00:00 | B135: ='Input Sheet'!B135 -> 27.6 | D135: 16.69948267 | E135: 21.89282476 | F135: 26.89282476 | G135: 23.31082928 | H135: 27 | I135: 30 | J135: 32 | K135: 18 | L135: 21.26717663 | M135: 23.31082928
A136: 1900-01-06T14:00:00 | B136: ='Input Sheet'!B136 -> 27.7 | D136: 16.69948267 | E136: 21.89368707 | F136: 26.89368707 | G136: 23.31082928 | H136: 27 | I136: 30 | J136: 32 | K136: 18 | L136: 21.26995828 | M136: 23.31082928
A137: 1900-01-06T15:00:00 | B137: ='Input Sheet'!B137 -> 27.4 | D137: 16.69948267 | E137: 21.89450626 | F137: 26.89450626 | G137: 23.31082928 | H137: 27 | I137: 30 | J137: 32 | K137: 18 | L137: 21.27260083 | M137: 23.31082928
A138: 1900-01-06T16:00:00 | B138: ='Input Sheet'!B138 -> 26.6 | D138: 16.69948267 | E138: 21.89549791 | F138: 26.89549791 | G138: 23.31082928 | H138: 27 | I138: 30 | J138: 32 | K138: 18 | L138: 21.27579972 | M138: 23.31082928
A139: 1900-01-06T17:00:00 | B139: ='Input Sheet'!B139 -> 25.2 | D139: 16.69948267 | E139: 21.89640334 | F139: 26.89640334 | G139: 23.31082928 | H139: 27 | I139: 30 | J139: 32 | K139: 18 | L139: 21.27872045 | M139: 23.31082928
A140: 1900-01-06T18:00:00 | B140: ='Input Sheet'!B140 -> 23.7 | D140: 16.69948267 | E140: 21.89730876 | F140: 26.89730876 | G140: 23.31082928 | H140: 27 | I140: 30 | J140: 32 | K140: 18 | L140: 21.28164117 | M140: 23.31082928
A141: 1900-01-06T19:00:00 | B141: ='Input Sheet'!B141 -> 22.5 | D141: 16.69948267 | E141: 21.89821419 | F141: 26.89821419 | G141: 23.31082928 | H141: 27 | I141: 30 | J141: 32 | K141: 18 | L141: 21.28456189 | M141: 23.31082928
A142: 1900-01-06T20:00:00 | B142: ='Input Sheet'!B142 -> 21.3 | D142: 16.69948267 | E142: 21.89911961 | F142: 26.89911961 | G142: 23.31082928 | H142: 27 | I142: 30 | J142: 32 | K142: 18 | L142: 21.28748261 | M142: 23.31082928
A143: 1900-01-06T21:00:00 | B143: ='Input Sheet'!B143 -> 20.1 | D143: 16.69948267 | E143: 21.90002503 | F143: 26.90002503 | G143: 23.31082928 | H143: 27 | I143: 30 | J143: 32 | K143: 18 | L143: 21.29040334 | M143: 23.31082928
A144: 1900-01-06T22:00:00 | B144: ='Input Sheet'!B144 -> 19 | D144: 16.69948267 | E144: 21.90088734 | F144: 26.90088734 | G144: 23.31082928 | H144: 27 | I144: 30 | J144: 32 | K144: 18 | L144: 21.29318498 | M144: 23.31082928
A145: 1900-01-06T23:00:00 | B145: ='Input Sheet'!B145 -> 17.8 | C145: =AVERAGE(B122:B145) -> 21.61666667 | D145: =D146 -> 16.69948267 | E145: 21.90174965 | F145: 26.90174965 | G145: 23.31082928 | H145: 27 | I145: 30 | J145: 32 | K145: 18 | L145: 21.29596662 | M145: 23.31082928
A146: 1900-01-07 | B146: ='Input Sheet'!B146 -> 17.2 | D146: =(1-0.8)*(C145+0.8*C121+0.8^2*C97+0.8^3*C73+0.8^4*C49+0.8^5*C25) -> 16.69948267 | E146: 21.90261196 | F146: 26.90261196 | G146: 23.31082928 | H146: 27 | I146: 30 | J146: 32 | K146: 18 | L146: 21.29874826 | M146: 23.31082928
A147: 1900-01-07T01:00:00 | B147: ='Input Sheet'!B147 -> 16.6 | D147: =D146 -> 16.69948267 | E147: 21.90330181 | F147: 26.90330181 | G147: 23.31082928 | H147: 27 | I147: 30 | J147: 32 | K147: 18 | L147: 21.30097357 | M147: 23.31082928
A148: 1900-01-07T02:00:00 | B148: ='Input Sheet'!B148 -> 16.3 | D148: =D146 -> 16.69948267 | E148: 21.90399166 | F148: 26.90399166 | G148: 23.31082928 | H148: 27 | I148: 30 | J148: 32 | K148: 18 | L148: 21.30319889 | M148: 23.31082928
A149: 1900-01-07T03:00:00 | B149: ='Input Sheet'!B149 -> 16 | D149: =D146 -> 16.69948267 | E149: 21.90459527 | F149: 26.90459527 | G149: 23.31082928 | H149: 27 | I149: 30 | J149: 32 | K149: 18 | L149: 21.30514604 | M149: 23.31082928
A150: 1900-01-07T04:00:00 | B150: ='Input Sheet'!B150 -> 15.7 | D150: =D146 -> 16.69948267 | E150: 21.90528512 | F150: 26.90528512 | G150: 23.31082928 | H150: 27 | I150: 30 | J150: 32 | K150: 18 | L150: 21.30737135 | M150: 23.31082928
A151: 1900-01-07T05:00:00 | B151: ='Input Sheet'!B151 -> 15.8 | D151: =D146 -> 16.69948267 | E151: 21.90588873 | F151: 26.90588873 | G151: 23.31082928 | H151: 27 | I151: 30 | J151: 32 | K151: 18 | L151: 21.3093185 | M151: 23.31082928
A152: 1900-01-07T06:00:00 | B152: ='Input Sheet'!B152 -> 17.7 | D152: =D146 -> 16.69948267 | E152: 21.90631989 | F152: 26.90631989 | G152: 23.31082928 | H152: 27 | I152: 30 | J152: 32 | K152: 18 | L152: 21.31070932 | M152: 23.31082928
A153: 1900-01-07T07:00:00 | B153: ='Input Sheet'!B153 -> 19.7 | D153: =D146 -> 16.69948267 | E153: 21.90593185 | F153: 26.90593185 | G153: 23.31082928 | H153: 27 | I153: 30 | J153: 32 | K153: 18 | L153: 21.30945758 | M153: 23.31082928
A154: 1900-01-07T08:00:00 | B154: ='Input Sheet'!B154 -> 21.7 | D154: =D146 -> 16.69948267 | E154: 21.9055007 | F154: 26.9055007 | G154: 23.31082928 | H154: 27 | I154: 30 | J154: 32 | K154: 18 | L154: 21.30806676 | M154: 23.31082928
A155: 1900-01-07T09:00:00 | B155: ='Input Sheet'!B155 -> 23.5 | D155: =D146 -> 16.69948267 | E155: 21.905242 | F155: 26.905242 | G155: 23.31082928 | H155: 27 | I155: 30 | J155: 32 | K155: 18 | L155: 21.30723227 | M155: 23.31082928
A156: 1900-01-07T10:00:00 | B156: ='Input Sheet'!B156 -> 25.1 | D156: =D146 -> 16.69948267 | E156: 21.90519889 | F156: 26.90519889 | G156: 23.31082928 | H156: 27 | I156: 30 | J156: 32 | K156: 18 | L156: 21.30709318 | M156: 23.31082928
A157: 1900-01-07T11:00:00 | B157: ='Input Sheet'!B157 -> 26.4 | D157: =D146 -> 16.69948267 | E157: 21.90563004 | F157: 26.90563004 | G157: 23.31082928 | H157: 27 | I157: 30 | J157: 32 | K157: 18 | L157: 21.30848401 | M157: 23.31082928
A158: 1900-01-07T12:00:00 | B158: ='Input Sheet'!B158 -> 27.3 | D158: =D146 -> 16.69948267 | E158: 21.90640612 | F158: 26.90640612 | G158: 23.31082928 | H158: 27 | I158: 30 | J158: 32 | K158: 18 | L158: 21.31098748 | M158: 23.31082928
A159: 1900-01-07T13:00:00 | B159: ='Input Sheet'!B159 -> 27.9 | D159: =D146 -> 16.69948267 | E159: 21.90679416 | F159: 26.90679416 | G159: 23.31082928 | H159: 27 | I159: 30 | J159: 32 | K159: 18 | L159: 21.31223922 | M159: 23.31082928
A160: 1900-01-07T14:00:00 | B160: ='Input Sheet'!B160 -> 28.2 | D160: =D146 -> 16.69948267 | E160: 21.90688039 | F160: 26.90688039 | G160: 23.31082928 | H160: 27 | I160: 30 | J160: 32 | K160: 18 | L160: 21.31251739 | M160: 23.31082928
A161: 1900-01-07T15:00:00 | B161: ='Input Sheet'!B161 -> 28 | D161: =D146 -> 16.69948267 | E161: 21.90666481 | F161: 26.90666481 | G161: 23.31082928 | H161: 27 | I161: 30 | J161: 32 | K161: 18 | L161: 21.31182197 | M161: 23.31082928
A162: 1900-01-07T16:00:00 | B162: ='Input Sheet'!B162 -> 27.2 | D162: =D146 -> 16.69948267 | E162: 21.90623366 | F162: 26.90623366 | G162: 23.31082928 | H162: 27 | I162: 30 | J162: 32 | K162: 18 | L162: 21.31043115 | M162: 23.31082928
A163: 1900-01-07T17:00:00 | B163: ='Input Sheet'!B163 -> 25.9 | D163: =D146 -> 16.69948267 | E163: 21.90567316 | F163: 26.90567316 | G163: 23.31082928 | H163: 27 | I163: 30 | J163: 32 | K163: 18 | L163: 21.30862309 | M163: 23.31082928
A164: 1900-01-07T18:00:00 | B164: ='Input Sheet'!B164 -> 24.4 | D164: =D146 -> 16.69948267 | E164: 21.905242 | F164: 26.905242 | G164: 23.31082928 | H164: 27 | I164: 30 | J164: 32 | K164: 18 | L164: 21.30723227 | M164: 23.31082928
A165: 1900-01-07T19:00:00 | B165: ='Input Sheet'!B165 -> 23.7 | D165: =D146 -> 16.69948267 | E165: 21.90494019 | F165: 26.90494019 | G165: 23.31082928 | H165: 27 | I165: 30 | J165: 32 | K165: 18 | L165: 21.30625869 | M165: 23.31082928
A166: 1900-01-07T20:00:00 | B166: ='Input Sheet'!B166 -> 22.9 | D166: =D146 -> 16.69948267 | E166: 21.90455216 | F166: 26.90455216 | G166: 23.31082928 | H166: 27 | I166: 30 | J166: 32 | K166: 18 | L166: 21.30500695 | M166: 23.31082928
A167: 1900-01-07T21:00:00 | B167: ='Input Sheet'!B167 -> 22.1 | D167: =D146 -> 16.69948267 | E167: 21.90446592 | F167: 26.90446592 | G167: 23.31082928 | H167: 27 | I167: 30 | J167: 32 | K167: 18 | L167: 21.30472879 | M167: 23.31082928
A168: 1900-01-07T22:00:00 | B168: ='Input Sheet'!B168 -> 21.4 | D168: =D146 -> 16.69948267 | E168: 21.9046815 | F168: 26.9046815 | G168: 23.31082928 | H168: 27 | I168: 30 | J168: 32 | K168: 18 | L168: 21.3054242 | M168: 23.31082928
A169: 1900-01-07T23:00:00 | B169: ='Input Sheet'!B169 -> 20.6 | C169: =AVERAGE(B146:B169) -> 22.1375 | D169: =D146 -> 16.69948267 | E169: 21.90511266 | F169: 26.90511266 | G169: 23.31082928 | H169: 27 | I169: 30 | J169: 32 | K169: 18 | L169: 21.30681502 | M169: 23.31082928
A170: 1900-01-08 | B170: ='Input Sheet'!B170 -> 20.2 | D170: =(1-0.8)*C169+0.8*D146 -> 17.78708613 | E170: 21.90584562 | F170: 26.90584562 | G170: 23.66973842 | H170: 27 | I170: 30 | J170: 32 | K170: 18 | L170: 21.30917942 | M170: 23.66973842
A171: 1900-01-08T01:00:00 | B171: ='Input Sheet'!B171 -> 19.8 | D171: =D170 -> 17.78708613 | E171: 21.90670793 | F171: 26.90670793 | G171: 23.66973842 | H171: 27 | I171: 30 | J171: 32 | K171: 18 | L171: 21.31196106 | M171: 23.66973842
A172: 1900-01-08T02:00:00 | B172: ='Input Sheet'!B172 -> 19.6 | D172: =D170 -> 17.78708613 | E172: 21.90696662 | F172: 26.90696662 | G172: 23.66973842 | H172: 27 | I172: 30 | J172: 32 | K172: 18 | L172: 21.31279555 | M172: 23.66973842
A173: 1900-01-08T03:00:00 | B173: ='Input Sheet'!B173 -> 19.4 | D173: =D170 -> 17.78708613 | E173: 21.90808762 | F173: 26.90808762 | G173: 23.66973842 | H173: 27 | I173: 30 | J173: 32 | K173: 18 | L173: 21.31641168 | M173: 23.66973842
A174: 1900-01-08T04:00:00 | B174: ='Input Sheet'!B174 -> 19.3 | D174: =D170 -> 17.78708613 | E174: 21.90951043 | F174: 26.90951043 | G174: 23.66973842 | H174: 27 | I174: 30 | J174: 32 | K174: 18 | L174: 21.32100139 | M174: 23.66973842
A175: 1900-01-08T05:00:00 | B175: ='Input Sheet'!B175 -> 19.1 | D175: =D170 -> 17.78708613 | E175: 21.91093324 | F175: 26.91093324 | G175: 23.66973842 | H175: 27 | I175: 30 | J175: 32 | K175: 18 | L175: 21.3255911 | M175: 23.66973842
A176: 1900-01-08T06:00:00 | B176: ='Input Sheet'!B176 -> 20 | D176: =D170 -> 17.78708613 | E176: 21.91244228 | F176: 26.91244228 | G176: 23.66973842 | H176: 27 | I176: 30 | J176: 32 | K176: 18 | L176: 21.33045897 | M176: 23.66973842
A177: 1900-01-08T07:00:00 | B177: ='Input Sheet'!B177 -> 20.5 | D177: =D170 -> 17.78708613 | E177: 21.91339082 | F177: 26.91339082 | G177: 23.66973842 | H177: 27 | I177: 30 | J177: 32 | K177: 18 | L177: 21.33351878 | M177: 23.66973842
A178: 1900-01-08T08:00:00 | B178: ='Input Sheet'!B178 -> 20.5 | D178: =D170 -> 17.78708613 | E178: 21.91373574 | F178: 26.91373574 | G178: 23.66973842 | H178: 27 | I178: 30 | J178: 32 | K178: 18 | L178: 21.33463143 | M178: 23.66973842
A179: 1900-01-08T09:00:00 | B179: ='Input Sheet'!B179 -> 21.1 | D179: =D170 -> 17.78708613 | E179: 21.9141669 | F179: 26.9141669 | G179: 23.66973842 | H179: 27 | I179: 30 | J179: 32 | K179: 18 | L179: 21.33602225 | M179: 23.66973842
A180: 1900-01-08T10:00:00 | B180: ='Input Sheet'!B180 -> 21.8 | D180: =D170 -> 17.78708613 | E180: 21.91464117 | F180: 26.91464117 | G180: 23.66973842 | H180: 27 | I180: 30 | J180: 32 | K180: 18 | L180: 21.33755216 | M180: 23.66973842
A181: 1900-01-08T11:00:00 | B181: ='Input Sheet'!B181 -> 22.2 | D181: =D170 -> 17.78708613 | E181: 21.9147274 | F181: 26.9147274 | G181: 23.66973842 | H181: 27 | I181: 30 | J181: 32 | K181: 18 | L181: 21.33783032 | M181: 23.66973842
A182: 1900-01-08T12:00:00 | B182: ='Input Sheet'!B182 -> 22.6 | D182: =D170 -> 17.78708613 | E182: 21.91481363 | F182: 26.91481363 | G182: 23.66973842 | H182: 27 | I182: 30 | J182: 32 | K182: 18 | L182: 21.33810848 | M182: 23.66973842
A183: 1900-01-08T13:00:00 | B183: ='Input Sheet'!B183 -> 22.7 | D183: =D170 -> 17.78708613 | E183: 21.91485675 | F183: 26.91485675 | G183: 23.66973842 | H183: 27 | I183: 30 | J183: 32 | K183: 18 | L183: 21.33824757 | M183: 23.66973842
A184: 1900-01-08T14:00:00 | B184: ='Input Sheet'!B184 -> 22.8 | D184: =D170 -> 17.78708613 | E184: 21.9147274 | F184: 26.9147274 | G184: 23.66973842 | H184: 27 | I184: 30 | J184: 32 | K184: 18 | L184: 21.33783032 | M184: 23.66973842
A185: 1900-01-08T15:00:00 | B185: ='Input Sheet'!B185 -> 22.6 | D185: =D170 -> 17.78708613 | E185: 21.91459805 | F185: 26.91459805 | G185: 23.66973842 | H185: 27 | I185: 30 | J185: 32 | K185: 18 | L185: 21.33741307 | M185: 23.66973842
A186: 1900-01-08T16:00:00 | B186: ='Input Sheet'!B186 -> 22.3 | D186: =D170 -> 17.78708613 | E186: 21.91459805 | F186: 26.91459805 | G186: 23.66973842 | H186: 27 | I186: 30 | J186: 32 | K186: 18 | L186: 21.33741307 | M186: 23.66973842
A187: 1900-01-08T17:00:00 | B187: ='Input Sheet'!B187 -> 21.5 | D187: =D170 -> 17.78708613 | E187: 21.91468428 | F187: 26.91468428 | G187: 23.66973842 | H187: 27 | I187: 30 | J187: 32 | K187: 18 | L187: 21.33769124 | M187: 23.66973842
A188: 1900-01-08T18:00:00 | B188: ='Input Sheet'!B188 -> 21.6 | D188: =D170 -> 17.78708613 | E188: 21.91489986 | F188: 26.91489986 | G188: 23.66973842 | H188: 27 | I188: 30 | J188: 32 | K188: 18 | L188: 21.33838665 | M188: 23.66973842
A189: 1900-01-08T19:00:00 | B189: ='Input Sheet'!B189 -> 21.1 | D189: =D170 -> 17.78708613 | E189: 21.91541725 | F189: 26.91541725 | G189: 23.66973842 | H189: 27 | I189: 30 | J189: 32 | K189: 18 | L189: 21.34005563 | M189: 23.66973842
A190: 1900-01-08T20:00:00 | B190: ='Input Sheet'!B190 -> 20.6 | D190: =D170 -> 17.78708613 | E190: 21.91623644 | F190: 26.91623644 | G190: 23.66973842 | H190: 27 | I190: 30 | J190: 32 | K190: 18 | L190: 21.34269819 | M190: 23.66973842
A191: 1900-01-08T21:00:00 | B191: ='Input Sheet'!B191 -> 19.7 | D191: =D170 -> 17.78708613 | E191: 21.91718498 | F191: 26.91718498 | G191: 23.66973842 | H191: 27 | I191: 30 | J191: 32 | K191: 18 | L191: 21.345758 | M191: 23.66973842
A192: 1900-01-08T22:00:00 | B192: ='Input Sheet'!B192 -> 17.6 | D192: =D170 -> 17.78708613 | E192: 21.91804729 | F192: 26.91804729 | G192: 23.66973842 | H192: 27 | I192: 30 | J192: 32 | K192: 18 | L192: 21.34853964 | M192: 23.66973842
A193: 1900-01-08T23:00:00 | B193: ='Input Sheet'!B193 -> 18.2 | C193: =AVERAGE(B170:B193) -> 20.7 | D193: =D170 -> 17.78708613 | E193: 21.91955633 | F193: 26.91955633 | G193: 23.66973842 | H193: 27 | I193: 30 | J193: 32 | K193: 18 | L193: 21.35340751 | M193: 23.66973842
A194: 1900-01-09 | B194: ='Input Sheet'!B194 -> 17.5 | D194: =(1-0.8)*C193+0.8*D170 -> 18.36966891 | E194: =L194*0.31+15.3 -> 21.92132406 | F194: =L194*0.31+20.3 -> 26.92132406 | G194: 23.86199074 | H194: 27 | I194: 30 | J194: 32 | K194: 18 | L194: 21.35910987 | M194: 23.86199074
A195: 1900-01-09T01:00:00 | B195: ='Input Sheet'!B195 -> 18 | D195: =D194 -> 18.36966891 | E195: 21.92317803 | F195: 26.92317803 | G195: =0.33*D195+17.8 -> 23.86199074 | H195: 27 | I195: 30 | J195: 32 | K195: 18 | L195: 21.3650904 | M195: =0.33*D195+17.8 -> 23.86199074
A196: 1900-01-09T02:00:00 | B196: ='Input Sheet'!B196 -> 17.9 | D196: =D194 -> 18.36966891 | E196: 21.92503199 | F196: 26.92503199 | G196: 23.86199074 | H196: 27 | I196: 30 | J196: 32 | K196: 18 | L196: =AVERAGE(B196:B530,B8572:B8955) -> 21.37107093 | M196: 23.86199074
A197: 1900-01-09T03:00:00 | B197: ='Input Sheet'!B197 -> 17.4 | D197: =D194 -> 18.36966891 | E197: 21.92662726 | F197: 26.92662726 | G197: 23.86199074 | H197: 27 | I197: 30 | J197: 32 | K197: 18 | L197: 21.37621697 | M197: 23.86199074
A198: 1900-01-09T04:00:00 | B198: ='Input Sheet'!B198 -> 17 | D198: =D194 -> 18.36966891 | E198: 21.92822253 | F198: 26.92822253 | G198: 23.86199074 | H198: 27 | I198: 30 | J198: 32 | K198: 18 | L198: 21.381363 | M198: 23.86199074
A199: 1900-01-09T05:00:00 | B199: ='Input Sheet'!B199 -> 17.6 | D199: =D194 -> 18.36966891 | E199: 21.92977469 | F199: 26.92977469 | G199: 23.86199074 | H199: 27 | I199: 30 | J199: 32 | K199: 18 | L199: 21.38636996 | M199: 23.86199074
A200: 1900-01-09T06:00:00 | B200: ='Input Sheet'!B200 -> 18.4 | D200: =D194 -> 18.36966891 | E200: 21.93106815 | F200: 26.93106815 | G200: 23.86199074 | H200: 27 | I200: 30 | J200: 32 | K200: 18 | L200: 21.39054242 | M200: 23.86199074
... 4300 more rows

Sheet Psychrometric
A1: M | B1: W | C1: fcl | D1: tcl | E1: tr | F1: hc | G1: ta | H1: e | I1: pa | J1: lcl | K1: rcl | L1: V | M1: PMV | N1: PPD | O1: HR% | P1: rho ? | Q1: Pws | R1: coef | S1: Pw | T1: Td
A2: ='Input Sheet'!E2*58.2 -> 58.2 | B2: 0 | C2: =(1+0.2*K2) -> 1.0155 | D2: =tclcalcul!B2 -> 29.07377857 | E2: =IF('Input Sheet'!C2>0,'Input Sheet'!C2,Psychrometric!G2) -> 19.8 | F2: =IF((2.38*ABS(D2-G2)^0.25)>(12.1*SQRT(L2)),(2.38*ABS(D2-G2)^0.25),(12.1*SQRT(L2))) -> 4.686309849 | G2: ='Input Sheet'!B2 -> 19.8 | H2: 2.718 | I2: =S2*100 -> 2194.849414 | J2: ='Input Sheet'!F2 -> 0.5 | K2: =0.155*J2 -> 0.0775 | L2: =IF('Input Sheet'!D2>0,'Input Sheet'!D2,0.15) -> 0.15 | M2: =(0.303*EXP(-0.036*A2)+0.028)*((A2-B2)-3.96*(10^-8)*C2*((D2+273)^4-(E2+273)^4)-C2*F2*(D2-G2)-3.05*10^-3*(5733-6.99*(A2-B2)-I2)-0.42*((A2-B2)-58.15)-1.773*10^-5*A2*(5867-I2)-0.0014*A2*(34-G2)) -> -2.592648757 | N2: =1-0.95*EXP(-(0.3353*M2^4+0.2179*M2^2)) -> 0.9999999422 | O2: ='Input Sheet'!A2 -> 95 | P2: =1-(273.15+G2)/647.096 -> 0.5472851014 | Q2: =220640*EXP((647.096/(G2+273.15))*R2) -> 23.10367804 | R2: =(-7.85951783*P2)+(1.84408259*P2^1.5)-(11.7866497*P2^3)+(22.6807411*P2^3.5)-(15.9618719*P2^4)+(1.80122502*P2^7.5) -> -4.148813273 | S2: =O2*Q2/100 -> 21.94849414 | T2: =240.7263/((7.591386/LOG10(S2/6.116441))-1) -> 18.98398805
A3: =A2 -> 58.2 | B3: 0 | C3: =(1+0.2*K3) -> 1.0155 | D3: =tclcalcul!B3 -> 29.39277128 | E3: =IF('Input Sheet'!C3>0,'Input Sheet'!C3,Psychrometric!G3) -> 20.6 | F3: =IF((2.38*ABS(D3-G3)^0.25)>(12.1*SQRT(L3)),(2.38*ABS(D3-G3)^0.25),(12.1*SQRT(L3))) -> 4.686309849 | G3: ='Input Sheet'!B3 -> 20.6 | H3: 2.718 | I3: =S3*100 -> 2039.157856 | J3: =J2 -> 0.5 | K3: =0.155*J3 -> 0.0775 | L3: =IF('Input Sheet'!D3>0,'Input Sheet'!D3,0.15) -> 0.15 | M3: =(0.303*EXP(-0.036*A3)+0.028)*((A3-B3)-3.96*(10^-8)*C3*((D3+273)^4-(E3+273)^4)-C3*F3*(D3-G3)-3.05*10^-3*(5733-6.99*(A3-B3)-I3)-0.42*((A3-B3)-58.15)-1.773*10^-5*A3*(5867-I3)-0.0014*A3*(34-G3)) -> -2.361175381 | N3: =1-0.95*EXP(-(0.3353*M3^4+0.2179*M3^2)) -> 0.9999916061 | O3: ='Input Sheet'!A3 -> 84 | P3: =1-(273.15+G3)/647.096 -> 0.5460488088 | Q3: =220640*EXP((647.096/(G3+273.15))*R3) -> 24.27568877 | R3: =(-7.85951783*P3)+(1.84408259*P3^1.5)-(11.7866497*P3^3)+(22.6807411*P3^3.5)-(15.9618719*P3^4)+(1.80122502*P3^7.5) -> -4.137679903 | S3: =O3*Q3/100 -> 20.39157856 | T3: =240.7263/((7.591386/LOG10(S3/6.116441))-1) -> 17.80992997
A4: =A3 -> 58.2 | B4: 0 | C4: 1.0155 | D4: =tclcalcul!B4 -> 29.31292948 | E4: =IF('Input Sheet'!C4>0,'Input Sheet'!C4,Psychrometric!G4) -> 20.4 | F4: 4.686309849 | G4: ='Input Sheet'!B4 -> 20.4 | H4: 2.718 | I4: 2086.078493 | J4: =J3 -> 0.5 | K4: =0.155*J4 -> 0.0775 | L4: =IF('Input Sheet'!D4>0,'Input Sheet'!D4,0.15) -> 0.15 | M4: -2.416991371 | N4: =1-0.95*EXP(-(0.3353*M4^4+0.2179*M4^2)) -> 0.9999971468 | O4: ='Input Sheet'!A4 -> 87 | P4: 0.546357882 | Q4: 23.97791372 | R4: =(-7.85951783*P4)+(1.84408259*P4^1.5)-(11.7866497*P4^3)+(22.6807411*P4^3.5)-(15.9618719*P4^4)+(1.80122502*P4^7.5) -> -4.140461721 | S4: =O4*Q4/100 -> 20.86078493 | T4: =240.7263/((7.591386/LOG10(S4/6.116441))-1) -> 18.17180095
A5: 58.2 | B5: 0 | C5: =(1+0.2*K5) -> 1.0155 | D5: =tclcalcul!B5 -> 29.27303183 | E5: =IF('Input Sheet'!C5>0,'Input Sheet'!C5,Psychrometric!G5) -> 20.3 | F5: 4.686309849 | G5: ='Input Sheet'!B5 -> 20.3 | H5: 2.718 | I5: 1954.078727 | J5: 0.5 | K5: 0.0775 | L5: =IF('Input Sheet'!D5>0,'Input Sheet'!D5,0.15) -> 0.15 | M5: -2.486306071 | N5: 0.9999993269 | O5: ='Input Sheet'!A5 -> 82 | P5: =1-(273.15+G5)/647.096 -> 0.5465124186 | Q5: =220640*EXP((647.096/(G5+273.15))*R5) -> 23.83022838 | R5: -4.14185301 | S5: 19.54078727 | T5: 17.1347174
A6: 58.2 | B6: 0 | C6: 1.0155 | D6: =tclcalcul!B6 -> 29.23315015 | E6: =IF('Input Sheet'!C6>0,'Input Sheet'!C6,Psychrometric!G6) -> 20.2 | F6: 4.686309849 | G6: ='Input Sheet'!B6 -> 20.2 | H6: 2.718 | I6: 1965.717189 | J6: 0.5 | K6: 0.0775 | L6: =IF('Input Sheet'!D6>0,'Input Sheet'!D6,0.15) -> 0.15 | M6: -2.517331548 | N6: 0.9999996608 | O6: ='Input Sheet'!A6 -> 83 | P6: 0.5466669551 | Q6: 23.68333962 | R6: -4.143244554 | S6: 19.65717189 | T6: 17.22858864
A7: 58.2 | B7: 0 | C7: 1.0155 | D7: =tclcalcul!B7 -> 29.27303183 | E7: =IF('Input Sheet'!C7>0,'Input Sheet'!C7,Psychrometric!G7) -> 20.3 | F7: 4.686309849 | G7: ='Input Sheet'!B7 -> 20.3 | H7: 2.718 | I7: 2001.739184 | J7: 0.5 | K7: 0.0775 | L7: =IF('Input Sheet'!D7>0,'Input Sheet'!D7,0.15) -> 0.15 | M7: -2.473605653 | N7: 0.9999991151 | O7: ='Input Sheet'!A7 -> 84 | P7: 0.5465124186 | Q7: 23.83022838 | R7: -4.14185301 | S7: 20.01739184 | T7: 17.5160692
A8: 58.2 | B8: 0 | C8: 1.0155 | D8: =tclcalcul!B8 -> 29.63267171 | E8: =IF('Input Sheet'!C8>0,'Input Sheet'!C8,Psychrometric!G8) -> 21.2 | F8: 4.686309849 | G8: ='Input Sheet'!B8 -> 21.2 | H8: 2.718 | I8: 2015.081118 | J8: 0.5 | K8: 0.0775 | L8: =IF('Input Sheet'!D8>0,'Input Sheet'!D8,0.15) -> 0.15 | M8: -2.162317049 | N8: 0.9997751842 | O8: ='Input Sheet'!A8 -> 80 | P8: 0.5451215894 | Q8: 25.18851398 | R8: -4.12934054 | S8: 20.15081118 | T8: 17.62139622
A9: 58.2 | B9: 0 | C9: 1.0155 | D9: =tclcalcul!B9 -> 30.1141685 | E9: =IF('Input Sheet'!C9>0,'Input Sheet'!C9,Psychrometric!G9) -> 22.4 | F9: 4.686309849 | G9: ='Input Sheet'!B9 -> 22.4 | H9: 2.718 | I9: 2032.846266 | J9: 0.5 | K9: 0.0775 | L9: =IF('Input Sheet'!D9>0,'Input Sheet'!D9,0.15) -> 0.15 | M9: -1.745606999 | N9: 0.978258992 | O9: ='Input Sheet'!A9 -> 75 | P9: 0.5432671505 | Q9: 27.10461688 | R9: -4.112689133 | S9: 20.32846266 | T9: 17.76069646
A10: 58.2 | B10: 0 | C10: 1.0155 | D10: =tclcalcul!B10 -> 30.5979374 | E10: =IF('Input Sheet'!C10>0,'Input Sheet'!C10,Psychrometric!G10) -> 23.6 | F10: 4.686309849 | G10: ='Input Sheet'!B10 -> 23.6 | H10: 2.718 | I10: 2040.281913 | J10: 0.5 | K10: 0.0775 | L10: =IF('Input Sheet'!D10>0,'Input Sheet'!D10,0.15) -> 0.15 | M10: -1.329735545 | N10: 0.7734761985 | O10: ='Input Sheet'!A10 -> 70 | P10: 0.5414127116 | Q10: 29.14688447 | R10: -4.096073992 | S10: 20.40281913 | T10: 17.81868414
A11: 58.2 | B11: 0 | C11: 1.0155 | D11: =tclcalcul!B11 -> 31.04340015 | E11: =IF('Input Sheet'!C11>0,'Input Sheet'!C11,Psychrometric!G11) -> 24.7 | F11: 4.686309849 | G11: ='Input Sheet'!B11 -> 24.7 | H11: 2.718 | I11: 2086.09227 | J11: 0.5 | K11: 0.0775 | L11: =IF('Input Sheet'!D11>0,'Input Sheet'!D11,0.15) -> 0.15 | M11: -0.9364372834 | N11: 0.3935978301 | O11: ='Input Sheet'!A11 -> 67 | P11: 0.5397128092 | Q11: 31.13570553 | R11: -4.080875139 | S11: 20.8609227 | T11: 18.17190615
A12: 58.2 | B12: 0 | C12: 1.0155 | D12: =tclcalcul!B12 -> 31.36858603 | E12: =IF('Input Sheet'!C12>0,'Input Sheet'!C12,Psychrometric!G12) -> 25.5 | F12: 4.686309849 | G12: ='Input Sheet'!B12 -> 25.5 | H12: 2.718 | I12: 1991.986956 | J12: 0.5 | K12: 0.0775 | L12: =IF('Input Sheet'!D12>0,'Input Sheet'!D12,0.15) -> 0.15 | M12: -0.6833356018 | N12: 0.2024015308 | O12: ='Input Sheet'!A12 -> 61 | P12: 0.5384765166 | Q12: 32.65552386 | R12: -4.06984038 | S12: 19.91986956 | T12: 17.43869058
A13: 58.2 | B13: 0 | C13: 1.0155 | D13: =tclcalcul!B13 -> 31.65396505 | E13: =IF('Input Sheet'!C13>0,'Input Sheet'!C13,Psychrometric!G13) -> 26.2 | F13: 4.686309849 | G13: ='Input Sheet'!B13 -> 26.2 | H13: 2.718 | I13: 2042.281545 | J13: 0.5 | K13: 0.0775 | L13: =IF('Input Sheet'!D13>0,'Input Sheet'!D13,0.15) -> 0.15 | M13: -0.4258179922 | N13: 0.09681410948 | O13: ='Input Sheet'!A13 -> 60 | P13: 0.5373947606 | Q13: 34.03802575 | R13: -4.060198009 | S13: 20.42281545 | T13: 17.83424685
A14: 58.2 | B14: 0 | C14: 1.0155 | D14: =tclcalcul!B14 -> 31.81739265 | E14: =IF('Input Sheet'!C14>0,'Input Sheet'!C14,Psychrometric!G14) -> 26.6 | F14: 4.686309849 | G14: ='Input Sheet'!B14 -> 26.6 | H14: 2.718 | I14: 2056.191795 | J14: 0.5 | K14: 0.0775 | L14: =IF('Input Sheet'!D14>0,'Input Sheet'!D14,0.15) -> 0.15 | M14: -0.2823188423 | N14: 0.06834326871 | O14: ='Input Sheet'!A14 -> 59 | P14: 0.5367766143 | Q14: 34.85070839 | R14: -4.054693531 | S14: 20.56191795 | T14: 17.942139
A15: 58.2 | B15: 0 | C15: 1.0155 | D15: =tclcalcul!B15 -> 31.94013244 | E15: =IF('Input Sheet'!C15>0,'Input Sheet'!C15,Psychrometric!G15) -> 26.9 | F15: 4.686309849 | G15: ='Input Sheet'!B15 -> 26.9 | H15: 2.718 | I15: 2057.33341 | J15: 0.5 | K15: 0.0775 | L15: =IF('Input Sheet'!D15>0,'Input Sheet'!D15,0.15) -> 0.15 | M15: -0.1770276682 | N15: 0.05677584716 | O15: ='Input Sheet'!A15 -> 58 | P15: 0.5363130046 | Q15: 35.47126569 | R15: -4.050567768 | S15: 20.5733341 | T15: 17.95096527
A16: 58.2 | B16: 0 | C16: 1.0155 | D16: =tclcalcul!B16 -> 31.9810782 | E16: =IF('Input Sheet'!C16>0,'Input Sheet'!C16,Psychrometric!G16) -> 27 | F16: 4.686309849 | G16: ='Input Sheet'!B16 -> 27 | H16: 2.718 | I16: 2105.134529 | J16: 0.5 | K16: 0.0775 | L16: =IF('Input Sheet'!D16>0,'Input Sheet'!D16,0.15) -> 0.15 | M16: -0.1292670542 | N16: 0.05354137281 | O16: ='Input Sheet'!A16 -> 59 | P16: 0.536158468 | Q16: 35.68024626 | R16: -4.049193008 | S16: 21.05134529 | T16: 18.31673362
A17: 58.2 | B17: 0 | C17: 1.0155 | D17: =tclcalcul!B17 -> 31.89920315 | E17: =IF('Input Sheet'!C17>0,'Input Sheet'!C17,Psychrometric!G17) -> 26.8 | F17: 4.686309849 | G17: ='Input Sheet'!B17 -> 26.8 | H17: 2.718 | I17: 2186.327839 | J17: 0.5 | K17: 0.0775 | L17: =IF('Input Sheet'!D17>0,'Input Sheet'!D17,0.15) -> 0.15 | M17: -0.1776629242 | N17: 0.05682663782 | O17: ='Input Sheet'!A17 -> 62 | P17: 0.5364675411 | Q17: 35.26335224 | R17: -4.051942776 | S17: 21.86327839 | T17: 18.92164711
A18: 58.2 | B18: 0 | C18: 1.0155 | D18: =tclcalcul!B18 -> 31.69479797 | E18: =IF('Input Sheet'!C18>0,'Input Sheet'!C18,Psychrometric!G18) -> 26.3 | F18: 4.686309849 | G18: ='Input Sheet'!B18 -> 26.3 | H18: 2.718 | I18: 2567.972405 | J18: 0.5 | K18: 0.0775 | L18: =IF('Input Sheet'!D18>0,'Input Sheet'!D18,0.15) -> 0.15 | M18: -0.2508057893 | N18: 0.06417492942 | O18: ='Input Sheet'!A18 -> 75 | P18: 0.537240224 | Q18: 34.23963207 | R18: -4.058821518 | S18: 25.67972405 | T18: 21.52528536
A19: 58.2 | B19: 0 | C19: 1.0155 | D19: =tclcalcul!B19 -> 31.36858603 | E19: =IF('Input Sheet'!C19>0,'Input Sheet'!C19,Psychrometric!G19) -> 25.5 | F19: 4.686309849 | G19: ='Input Sheet'!B19 -> 25.5 | H19: 2.718 | I19: 2710.40848 | J19: 0.5 | K19: 0.0775 | L19: =IF('Input Sheet'!D19>0,'Input Sheet'!D19,0.15) -> 0.15 | M19: -0.4918927492 | N19: 0.1163072261 | O19: ='Input Sheet'!A19 -> 83 | P19: 0.5384765166 | Q19: 32.65552386 | R19: -4.06984038 | S19: 27.1040848 | T19: 22.41059313
A20: 58.2 | B20: 0 | C20: 1.0155 | D20: =tclcalcul!B20 -> 30.96226351 | E20: =IF('Input Sheet'!C20>0,'Input Sheet'!C20,Psychrometric!G20) -> 24.5 | F20: 4.686309849 | G20: ='Input Sheet'!B20 -> 24.5 | H20: 2.718 | I20: 2707.36719 | J20: 0.5 | K20: 0.0775 | L20: =IF('Input Sheet'!D20>0,'Input Sheet'!D20,0.15) -> 0.15 | M20: -0.8402917815 | N20: 0.3108654204 | O20: ='Input Sheet'!A20 -> 88 | P20: 0.5400218824 | Q20: 30.76553625 | R20: -4.083636319 | S20: 27.0736719 | T20: 22.39212004
A21: 58.2 | B21: 0 | C21: 1.0155 | D21: =tclcalcul!B21 -> 30.84067799 | E21: =IF('Input Sheet'!C21>0,'Input Sheet'!C21,Psychrometric!G21) -> 24.2 | F21: 4.686309849 | G21: ='Input Sheet'!B21 -> 24.2 | H21: 2.718 | I21: 2598.703538 | J21: 0.5 | K21: 0.0775 | L21: =IF('Input Sheet'!D21>0,'Input Sheet'!D21,0.15) -> 0.15 | M21: -0.9732623077 | N21: 0.4279614939 | O21: ='Input Sheet'!A21 -> 86 | P21: 0.5404854921 | Q21: 30.217483 | R21: -4.08777996 | S21: 25.98703538 | T21: 21.71986639
A22: 58.2 | B22: 0 | C22: 1.0155 | D22: =tclcalcul!B22 -> 30.51715087 | E22: =IF('Input Sheet'!C22>0,'Input Sheet'!C22,Psychrometric!G22) -> 23.4 | F22: 4.686309849 | G22: ='Input Sheet'!B22 -> 23.4 | H22: 2.718 | I22: 2591.77093 | J22: 0.5 | K22: 0.0775 | L22: =IF('Input Sheet'!D22>0,'Input Sheet'!D22,0.15) -> 0.15 | M22: -1.251891468 | N22: 0.7036940473 | O22: ='Input Sheet'!A22 -> 90 | P22: 0.5417217847 | Q22: 28.79745478 | R22: -4.098840672 | S22: 25.9177093 | T22: 21.67614765
A23: 58.2 | B23: 0 | C23: 1.0155 | D23: =tclcalcul!B23 -> 30.31546177 | E23: =IF('Input Sheet'!C23>0,'Input Sheet'!C23,Psychrometric!G23) -> 22.9 | F23: 4.686309849 | G23: ='Input Sheet'!B23 -> 22.9 | H23: 2.718 | I23: 2402.826097 | J23: 0.5 | K23: 0.0775 | L23: =IF('Input Sheet'!D23>0,'Input Sheet'!D23,0.15) -> 0.15 | M23: -1.474794869 | N23: 0.8789362153 | O23: ='Input Sheet'!A23 -> 86 | P23: 0.5424944676 | Q23: 27.93983834 | R23: -4.105761761 | S23: 24.02826097 | T23: 20.44332076
A24: 58.2 | B24: 0 | C24: 1.0155 | D24: =tclcalcul!B24 -> 30.1141685 | E24: =IF('Input Sheet'!C24>0,'Input Sheet'!C24,Psychrometric!G24) -> 22.4 | F24: 4.686309849 | G24: ='Input Sheet'!B24 -> 22.4 | H24: 2.718 | I24: 2330.997051 | J24: 0.5 | K24: 0.0775 | L24: =IF('Input Sheet'!D24>0,'Input Sheet'!D24,0.15) -> 0.15 | M24: -1.666156656 | N24: 0.9608449828 | O24: ='Input Sheet'!A24 -> 86 | P24: 0.5432671505 | Q24: 27.10461688 | R24: -4.112689133 | S24: 23.30997051 | T24: 19.95227825
A25: 58.2 | B25: 0 | C25: 1.0155 | D25: =tclcalcul!B25 -> 29.87313698 | E25: =IF('Input Sheet'!C25>0,'Input Sheet'!C25,Psychrometric!G25) -> 21.8 | F25: 4.686309849 | G25: ='Input Sheet'!B25 -> 21.8 | H25: 2.718 | I25: 2351.809475 | J25: 0.5 | K25: 0.0775 | L25: =IF('Input Sheet'!D25>0,'Input Sheet'!D25,0.15) -> 0.15 | M25: -1.866837146 | N25: 0.9924270721 | O25: ='Input Sheet'!A25 -> 90 | P25: 0.5441943699 | Q25: 26.13121639 | R25: -4.121010292 | S25: 23.51809475 | T25: 20.09590618
A26: 58.2 | B26: 0 | C26: 1.0155 | D26: =tclcalcul!B26 -> 29.63267171 | E26: =IF('Input Sheet'!C26>0,'Input Sheet'!C26,Psychrometric!G26) -> 21.2 | F26: 4.686309849 | G26: ='Input Sheet'!B26 -> 21.2 | H26: 2.718 | I26: 2191.400716 | J26: 0.5 | K26: 0.0775 | L26: =IF('Input Sheet'!D26>0,'Input Sheet'!D26,0.15) -> 0.15 | M26: -2.115331921 | N26: 0.9995648389 | O26: ='Input Sheet'!A26 -> 87 | P26: 0.5451215894 | Q26: 25.18851398 | R26: -4.12934054 | S26: 21.91400716 | T26: 18.95878415
A27: 58.2 | B27: 0 | C27: 1.0155 | D27: =tclcalcul!B27 -> 29.1534332 | E27: =IF('Input Sheet'!C27>0,'Input Sheet'!C27,Psychrometric!G27) -> 20 | F27: 4.686309849 | G27: ='Input Sheet'!B27 -> 20 | H27: 2.718 | I27: 2128.6663 | J27: 0.5 | K27: 0.0775 | L27: =IF('Input Sheet'!D27>0,'Input Sheet'!D27,0.15) -> 0.15 | M27: -2.542123444 | N27: 0.9999998074 | O27: ='Input Sheet'!A27 -> 91 | P27: 0.5469760283 | Q27: 23.39193737 | R27: -4.146028405 | S27: 21.286663 | T27: 18.49412786
A28: 58.2 | B28: 0 | C28: 1.0155 | D28: =tclcalcul!B28 -> 29.27303183 | E28: =IF('Input Sheet'!C28>0,'Input Sheet'!C28,Psychrometric!G28) -> 20.3 | F28: 4.686309849 | G28: ='Input Sheet'!B28 -> 20.3 | H28: 2.718 | I28: 2097.060097 | J28: 0.5 | K28: 0.0775 | L28: =IF('Input Sheet'!D28>0,'Input Sheet'!D28,0.15) -> 0.15 | M28: -2.448204817 | N28: 0.9999984891 | O28: ='Input Sheet'!A28 -> 88 | P28: 0.5465124186 | Q28: 23.83022838 | R28: -4.14185301 | S28: 20.97060097 | T28: 18.25546373
A29: 58.2 | B29: 0 | C29: 1.0155 | D29: =tclcalcul!B29 -> 29.23315015 | E29: =IF('Input Sheet'!C29>0,'Input Sheet'!C29,Psychrometric!G29) -> 20.2 | F29: 4.686309849 | G29: ='Input Sheet'!B29 -> 20.2 | H29: 2.718 | I29: 2178.867245 | J29: 0.5 | K29: 0.0775 | L29: =IF('Input Sheet'!D29>0,'Input Sheet'!D29,0.15) -> 0.15 | M29: -2.460531949 | N29: 0.9999988323 | O29: ='Input Sheet'!A29 -> 92 | P29: 0.5466669551 | Q29: 23.68333962 | R29: -4.143244554 | S29: 21.78867245 | T29: 18.86689283
A30: 58.2 | B30: 0 | C30: 1.0155 | D30: =tclcalcul!B30 -> 29.11359828 | E30: =IF('Input Sheet'!C30>0,'Input Sheet'!C30,Psychrometric!G30) -> 19.9 | F30: 4.686309849 | G30: ='Input Sheet'!B30 -> 19.9 | H30: 2.718 | I30: 2208.50458 | J30: 0.5 | K30: 0.0775 | L30: =IF('Input Sheet'!D30>0,'Input Sheet'!D30,0.15) -> 0.15 | M30: -2.554935838 | N30: 0.9999998571 | O30: ='Input Sheet'!A30 -> 95 | P30: 0.5471305649 | Q30: 23.24741664 | R30: -4.147420712 | S30: 22.0850458 | T30: 19.08344361
A31: 58.2 | B31: 0 | C31: 1.0155 | D31: =tclcalcul!B31 -> 29.1534332 | E31: =IF('Input Sheet'!C31>0,'Input Sheet'!C31,Psychrometric!G31) -> 20 | F31: 4.686309849 | G31: ='Input Sheet'!B31 -> 20 | H31: 2.718 | I31: 2245.625987 | J31: 0.5 | K31: 0.0775 | L31: =IF('Input Sheet'!D31>0,'Input Sheet'!D31,0.15) -> 0.15 | M31: -2.510956371 | N31: 0.9999996087 | O31: ='Input Sheet'!A31 -> 96 | P31: 0.5469760283 | Q31: 23.39193737 | R31: -4.146028405 | S31: 22.45625987 | T31: 19.35111336
A32: 58.2 | B32: 0 | C32: 1.0155 | D32: =tclcalcul!B32 -> 29.5526425 | E32: =IF('Input Sheet'!C32>0,'Input Sheet'!C32,Psychrometric!G32) -> 21 | F32: 4.686309849 | G32: ='Input Sheet'!B32 -> 21 | H32: 2.718 | I32: 2313.92921 | J32: 0.5 | K32: 0.0775 | L32: =IF('Input Sheet'!D32>0,'Input Sheet'!D32,0.15) -> 0.15 | M32: -2.151158534 | N32: 0.9997360106 | O32: ='Input Sheet'!A32 -> 93 | P32: 0.5454306625 | Q32: 24.88095925 | R32: -4.132119314 | S32: 23.1392921 | T32: 19.83365101
A33: 58.2 | B33: 0 | C33: 1.0155 | D33: =tclcalcul!B33 -> 30.03376163 | E33: =IF('Input Sheet'!C33>0,'Input Sheet'!C33,Psychrometric!G33) -> 22.2 | F33: 4.686309849 | G33: ='Input Sheet'!B33 -> 22.2 | H33: 2.718 | I33: 2302.795147 | J33: 0.5 | K33: 0.0775 | L33: =IF('Input Sheet'!D33>0,'Input Sheet'!D33,0.15) -> 0.15 | M33: -1.742467083 | N33: 0.9777147164 | O33: ='Input Sheet'!A33 -> 86 | P33: 0.5435762236 | Q33: 26.77668775 | R33: -4.115461844 | S33: 23.02795147 | T33: 19.75585167
A34: 58.2 | B34: 0 | C34: 1.0155 | D34: =tclcalcul!B34 -> 30.47678122 | E34: =IF('Input Sheet'!C34>0,'Input Sheet'!C34,Psychrometric!G34) -> 23.3 | F34: 4.686309849 | G34: ='Input Sheet'!B34 -> 23.3 | H34: 2.718 | I34: 2461.673963 | J34: 0.5 | K34: 0.0775 | L34: =IF('Input Sheet'!D34>0,'Input Sheet'!D34,0.15) -> 0.15 | M34: -1.321096723 | N34: 0.7661177159 | O34: ='Input Sheet'!A34 -> 86 | P34: 0.5418763213 | Q34: 28.62411585 | R34: -4.100224388 | S34: 24.61673963 | T34: 20.83612974
A35: 58.2 | B35: 0 | C35: 1.0155 | D35: =tclcalcul!B35 -> 30.80018157 | E35: =IF('Input Sheet'!C35>0,'Input Sheet'!C35,Psychrometric!G35) -> 24.1 | F35: 4.686309849 | G35: ='Input Sheet'!B35 -> 24.1 | H35: 2.718 | I35: 2192.679242 | J35: 0.5 | K35: 0.0775 | L35: =IF('Input Sheet'!D35>0,'Input Sheet'!D35,0.15) -> 0.15 | M35: -1.116103149 | N35: 0.5695933436 | O35: ='Input Sheet'!A35 -> 73 | P35: 0.5406400287 | Q35: 30.03670194 | R35: -4.089161673 | S35: 21.92679242 | T35: 18.96813197
A36: 58.2 | B36: 0 | C36: 1.0155 | D36: =tclcalcul!B36 -> 31.08399225 | E36: =IF('Input Sheet'!C36>0,'Input Sheet'!C36,Psychrometric!G36) -> 24.8 | F36: 4.686309849 | G36: ='Input Sheet'!B36 -> 24.8 | H36: 2.718 | I36: 2223.879252 | J36: 0.5 | K36: 0.0775 | L36: =IF('Input Sheet'!D36>0,'Input Sheet'!D36,0.15) -> 0.15 | M36: -0.8649949357 | N36: 0.3310458705 | O36: ='Input Sheet'!A36 -> 71 | P36: 0.5395582727 | Q36: 31.32224299 | R36: -4.079494922 | S36: 22.23879252 | T36: 19.19477993
A37: 58.2 | B37: 0 | C37: 1.0155 | D37: =tclcalcul!B37 -> 31.3278816 | E37: =IF('Input Sheet'!C37>0,'Input Sheet'!C37,Psychrometric!G37) -> 25.4 | F37: 4.686309849 | G37: ='Input Sheet'!B37 -> 25.4 | H37: 2.718 | I37: 2304.807436 | J37: 0.5 | K37: 0.0775 | L37: =IF('Input Sheet'!D37>0,'Input Sheet'!D37,0.15) -> 0.15 | M37: -0.6347955389 | N37: 0.1759679307 | O37: ='Input Sheet'!A37 -> 71 | P37: 0.5386310532 | Q37: 32.46207657 | R37: -4.071218855 | S37: 23.04807436 | T37: 19.76993692
A38: 58.2 | B38: 0 | C38: 1.0155 | D38: =tclcalcul!B38 -> 31.57234782 | E38: =IF('Input Sheet'!C38>0,'Input Sheet'!C38,Psychrometric!G38) -> 26 | F38: 4.686309849 | G38: ='Input Sheet'!B38 -> 26 | H38: 2.718 | I38: 2287.378212 | J38: 0.5 | K38: 0.0775 | L38: =IF('Input Sheet'!D38>0,'Input Sheet'!D38,0.15) -> 0.15 | M38: -0.430320203 | N38: 0.09799972454 | O38: ='Input Sheet'!A38 -> 68 | P38: 0.5377038337 | Q38: 33.63791488 | R38: -4.062951732 | S38: 22.87378212 | T38: 19.64757979
A39: 58.2 | B39: 0 | C39: 1.0155 | D39: =tclcalcul!B39 -> 31.69479797 | E39: =IF('Input Sheet'!C39>0,'Input Sheet'!C39,Psychrometric!G39) -> 26.3 | F39: 4.686309849 | G39: ='Input Sheet'!B39 -> 26.3 | H39: 2.718 | I39: 2294.055349 | J39: 0.5 | K39: 0.0775 | L39: =IF('Input Sheet'!D39>0,'Input Sheet'!D39,0.15) -> 0.15 | M39: -0.3237984 | N39: 0.07487360987 | O39: ='Input Sheet'!A39 -> 67 | P39: 0.537240224 | Q39: 34.23963207 | R39: -4.058821518 | S39: 22.94055349 | T39: 19.69455104
A40: 58.2 | B40: 0 | C40: 1.0155 | D40: =tclcalcul!B40 -> 31.69479797 | E40: =IF('Input Sheet'!C40>0,'Input Sheet'!C40,Psychrometric!G40) -> 26.3 | F40: 4.686309849 | G40: ='Input Sheet'!B40 -> 26.3 | H40: 2.718 | I40: 2362.534613 | J40: 0.5 | K40: 0.0775 | L40: =IF('Input Sheet'!D40>0,'Input Sheet'!D40,0.15) -> 0.15 | M40: -0.3055502473 | N40: 0.07184748416 | O40: ='Input Sheet'!A40 -> 69 | P40: 0.537240224 | Q40: 34.23963207 | R40: -4.058821518 | S40: 23.62534613 | T40: 20.16948684
A41: 58.2 | B41: 0 | C41: 1.0155 | D41: =tclcalcul!B41 -> 31.61314856 | E41: =IF('Input Sheet'!C41>0,'Input Sheet'!C41,Psychrometric!G41) -> 26.1 | F41: 4.686309849 | G41: ='Input Sheet'!B41 -> 26.1 | H41: 2.718 | I41: 2368.621839 | J41: 0.5 | K41: 0.0775 | L41: =IF('Input Sheet'!D41>0,'Input Sheet'!D41,0.15) -> 0.15 | M41: -0.3737700893 | N41: 0.08449453047 | O41: ='Input Sheet'!A41 -> 70 | P41: 0.5375492972 | Q41: 33.83745484 | R41: -4.061574747 | S41: 23.68621839 | T41: 20.21111867
A42: 58.2 | B42: 0 | C42: 1.0155 | D42: =tclcalcul!B42 -> 31.40930616 | E42: =IF('Input Sheet'!C42>0,'Input Sheet'!C42,Psychrometric!G42) -> 25.6 | F42: 4.686309849 | G42: ='Input Sheet'!B42 -> 25.6 | H42: 2.718 | I42: 2693.698 | J42: 0.5 | K42: 0.0775 | L42: =IF('Input Sheet'!D42>0,'Input Sheet'!D42,0.15) -> 0.15 | M42: -0.461512584 | N42: 0.1067743184 | O42: ='Input Sheet'!A42 -> 82 | P42: 0.53832198 | Q42: 32.84997561 | R42: -4.068462155 | S42: 26.93698 | T42: 22.3088672
A43: 58.2 | B43: 0 | C43: 1.0155 | D43: =tclcalcul!B43 -> 31.16522471 | E43: =IF('Input Sheet'!C43>0,'Input Sheet'!C43,Psychrometric!G43) -> 25 | F43: 4.686309849 | G43: ='Input Sheet'!B43 -> 25 | H43: 2.718 | I43: 2726.049058 | J43: 0.5 | K43: 0.0775 | L43: =IF('Input Sheet'!D43>0,'Input Sheet'!D43,0.15) -> 0.15 | M43: -0.6616874745 | N43: 0.1902032445 | O43: ='Input Sheet'!A43 -> 86 | P43: 0.5392491995 | Q43: 31.69824486 | R43: -4.076735238 | S43: 27.26049058 | T43: 22.50531003
A44: 58.2 | B44: 0 | C44: 1.0155 | D44: =tclcalcul!B44 -> 30.84067799 | E44: =IF('Input Sheet'!C44>0,'Input Sheet'!C44,Psychrometric!G44) -> 24.2 | F44: 4.686309849 | G44: ='Input Sheet'!B44 -> 24.2 | H44: 2.718 | I44: 2598.703538 | J44: 0.5 | K44: 0.0775 | L44: =IF('Input Sheet'!D44>0,'Input Sheet'!D44,0.15) -> 0.15 | M44: -0.9732623077 | N44: 0.4279614939 | O44: ='Input Sheet'!A44 -> 86 | P44: 0.5404854921 | Q44: 30.217483 | R44: -4.08777996 | S44: 25.98703538 | T44: 21.71986639
A45: 58.2 | B45: 0 | C45: 1.0155 | D45: =tclcalcul!B45 -> 30.51715087 | E45: =IF('Input Sheet'!C45>0,'Input Sheet'!C45,Psychrometric!G45) -> 23.4 | F45: 4.686309849 | G45: ='Input Sheet'!B45 -> 23.4 | H45: 2.718 | I45: 2476.581111 | J45: 0.5 | K45: 0.0775 | L45: =IF('Input Sheet'!D45>0,'Input Sheet'!D45,0.15) -> 0.15 | M45: -1.282586912 | N45: 0.7320908998 | O45: ='Input Sheet'!A45 -> 86 | P45: 0.5417217847 | Q45: 28.79745478 | R45: -4.098840672 | S45: 24.76581111 | T45: 20.93432846
A46: 58.2 | B46: 0 | C46: 1.0155 | D46: =tclcalcul!B46 -> 30.31546177 | E46: =IF('Input Sheet'!C46>0,'Input Sheet'!C46,Psychrometric!G46) -> 22.9 | F46: 4.686309849 | G46: ='Input Sheet'!B46 -> 22.9 | H46: 2.718 | I46: 2598.404965 | J46: 0.5 | K46: 0.0775 | L46: =IF('Input Sheet'!D46>0,'Input Sheet'!D46,0.15) -> 0.15 | M46: -1.422677588 | N46: 0.8452466889 | O46: ='Input Sheet'!A46 -> 93 | P46: 0.5424944676 | Q46: 27.93983834 | R46: -4.105761761 | S46: 25.98404965 | T46: 21.71798563
A47: 58.2 | B47: 0 | C47: 1.0155 | D47: =tclcalcul!B47 -> 30.03376163 | E47: =IF('Input Sheet'!C47>0,'Input Sheet'!C47,Psychrometric!G47) -> 22.2 | F47: 4.686309849 | G47: ='Input Sheet'!B47 -> 22.2 | H47: 2.718 | I47: 2597.338712 | J47: 0.5 | K47: 0.0775 | L47: =IF('Input Sheet'!D47>0,'Input Sheet'!D47,0.15) -> 0.15 | M47: -1.663977981 | N47: 0.960250449 | O47: ='Input Sheet'!A47 -> 97 | P47: 0.5435762236 | Q47: 26.77668775 | R47: -4.115461844 | S47: 25.97338712 | T47: 21.71126754
A48: 58.2 | B48: 0 | C48: 1.0155 | D48: =tclcalcul!B48 -> 29.63267171 | E48: =IF('Input Sheet'!C48>0,'Input Sheet'!C48,Psychrometric!G48) -> 21.2 | F48: 4.686309849 | G48: ='Input Sheet'!B48 -> 21.2 | H48: 2.718 | I48: 2443.285856 | J48: 0.5 | K48: 0.0775 | L48: =IF('Input Sheet'!D48>0,'Input Sheet'!D48,0.15) -> 0.15 | M48: -2.048210311 | N48: 0.9989578852 | O48: ='Input Sheet'!A48 -> 97 | P48: 0.5451215894 | Q48: 25.18851398 | R48: -4.12934054 | S48: 24.43285856 | T48: 20.71428083
A49: 58.2 | B49: 0 | C49: 1.0155 | D49: =tclcalcul!B49 -> 29.4726756 | E49: =IF('Input Sheet'!C49>0,'Input Sheet'!C49,Psychrometric!G49) -> 20.8 | F49: 4.686309849 | G49: ='Input Sheet'!B49 -> 20.8 | H49: 2.718 | I49: 2433.092715 | J49: 0.5 | K49: 0.0775 | L49: =IF('Input Sheet'!D49>0,'Input Sheet'!D49,0.15) -> 0.15 | M49: -2.187828848 | N49: 0.9998456852 | O49: ='Input Sheet'!A49 -> 99 | P49: 0.5457397357 | Q49: 24.57669409 | R49: -4.134899102 | S49: 24.33092715 | T49: 20.64638953
A50: 58.2 | B50: 0 | C50: 1.0155 | D50: =tclcalcul!B50 -> 29.31292948 | E50: =IF('Input Sheet'!C50>0,'Input Sheet'!C50,Psychrometric!G50) -> 20.4 | F50: 4.686309849 | G50: ='Input Sheet'!B50 -> 20.4 | H50: 2.718 | I50: 2373.813458 | J50: 0.5 | K50: 0.0775 | L50: =IF('Input Sheet'!D50>0,'Input Sheet'!D50,0.15) -> 0.15 | M50: -2.340316605 | N50: 0.9999876669 | O50: ='Input Sheet'!A50 -> 99 | P50: 0.546357882 | Q50: 23.97791372 | R50: -4.140461721 | S50: 23.73813458 | T50: 20.24655126
A51: 58.2 | B51: 0 | C51: 1.0155 | D51: =tclcalcul!B51 -> 29.11359828 | E51: =IF('Input Sheet'!C51>0,'Input Sheet'!C51,Psychrometric!G51) -> 19.9 | F51: 4.686309849 | G51: ='Input Sheet'!B51 -> 19.9 | H51: 2.718 | I51: 2301.494247 | J51: 0.5 | K51: 0.0775 | L51: =IF('Input Sheet'!D51>0,'Input Sheet'!D51,0.15) -> 0.15 | M51: -2.530156225 | N51: 0.9999997464 | O51: ='Input Sheet'!A51 -> 99 | P51: 0.5471305649 | Q51: 23.24741664 | R51: -4.147420712 | S51: 23.01494247 | T51: 19.74674013
A52: 58.2 | B52: 0 | C52: 1.0155 | D52: =tclcalcul!B52 -> 29.03397479 | E52: =IF('Input Sheet'!C52>0,'Input Sheet'!C52,Psychrometric!G52) -> 19.7 | F52: 4.686309849 | G52: ='Input Sheet'!B52 -> 19.7 | H52: 2.718 | I52: 2273.111082 | J52: 0.5 | K52: 0.0775 | L52: =IF('Input Sheet'!D52>0,'Input Sheet'!D52,0.15) -> 0.15 | M52: -2.605855052 | N52: 0.9999999583 | O52: ='Input Sheet'!A52 -> 99 | P52: 0.547439638 | Q52: 22.960718 | R52: -4.15020609 | S52: 22.73111082 | T52: 19.54681171
A53: 58.2 | B53: 0 | C53: 1.0155 | D53: =tclcalcul!B53 -> 28.91465604 | E53: =IF('Input Sheet'!C53>0,'Input Sheet'!C53,Psychrometric!G53) -> 19.4 | F53: 4.686309849 | G53: ='Input Sheet'!B53 -> 19.4 | H53: 2.718 | I53: 2231.110887 | J53: 0.5 | K53: 0.0775 | L53: =IF('Input Sheet'!D53>0,'Input Sheet'!D53,0.15) -> 0.15 | M53: -2.719151813 | N53: 0.9999999979 | O53: ='Input Sheet'!A53 -> 99 | P53: 0.5479032477 | Q53: 22.5364736 | R53: -4.154386068 | S53: 22.31110887 | T53: 19.24691499
A54: 58.2 | B54: 0 | C54: 1.0155 | D54: =tclcalcul!B54 -> 28.83518799 | E54: =IF('Input Sheet'!C54>0,'Input Sheet'!C54,Psychrometric!G54) -> 19.2 | F54: 4.686309849 | G54: ='Input Sheet'!B54 -> 19.2 | H54: 2.718 | I54: 2203.489701 | J54: 0.5 | K54: 0.0775 | L54: =IF('Input Sheet'!D54>0,'Input Sheet'!D54,0.15) -> 0.15 | M54: -2.79451665 | N54: 0.9999999998 | O54: ='Input Sheet'!A54 -> 99 | P54: 0.5482123209 | Q54: 22.25747173 | R54: -4.157173996 | S54: 22.03489701 | T54: 19.0469812
A55: 58.2 | B55: 0 | C55: 1.0155 | D55: =tclcalcul!B55 -> 28.87491443 | E55: =IF('Input Sheet'!C55>0,'Input Sheet'!C55,Psychrometric!G55) -> 19.3 | F55: 4.686309849 | G55: ='Input Sheet'!B55 -> 19.3 | H55: 2.718 | I55: 2217.262632 | J55: 0.5 | K55: 0.0775 | L55: =IF('Input Sheet'!D55>0,'Input Sheet'!D55,0.15) -> 0.15 | M55: -2.756850915 | N55: 0.9999999993 | O55: ='Input Sheet'!A55 -> 99 | P55: 0.5480577843 | Q55: 22.39659224 | R55: -4.155779904 | S55: 22.17262632 | T55: 19.14694836
A56: 58.2 | B56: 0 | C56: 1.0155 | D56: =tclcalcul!B56 -> 29.39277128 | E56: =IF('Input Sheet'!C56>0,'Input Sheet'!C56,Psychrometric!G56) -> 20.6 | F56: 4.686309849 | G56: ='Input Sheet'!B56 -> 20.6 | H56: 2.718 | I56: 2379.017499 | J56: 0.5 | K56: 0.0775 | L56: =IF('Input Sheet'!D56>0,'Input Sheet'!D56,0.15) -> 0.15 | M56: -2.270610584 | N56: 0.9999583958 | O56: ='Input Sheet'!A56 -> 98 | P56: 0.5460488088 | Q56: 24.27568877 | R56: -4.137679903 | S56: 23.79017499 | T56: 20.28200058
A57: 58.2 | B57: 0 | C57: 1.0155 | D57: =tclcalcul!B57 -> 29.95341781 | E57: =IF('Input Sheet'!C57>0,'Input Sheet'!C57,Psychrometric!G57) -> 22 | F57: 4.686309849 | G57: ='Input Sheet'!B57 -> 22 | H57: 2.718 | I57: 2486.50974 | J57: 0.5 | K57: 0.0775 | L57: =IF('Input Sheet'!D57>0,'Input Sheet'!D57,0.15) -> 0.15 | M57: -1.762253515 | N57: 0.9809701175 | O57: ='Input Sheet'!A57 -> 94 | P57: 0.5438852968 | Q57: 26.45223128 | R57: -4.118235563 | S57: 24.8650974 | T57: 20.99944512
A58: 58.2 | B58: 0 | C58: 1.0155 | D58: =tclcalcul!B58 -> 30.5979374 | E58: =IF('Input Sheet'!C58>0,'Input Sheet'!C58,Psychrometric!G58) -> 23.6 | F58: 4.686309849 | G58: ='Input Sheet'!B58 -> 23.6 | H58: 2.718 | I58: 2419.191411 | J58: 0.5 | K58: 0.0775 | L58: =IF('Input Sheet'!D58>0,'Input Sheet'!D58,0.15) -> 0.15 | M58: -1.228764858 | N58: 0.6816714792 | O58: ='Input Sheet'!A58 -> 83 | P58: 0.5414127116 | Q58: 29.14688447 | R58: -4.096073992 | S58: 24.19191411 | T58: 20.55339742
A59: 58.2 | B59: 0 | C59: 1.0155 | D59: =tclcalcul!B59 -> 31.08399225 | E59: =IF('Input Sheet'!C59>0,'Input Sheet'!C59,Psychrometric!G59) -> 24.8 | F59: 4.686309849 | G59: ='Input Sheet'!B59 -> 24.8 | H59: 2.718 | I59: 2411.81271 | J59: 0.5 | K59: 0.0775 | L59: =IF('Input Sheet'!D59>0,'Input Sheet'!D59,0.15) -> 0.15 | M59: -0.8149149812 | N59: 0.2909779423 | O59: ='Input Sheet'!A59 -> 77 | P59: 0.5395582727 | Q59: 31.32224299 | R59: -4.079494922 | S59: 24.1181271 | T59: 20.50384767
A60: 58.2 | B60: 0 | C60: 1.0155 | D60: =tclcalcul!B60 -> 31.53156348 | E60: =IF('Input Sheet'!C60>0,'Input Sheet'!C60,Psychrometric!G60) -> 25.9 | F60: 4.686309849 | G60: ='Input Sheet'!B60 -> 25.9 | H60: 2.718 | I60: 2307.318697 | J60: 0.5 | K60: 0.0775 | L60: =IF('Input Sheet'!D60>0,'Input Sheet'!D60,0.15) -> 0.15 | M60: -0.459893734 | N60: 0.1062942315 | O60: ='Input Sheet'!A60 -> 69 | P60: 0.5378583703 | Q60: 33.4394014 | R60: -4.064328966 | S60: 23.07318697 | T60: 19.78749967
A61: 58.2 | B61: 0 | C61: 1.0155 | D61: =tclcalcul!B61 -> 31.89920315 | E61: =IF('Input Sheet'!C61>0,'Input Sheet'!C61,Psychrometric!G61) -> 26.8 | F61: 4.686309849 | G61: ='Input Sheet'!B61 -> 26.8 | H61: 2.718 | I61: 2292.117896 | J61: 0.5 | K61: 0.0775 | L61: =IF('Input Sheet'!D61>0,'Input Sheet'!D61,0.15) -> 0.15 | M61: -0.1494723014 | N61: 0.05477187542 | O61: ='Input Sheet'!A61 -> 65 | P61: 0.5364675411 | Q61: 35.26335224 | R61: -4.051942776 | S61: 22.92117896 | T61: 19.6809341
A62: 58.2 | B62: 0 | C62: 1.0155 | D62: =tclcalcul!B62 -> 32.1450222 | E62: =IF('Input Sheet'!C62>0,'Input Sheet'!C62,Psychrometric!G62) -> 27.4 | F62: 4.686309849 | G62: ='Input Sheet'!B62 -> 27.4 | H62: 2.718 | I62: 2301.196695 | J62: 0.5 | K62: 0.0775 | L62: =IF('Input Sheet'!D62>0,'Input Sheet'!D62,0.15) -> 0.15 | M62: 0.06320640877 | N62: 0.05083171501 | O62: ='Input Sheet'!A62 -> 63 | P62: 0.5355403217 | Q62: 36.52693167 | R62: -4.043696431 | S62: 23.01196695 | T62: 19.74465544
A63: 58.2 | B63: 0 | C63: 1.0155 | D63: =tclcalcul!B63 -> 32.26814997 | E63: =IF('Input Sheet'!C63>0,'Input Sheet'!C63,Psychrometric!G63) -> 27.7 | F63: 4.686309849 | G63: ='Input Sheet'!B63 -> 27.7 | H63: 2.718 | I63: 2341.922742 | J63: 0.5 | K63: 0.0775 | L63: =IF('Input Sheet'!D63>0,'Input Sheet'!D63,0.15) -> 0.15 | M63: 0.1793727535 | N63: 0.05696439534 | O63: ='Input Sheet'!A63 -> 63 | P63: 0.535076712 | Q63: 37.17337686 | R63: -4.039576585 | S63: 23.41922742 | T63: 20.02781661
A64: 58.2 | B64: 0 | C64: 1.0155 | D64: =tclcalcul!B64 -> 32.30922519 | E64: =IF('Input Sheet'!C64>0,'Input Sheet'!C64,Psychrometric!G64) -> 27.8 | F64: 4.686309849 | G64: ='Input Sheet'!B64 -> 27.8 | H64: 2.718 | I64: 2318.245774 | J64: 0.5 | K64: 0.0775 | L64: =IF('Input Sheet'!D64>0,'Input Sheet'!D64,0.15) -> 0.15 | M64: 0.2081951503 | N64: 0.05952309096 | O64: ='Input Sheet'!A64 -> 62 | P64: 0.5349221754 | Q64: 37.39106087 | R64: -4.038203795 | S64: 23.18245774 | T64: 19.86372482
A65: 58.2 | B65: 0 | C65: 1.0155 | D65: =tclcalcul!B65 -> 32.18604849 | E65: =IF('Input Sheet'!C65>0,'Input Sheet'!C65,Psychrometric!G65) -> 27.5 | F65: 4.686309849 | G65: ='Input Sheet'!B65 -> 27.5 | H65: 2.718 | I65: 2167.7377 | J65: 0.5 | K65: 0.0775 | L65: =IF('Input Sheet'!D65>0,'Input Sheet'!D65,0.15) -> 0.15 | M65: 0.06273366678 | N65: 0.05081925096 | O65: ='Input Sheet'!A65 -> 59 | P65: 0.5353857851 | Q65: 36.74131696 | R65: -4.042322903 | S65: 21.677377 | T65: 18.7849054
A66: 58.2 | B66: 0 | C66: 1.0155 | D66: =tclcalcul!B66 -> 31.94013244 | E66: =IF('Input Sheet'!C66>0,'Input Sheet'!C66,Psychrometric!G66) -> 26.9 | F66: 4.686309849 | G66: ='Input Sheet'!B66 -> 26.9 | H66: 2.718 | I66: 2589.402396 | J66: 0.5 | K66: 0.0775 | L66: =IF('Input Sheet'!D66>0,'Input Sheet'!D66,0.15) -> 0.15 | M66: -0.03524349161 | N66: 0.05025757819 | O66: ='Input Sheet'!A66 -> 73 | P66: 0.5363130046 | Q66: 35.47126569 | R66: -4.050567768 | S66: 25.89402396 | T66: 21.66118763
A67: 58.2 | B67: 0 | C67: 1.0155 | D67: =tclcalcul!B67 -> 31.61314856 | E67: =IF('Input Sheet'!C67>0,'Input Sheet'!C67,Psychrometric!G67) -> 26.1 | F67: =IF((2.38*ABS(D67-G67)^0.25)>(12.1*SQRT(L67)),(2.38*ABS(D67-G67)^0.25),(12.1*SQRT(L67))) -> 4.686309849 | G67: ='Input Sheet'!B67 -> 26.1 | H67: 2.718 | I67: =S67*100 -> 2165.59711 | J67: 0.5 | K67: 0.0775 | L67: =IF('Input Sheet'!D67>0,'Input Sheet'!D67,0.15) -> 0.15 | M67: =(0.303*EXP(-0.036*A67)+0.028)*((A67-B67)-3.96*(10^-8)*C67*((D67+273)^4-(E67+273)^4)-C67*F67*(D67-G67)-3.05*10^-3*(5733-6.99*(A67-B67)-I67)-0.42*((A67-B67)-58.15)-1.773*10^-5*A67*(5867-I67)-0.0014*A67*(34-G67)) -> -0.4278715213 | N67: 0.09735241855 | O67: ='Input Sheet'!A67 -> 64 | P67: 0.5375492972 | Q67: 33.83745484 | R67: -4.061574747 | S67: 21.6559711 | T67: 18.76909413
A68: =A67 -> 58.2 | B68: 0 | C68: 1.0155 | D68: =tclcalcul!B68 -> 31.2058651 | E68: =IF('Input Sheet'!C68>0,'Input Sheet'!C68,Psychrometric!G68) -> 25.1 | F68: 4.686309849 | G68: ='Input Sheet'!B68 -> 25.1 | H68: 2.718 | I68: 2200.25253 | J68: =J67 -> 0.5 | K68: =0.155*J68 -> 0.0775 | L68: =IF('Input Sheet'!D68>0,'Input Sheet'!D68,0.15) -> 0.15 | M68: -0.7670347191 | N68: =1-0.95*EXP(-(0.3353*M68^4+0.2179*M68^2)) -> 0.2558822816 | O68: ='Input Sheet'!A68 -> 69 | P68: 0.5390946629 | Q68: 31.88771783 | R68: =(-7.85951783*P68)+(1.84408259*P68^1.5)-(11.7866497*P68^3)+(22.6807411*P68^3.5)-(15.9618719*P68^4)+(1.80122502*P68^7.5) -> -4.075355769 | S68: =O68*Q68/100 -> 22.0025253 | T68: =240.7263/((7.591386/LOG10(S68/6.116441))-1) -> 19.02340559
A69: 58.2 | B69: 0 | C69: =(1+0.2*K69) -> 1.0155 | D69: =tclcalcul!B69 -> 30.80018157 | E69: =IF('Input Sheet'!C69>0,'Input Sheet'!C69,Psychrometric!G69) -> 24.1 | F69: 4.686309849 | G69: ='Input Sheet'!B69 -> 24.1 | H69: 2.718 | I69: 2222.715944 | J69: 0.5 | K69: 0.0775 | L69: =IF('Input Sheet'!D69>0,'Input Sheet'!D69,0.15) -> 0.15 | M69: -1.108099057 | N69: 0.5614933193 | O69: ='Input Sheet'!A69 -> 74 | P69: =1-(273.15+G69)/647.096 -> 0.5406400287 | Q69: =220640*EXP((647.096/(G69+273.15))*R69) -> 30.03670194 | R69: -4.089161673 | S69: 22.22715944 | T69: 19.18637941
A70: 58.2 | B70: 0 | C70: 1.0155 | D70: =tclcalcul!B70 -> 30.35576805 | E70: =IF('Input Sheet'!C70>0,'Input Sheet'!C70,Psychrometric!G70) -> 23 | F70: 4.686309849 | G70: ='Input Sheet'!B70 -> 23 | H70: 2.718 | I70: 2220.654769 | J70: 0.5 | K70: 0.0775 | L70: =IF('Input Sheet'!D70>0,'Input Sheet'!D70,0.15) -> 0.15 | M70: -1.488855323 | N70: 0.8871706561 | O70: ='Input Sheet'!A70 -> 79 | P70: 0.542339931 | Q70: 28.10955404 | R70: -4.104377041 | S70: 22.20654769 | T70: 19.17148573
A71: 58.2 | B71: 0 | C71: 1.0155 | D71: =tclcalcul!B71 -> 29.9132697 | E71: =IF('Input Sheet'!C71>0,'Input Sheet'!C71,Psychrometric!G71) -> 21.9 | F71: 4.686309849 | G71: ='Input Sheet'!B71 -> 21.9 | H71: 2.718 | I71: 2155.886237 | J71: 0.5 | K71: 0.0775 | L71: =IF('Input Sheet'!D71>0,'Input Sheet'!D71,0.15) -> 0.15 | M71: -1.884708377 | N71: 0.9936288906 | O71: ='Input Sheet'!A71 -> 82 | P71: 0.5440398333 | Q71: 26.29129557 | R71: -4.119622801 | S71: 21.55886237 | T71: 18.69719314
A72: 58.2 | B72: 0 | C72: 1.0155 | D72: =tclcalcul!B72 -> 29.4726756 | E72: =IF('Input Sheet'!C72>0,'Input Sheet'!C72,Psychrometric!G72) -> 20.8 | F72: 4.686309849 | G72: ='Input Sheet'!B72 -> 20.8 | H72: 2.718 | I72: 2113.595692 | J72: 0.5 | K72: 0.0775 | L72: =IF('Input Sheet'!D72>0,'Input Sheet'!D72,0.15) -> 0.15 | M72: -2.272967474 | N72: 0.999960003 | O72: ='Input Sheet'!A72 -> 86 | P72: 0.5457397357 | Q72: 24.57669409 | R72: -4.134899102 | S72: 21.13595692 | T72: 18.38071737
A73: 58.2 | B73: 0 | C73: 1.0155 | D73: =tclcalcul!B73 -> 29.03397479 | E73: =IF('Input Sheet'!C73>0,'Input Sheet'!C73,Psychrometric!G73) -> 19.7 | F73: 4.686309849 | G73: ='Input Sheet'!B73 -> 19.7 | H73: 2.718 | I73: 2043.503902 | J73: 0.5 | K73: 0.0775 | L73: =IF('Input Sheet'!D73>0,'Input Sheet'!D73,0.15) -> 0.15 | M73: -2.667040097 | N73: 0.9999999914 | O73: ='Input Sheet'!A73 -> 89 | P73: 0.547439638 | Q73: 22.960718 | R73: -4.15020609 | S73: 20.43503902 | T73: 17.84375361
A74: 58.2 | B74: 0 | C74: 1.0155 | D74: =tclcalcul!B74 -> 28.63678943 | E74: =IF('Input Sheet'!C74>0,'Input Sheet'!C74,Psychrometric!G74) -> 18.7 | F74: 4.686309849 | G74: ='Input Sheet'!B74 -> 18.7 | H74: 2.718 | I74: 2006.303853 | J74: 0.5 | K74: 0.0775 | L74: =IF('Input Sheet'!D74>0,'Input Sheet'!D74,0.15) -> 0.15 | M74: -3.01684473 | N74: 1 | O74: ='Input Sheet'!A74 -> 93 | P74: 0.5489850038 | Q74: 21.57315971 | R74: -4.164148286 | S74: 20.06303853 | T74: 17.5521738
A75: 58.2 | B75: 0 | C75: 1.0155 | D75: =tclcalcul!B75 -> 28.24115181 | E75: =IF('Input Sheet'!C75>0,'Input Sheet'!C75,Psychrometric!G75) -> 17.7 | F75: 4.686309849 | G75: ='Input Sheet'!B75 -> 17.7 | H75: 2.718 | I75: 1924.663337 | J75: 0.5 | K75: 0.0775 | L75: =IF('Input Sheet'!D75>0,'Input Sheet'!D75,0.15) -> 0.15 | M75: -3.377188471 | N75: 1 | O75: ='Input Sheet'!A75 -> 95 | P75: 0.5505303695 | Q75: 20.25961407 | R75: -4.178116076 | S75: 19.24663337 | T75: 16.89525925
A76: 58.2 | B76: 0 | C76: 1.0155 | D76: =tclcalcul!B76 -> 28.00450831 | E76: =IF('Input Sheet'!C76>0,'Input Sheet'!C76,Psychrometric!G76) -> 17.1 | F76: 4.686309849 | G76: ='Input Sheet'!B76 -> 17.1 | H76: 2.718 | I76: 1833.526927 | J76: 0.5 | K76: 0.0775 | L76: =IF('Input Sheet'!D76>0,'Input Sheet'!D76,0.15) -> 0.15 | M76: -3.604004383 | N76: 1 | O76: ='Input Sheet'!A76 -> 94 | P76: 0.551457589 | Q76: 19.5056056 | R76: -4.186509079 | S76: 18.33526927 | T76: 16.13239988
A77: 58.2 | B77: 0 | C77: 1.0155 | D77: =tclcalcul!B77 -> 27.7684171 | E77: =IF('Input Sheet'!C77>0,'Input Sheet'!C77,Psychrometric!G77) -> 16.5 | F77: 4.686309849 | G77: ='Input Sheet'!B77 -> 16.5 | H77: 2.718 | I77: 1783.750357 | J77: 0.5 | K77: 0.0775 | L77: =IF('Input Sheet'!D77>0,'Input Sheet'!D77,0.15) -> 0.15 | M77: -3.819333613 | N77: 1 | O77: ='Input Sheet'!A77 -> 95 | P77: 0.5523848084 | Q77: 18.77631955 | R77: -4.194911359 | S77: 17.83750357 | T77: 15.70157598
A78: 58.2 | B78: 0 | C78: 1.0155 | D78: =tclcalcul!B78 -> 27.61132927 | E78: =IF('Input Sheet'!C78>0,'Input Sheet'!C78,Psychrometric!G78) -> 16.1 | F78: 4.686309849 | G78: ='Input Sheet'!B78 -> 16.1 | H78: 2.718 | I78: 1683.924003 | J78: 0.5 | K78: 0.0775 | L78: =IF('Input Sheet'!D78>0,'Input Sheet'!D78,0.15) -> 0.15 | M78: -3.9803875 | N78: 1 | O78: ='Input Sheet'!A78 -> 92 | P78: 0.5530029547 | Q78: 18.30352177 | R78: -4.200518044 | S78: 16.83924003 | T78: 14.80475547
A79: 58.2 | B79: 0 | C79: 1.0155 | D79: =tclcalcul!B79 -> 27.68984282 | E79: =IF('Input Sheet'!C79>0,'Input Sheet'!C79,Psychrometric!G79) -> 16.3 | F79: 4.686309849 | G79: ='Input Sheet'!B79 -> 16.3 | H79: 2.718 | I79: 1705.551037 | J79: 0.5 | K79: 0.0775 | L79: =IF('Input Sheet'!D79>0,'Input Sheet'!D79,0.15) -> 0.15 | M79: -3.907424011 | N79: 1 | O79: ='Input Sheet'!A79 -> 92 | P79: 0.5526938816 | Q79: 18.53859823 | R79: -4.197714184 | S79: 17.05551037 | T79: 15.00293746
A80: 58.2 | B80: 0 | C80: 1.0155 | D80: =tclcalcul!B80 -> 28.51793612 | E80: =IF('Input Sheet'!C80>0,'Input Sheet'!C80,Psychrometric!G80) -> 18.4 | F80: 4.686309849 | G80: ='Input Sheet'!B80 -> 18.4 | H80: 2.718 | I80: 1820.747319 | J80: 0.5 | K80: 0.0775 | L80: =IF('Input Sheet'!D80>0,'Input Sheet'!D80,0.15) -> 0.15 | M80: -3.168004405 | N80: 1 | O80: ='Input Sheet'!A80 -> 86 | P80: 0.5494486135 | Q80: 21.17148045 | R80: -4.168335931 | S80: 18.20747319 | T80: 16.02277957
A81: 58.2 | B81: 0 | C81: 1.0155 | D81: =tclcalcul!B81 -> 29.39277128 | E81: =IF('Input Sheet'!C81>0,'Input Sheet'!C81,Psychrometric!G81) -> 20.6 | F81: 4.686309849 | G81: ='Input Sheet'!B81 -> 20.6 | H81: 2.718 | I81: 1917.779412 | J81: 0.5 | K81: 0.0775 | L81: =IF('Input Sheet'!D81>0,'Input Sheet'!D81,0.15) -> 0.15 | M81: -2.393519951 | N81: 0.9999954683 | O81: ='Input Sheet'!A81 -> 79 | P81: 0.5460488088 | Q81: 24.27568877 | R81: -4.137679903 | S81: 19.17779412 | T81: 16.83875671
A82: 58.2 | B82: 0 | C82: 1.0155 | D82: =tclcalcul!B82 -> 30.27517164 | E82: =IF('Input Sheet'!C82>0,'Input Sheet'!C82,Psychrometric!G82) -> 22.8 | F82: 4.686309849 | G82: ='Input Sheet'!B82 -> 22.8 | H82: 2.718 | I82: 1888.429252 | J82: 0.5 | K82: 0.0775 | L82: =IF('Input Sheet'!D82>0,'Input Sheet'!D82,0.15) -> 0.15 | M82: -1.646340732 | N82: 0.9551831065 | O82: ='Input Sheet'!A82 -> 68 | P82: 0.5426490042 | Q82: 27.77101841 | R82: -4.107146733 | S82: 18.88429252 | T82: 16.59583838
A83: 58.2 | B83: 0 | C83: 1.0155 | D83: =tclcalcul!B83 -> 31.08399225 | E83: =IF('Input Sheet'!C83>0,'Input Sheet'!C83,Psychrometric!G83) -> 24.8 | F83: 4.686309849 | G83: ='Input Sheet'!B83 -> 24.8 | H83: 2.718 | I83: 2004.623551 | J83: 0.5 | K83: 0.0775 | L83: =IF('Input Sheet'!D83>0,'Input Sheet'!D83,0.15) -> 0.15 | M83: -0.9234215493 | N83: 0.3817721229 | O83: ='Input Sheet'!A83 -> 64 | P83: 0.5395582727 | Q83: 31.32224299 | R83: -4.079494922 | S83: 20.04623551 | T83: 17.53889172
A84: 58.2 | B84: 0 | C84: 1.0155 | D84: =tclcalcul!B84 -> 31.77651176 | E84: =IF('Input Sheet'!C84>0,'Input Sheet'!C84,Psychrometric!G84) -> 26.5 | F84: 4.686309849 | G84: ='Input Sheet'!B84 -> 26.5 | H84: 2.718 | I84: 2044.112164 | J84: 0.5 | K84: 0.0775 | L84: =IF('Input Sheet'!D84>0,'Input Sheet'!D84,0.15) -> 0.15 | M84: -0.3205063368 | N84: 0.07430928653 | O84: ='Input Sheet'!A84 -> 59 | P84: 0.5369311509 | Q84: 34.64596888 | R84: -4.05606928 | S84: 20.44112164 | T84: 17.84848245
A85: 58.2 | B85: 0 | C85: 1.0155 | D85: =tclcalcul!B85 -> 32.3503163 | E85: =IF('Input Sheet'!C85>0,'Input Sheet'!C85,Psychrometric!G85) -> 27.9 | F85: 4.686309849 | G85: ='Input Sheet'!B85 -> 27.9 | H85: 2.718 | I85: 2030.932108 | J85: 0.5 | K85: 0.0775 | L85: =IF('Input Sheet'!D85>0,'Input Sheet'!D85,0.15) -> 0.15 | M85: 0.1667782761 | N85: 0.05598535038 | O85: ='Input Sheet'!A85 -> 54 | P85: 0.5347676388 | Q85: 37.60985385 | R85: -4.03683125 | S85: 20.30932108 | T85: 17.7457386
A86: 58.2 | B86: 0 | C86: 1.0155 | D86: =tclcalcul!B86 -> 32.76212284 | E86: =IF('Input Sheet'!C86>0,'Input Sheet'!C86,Psychrometric!G86) -> 28.9 | F86: 4.686309849 | G86: ='Input Sheet'!B86 -> 28.9 | H86: 2.718 | I86: 2072.710962 | J86: 0.5 | K86: 0.0775 | L86: =IF('Input Sheet'!D86>0,'Input Sheet'!D86,0.15) -> 0.15 | M86: 0.5301195696 | N86: 0.1297804047 | O86: ='Input Sheet'!A86 -> 52 | P86: 0.533222273 | Q86: 39.8598262 | R86: -4.023119298 | S86: 20.72710962 | T86: 18.06943832
A87: 58.2 | B87: 0 | C87: 1.0155 | D87: =tclcalcul!B87 -> 33.00998901 | E87: =IF('Input Sheet'!C87>0,'Input Sheet'!C87,Psychrometric!G87) -> 29.5 | F87: 4.686309849 | G87: ='Input Sheet'!B87 -> 29.5 | H87: 2.718 | I87: 2145.79412 | J87: 0.5 | K87: 0.0775 | L87: =IF('Input Sheet'!D87>0,'Input Sheet'!D87,0.15) -> 0.15 | M87: 0.761578411 | N87: 0.2520889548 | O87: ='Input Sheet'!A87 -> 52 | P87: 0.5322950536 | Q87: 41.26527154 | R87: -4.01490387 | S87: 21.4579412 | T87: 18.62216787
A88: 58.2 | B88: 0 | C88: 1.0155 | D88: =tclcalcul!B88 -> 33.09274183 | E88: =IF('Input Sheet'!C88>0,'Input Sheet'!C88,Psychrometric!G88) -> 29.7 | F88: 4.686309849 | G88: ='Input Sheet'!B88 -> 29.7 | H88: 2.718 | I88: 2087.161642 | J88: 0.5 | K88: 0.0775 | L88: =IF('Input Sheet'!D88>0,'Input Sheet'!D88,0.15) -> 0.15 | M88: 0.8167256365 | N88: 0.2923679285 | O88: ='Input Sheet'!A88 -> 50 | P88: 0.5319859804 | Q88: 41.74323283 | R88: -4.012167347 | S88: 20.87161642 | T88: 18.18007001
A89: 58.2 | B89: 0 | C89: 1.0155 | D89: =tclcalcul!B89 -> 32.9686373 | E89: =IF('Input Sheet'!C89>0,'Input Sheet'!C89,Psychrometric!G89) -> 29.4 | F89: 4.686309849 | G89: ='Input Sheet'!B89 -> 29.4 | H89: 2.718 | I89: 2051.404037 | J89: 0.5 | K89: 0.0775 | L89: =IF('Input Sheet'!D89>0,'Input Sheet'!D89,0.15) -> 0.15 | M89: 0.7010604748 | N89: 0.2128862773 | O89: ='Input Sheet'!A89 -> 50 | P89: 0.5324495902 | Q89: 41.02808074 | R89: -4.016272498 | S89: 20.51404037 | T89: 17.90507614
A90: 58.2 | B90: 0 | C90: 1.0155 | D90: =tclcalcul!B90 -> 32.59720499 | E90: =IF('Input Sheet'!C90>0,'Input Sheet'!C90,Psychrometric!G90) -> 28.5 | F90: 4.686309849 | G90: ='Input Sheet'!B90 -> 28.5 | H90: 2.718 | I90: 1986.254486 | J90: 0.5 | K90: 0.0775 | L90: =IF('Input Sheet'!D90>0,'Input Sheet'!D90,0.15) -> 0.15 | M90: 0.3660331632 | N90: 0.08287038619 | O90: ='Input Sheet'!A90 -> 51 | P90: 0.5338404194 | Q90: 38.94616639 | R90: -4.028601138 | S90: 19.86254486 | T90: 17.39305133
A91: 58.2 | B91: 0 | C91: 1.0155 | D91: =tclcalcul!B91 -> 32.02203978 | E91: =IF('Input Sheet'!C91>0,'Input Sheet'!C91,Psychrometric!G91) -> 27.1 | F91: 4.686309849 | G91: ='Input Sheet'!B91 -> 27.1 | H91: 2.718 | I91: 2081.637315 | J91: 0.5 | K91: 0.0775 | L91: =IF('Input Sheet'!D91>0,'Input Sheet'!D91,0.15) -> 0.15 | M91: -0.1004920031 | N91: 0.05212058425 | O91: ='Input Sheet'!A91 -> 58 | P91: 0.5360039314 | Q91: 35.89029853 | R91: -4.047818494 | S91: 20.81637315 | T91: 18.13785635
A92: 58.2 | B92: 0 | C92: 1.0155 | D92: =tclcalcul!B92 -> 31.3278816 | E92: =IF('Input Sheet'!C92>0,'Input Sheet'!C92,Psychrometric!G92) -> 25.4 | F92: 4.686309849 | G92: ='Input Sheet'!B92 -> 25.4 | H92: 2.718 | I92: 2174.95913 | J92: 0.5 | K92: 0.0775 | L92: =IF('Input Sheet'!D92>0,'Input Sheet'!D92,0.15) -> 0.15 | M92: -0.6693971332 | N92: 0.194471347 | O92: ='Input Sheet'!A92 -> 67 | P92: 0.5386310532 | Q92: 32.46207657 | R92: -4.071218855 | S92: 21.7495913 | T92: 18.83814504
A93: 58.2 | B93: 0 | C93: 1.0155 | D93: =tclcalcul!B93 -> 30.80018157 | E93: =IF('Input Sheet'!C93>0,'Input Sheet'!C93,Psychrometric!G93) -> 24.1 | F93: 4.686309849 | G93: ='Input Sheet'!B93 -> 24.1 | H93: 2.718 | I93: 2282.789348 | J93: 0.5 | K93: 0.0775 | L93: =IF('Input Sheet'!D93>0,'Input Sheet'!D93,0.15) -> 0.15 | M93: -1.092090873 | N93: 0.5453011043 | O93: ='Input Sheet'!A93 -> 76 | P93: 0.5406400287 | Q93: 30.03670194 | R93: -4.089161673 | S93: 22.82789348 | T93: 19.61522909
A94: 58.2 | B94: 0 | C94: 1.0155 | D94: =tclcalcul!B94 -> 30.31546177 | E94: =IF('Input Sheet'!C94>0,'Input Sheet'!C94,Psychrometric!G94) -> 22.9 | F94: 4.686309849 | G94: ='Input Sheet'!B94 -> 22.9 | H94: 2.718 | I94: 2263.126905 | J94: 0.5 | K94: 0.0775 | L94: =IF('Input Sheet'!D94>0,'Input Sheet'!D94,0.15) -> 0.15 | M94: -1.512021498 | N94: 0.8999402791 | O94: ='Input Sheet'!A94 -> 81 | P94: 0.5424944676 | Q94: 27.93983834 | R94: -4.105761761 | S94: 22.63126905 | T94: 19.47596377
A95: 58.2 | B95: 0 | C95: 1.0155 | D95: =tclcalcul!B95 -> 29.79291906 | E95: =IF('Input Sheet'!C95>0,'Input Sheet'!C95,Psychrometric!G95) -> 21.6 | F95: 4.686309849 | G95: ='Input Sheet'!B95 -> 21.6 | H95: 2.718 | I95: 2168.343429 | J95: 0.5 | K95: 0.0775 | L95: =IF('Input Sheet'!D95>0,'Input Sheet'!D95,0.15) -> 0.15 | M95: -1.984362738 | N95: 0.9977756556 | O95: ='Input Sheet'!A95 -> 84 | P95: 0.5445034431 | Q95: 25.81361225 | R95: -4.12378603 | S95: 21.68343429 | T95: 18.78937708
A96: 58.2 | B96: 0 | C96: 1.0155 | D96: =tclcalcul!B96 -> 29.27303183 | E96: =IF('Input Sheet'!C96>0,'Input Sheet'!C96,Psychrometric!G96) -> 20.3 | F96: 4.686309849 | G96: ='Input Sheet'!B96 -> 20.3 | H96: 2.718 | I96: 2049.39964 | J96: 0.5 | K96: 0.0775 | L96: =IF('Input Sheet'!D96>0,'Input Sheet'!D96,0.15) -> 0.15 | M96: -2.460905235 | N96: 0.9999988414 | O96: ='Input Sheet'!A96 -> 86 | P96: 0.5465124186 | Q96: 23.83022838 | R96: -4.14185301 | S96: 20.4939964 | T96: 17.88953722
A97: 58.2 | B97: 0 | C97: 1.0155 | D97: =tclcalcul!B97 -> 28.755782 | E97: =IF('Input Sheet'!C97>0,'Input Sheet'!C97,Psychrometric!G97) -> 19 | F97: 4.686309849 | G97: ='Input Sheet'!B97 -> 19 | H97: 2.718 | I97: 2044.279429 | J97: 0.5 | K97: 0.0775 | L97: =IF('Input Sheet'!D97>0,'Input Sheet'!D97,0.15) -> 0.15 | M97: -2.904894681 | N97: 1 | O97: ='Input Sheet'!A97 -> 93 | P97: 0.548521394 | Q97: 21.98149924 | R97: -4.159962945 | S97: 20.44279429 | T97: 17.84978261
A98: 58.2 | B98: 0 | C98: 1.0155 | D98: =tclcalcul!B98 -> 28.43877771 | E98: =IF('Input Sheet'!C98>0,'Input Sheet'!C98,Psychrometric!G98) -> 18.2 | F98: 4.686309849 | G98: ='Input Sheet'!B98 -> 18.2 | H98: 2.718 | I98: 1839.846701 | J98: 0.5 | K98: 0.0775 | L98: =IF('Input Sheet'!D98>0,'Input Sheet'!D98,0.15) -> 0.15 | M98: -3.230658448 | N98: 1 | O98: ='Input Sheet'!A98 -> 88 | P98: 0.5497576866 | Q98: 20.90734887 | R98: -4.171128975 | S98: 18.39846701 | T98: 16.18636167
A99: 58.2 | B99: 0 | C99: 1.0155 | D99: =tclcalcul!B99 -> 28.04391031 | E99: =IF('Input Sheet'!C99>0,'Input Sheet'!C99,Psychrometric!G99) -> 17.2 | F99: 4.686309849 | G99: ='Input Sheet'!B99 -> 17.2 | H99: 2.718 | I99: 1747.028879 | J99: 0.5 | K99: 0.0775 | L99: =IF('Input Sheet'!D99>0,'Input Sheet'!D99,0.15) -> 0.15 | M99: -3.59333134 | N99: 1 | O99: ='Input Sheet'!A99 -> 89 | P99: 0.5513030524 | Q99: 19.62953796 | R99: -4.185109602 | S99: 17.47028879 | T99: 15.37692612
A100: 58.2 | B100: 0 | C100: 1.0155 | D100: =tclcalcul!B100 -> 27.84705291 | E100: =IF('Input Sheet'!C100>0,'Input Sheet'!C100,Psychrometric!G100) -> 16.7 | F100: 4.686309849 | G100: ='Input Sheet'!B100 -> 16.7 | H100: 2.718 | I100: 1730.520694 | J100: 0.5 | K100: 0.0775 | L100: =IF('Input Sheet'!D100>0,'Input Sheet'!D100,0.15) -> 0.15 | M100: -3.766214724 | N100: 1 | O100: ='Input Sheet'!A100 -> 91 | P100: 0.5520757353 | Q100: 19.01671092 | R100: -4.192109567 | S100: 17.30520694 | T100: 15.22902272
A101: 58.2 | B101: 0 | C101: 1.0155 | D101: =tclcalcul!B101 -> 27.65057823 | E101: =IF('Input Sheet'!C101>0,'Input Sheet'!C101,Psychrometric!G101) -> 16.2 | F101: 4.686309849 | G101: ='Input Sheet'!B101 -> 16.2 | H101: 2.718 | I101: 1676.286517 | J101: 0.5 | K101: 0.0775 | L101: =IF('Input Sheet'!D101>0,'Input Sheet'!D101,0.15) -> 0.15 | M101: -3.948828842 | N101: 1 | O101: ='Input Sheet'!A101 -> 91 | P101: 0.5528484182 | Q101: 18.42073096 | R101: -4.199115985 | S101: 16.76286517 | T101: 14.73423392
A102: 58.2 | B102: 0 | C102: 1.0155 | D102: =tclcalcul!B102 -> 27.53287675 | E102: =IF('Input Sheet'!C102>0,'Input Sheet'!C102,Psychrometric!G102) -> 15.9 | F102: 4.686309849 | G102: ='Input Sheet'!B102 -> 15.9 | H102: 2.718 | I102: 1752.89332 | J102: 0.5 | K102: 0.0775 | L102: =IF('Input Sheet'!D102>0,'Input Sheet'!D102,0.15) -> 0.15 | M102: -4.029157727 | N102: 1 | O102: ='Input Sheet'!A102 -> 97 | P102: 0.5533120279 | Q102: 18.07106516 | R102: -4.203322938 | S102: 17.5289332 | T102: 15.4291726
A103: 58.2 | B103: 0 | C103: 1.0155 | D103: =tclcalcul!B103 -> 27.5720952 | E103: =IF('Input Sheet'!C103>0,'Input Sheet'!C103,Psychrometric!G103) -> 16 | F103: 4.686309849 | G103: ='Input Sheet'!B103 -> 16 | H103: 2.718 | I103: 1782.322818 | J103: 0.5 | K103: 0.0775 | L103: =IF('Input Sheet'!D103>0,'Input Sheet'!D103,0.15) -> 0.15 | M103: -3.987747267 | N103: 1 | O103: ='Input Sheet'!A103 -> 98 | P103: 0.5531574913 | Q103: 18.18696754 | R103: -4.201920361 | S103: 17.82322818 | T103: 15.68906543
A104: 58.2 | B104: 0 | C104: 1.0155 | D104: =tclcalcul!B104 -> 28.39922148 | E104: =IF('Input Sheet'!C104>0,'Input Sheet'!C104,Psychrometric!G104) -> 18.1 | F104: 4.686309849 | G104: ='Input Sheet'!B104 -> 18.1 | H104: 2.718 | I104: 1849.096868 | J104: 0.5 | K104: 0.0775 | L104: =IF('Input Sheet'!D104>0,'Input Sheet'!D104,0.15) -> 0.15 | M104: -3.262045673 | N104: 1 | O104: ='Input Sheet'!A104 -> 89 | P104: 0.5499122232 | Q104: 20.7763693 | R104: -4.172525882 | S104: 18.49096868 | T104: 16.26505215
A105: 58.2 | B105: 0 | C105: 1.0155 | D105: =tclcalcul!B105 -> 29.27303183 | E105: =IF('Input Sheet'!C105>0,'Input Sheet'!C105,Psychrometric!G105) -> 20.3 | F105: 4.686309849 | G105: ='Input Sheet'!B105 -> 20.3 | H105: 2.718 | I105: 1930.248498 | J105: 0.5 | K105: 0.0775 | L105: =IF('Input Sheet'!D105>0,'Input Sheet'!D105,0.15) -> 0.15 | M105: -2.49265628 | N105: 0.9999994138 | O105: ='Input Sheet'!A105 -> 81 | P105: 0.5465124186 | Q105: 23.83022838 | R105: -4.14185301 | S105: 19.30248498 | T105: 16.94097151
A106: 58.2 | B106: 0 | C106: 1.0155 | D106: =tclcalcul!B106 -> 30.19463848 | E106: =IF('Input Sheet'!C106>0,'Input Sheet'!C106,Psychrometric!G106) -> 22.6 | F106: 4.686309849 | G106: ='Input Sheet'!B106 -> 22.6 | H106: 2.718 | I106: 1893.087445 | J106: 0.5 | K106: 0.0775 | L106: =IF('Input Sheet'!D106>0,'Input Sheet'!D106,0.15) -> 0.15 | M106: -1.714001085 | N106: 0.9722717232 | O106: ='Input Sheet'!A106 -> 69 | P106: 0.5429580773 | Q106: 27.43604993 | R106: -4.10991743 | S106: 18.93087445 | T106: 16.63461242
A107: 58.2 | B107: 0 | C107: 1.0155 | D107: =tclcalcul!B107 -> 31.00282368 | E107: =IF('Input Sheet'!C107>0,'Input Sheet'!C107,Psychrometric!G107) -> 24.6 | F107: 4.686309849 | G107: ='Input Sheet'!B107 -> 24.6 | H107: 2.718 | I107: 1887.95842 | J107: 0.5 | K107: 0.0775 | L107: =IF('Input Sheet'!D107>0,'Input Sheet'!D107,0.15) -> 0.15 | M107: -1.023947032 | N107: 0.4770891792 | O107: ='Input Sheet'!A107 -> 61 | P107: 0.5398673458 | Q107: 30.95013803 | R107: -4.082255604 | S107: 18.8795842 | T107: 16.59191458
A108: 58.2 | B108: 0 | C108: 1.0155 | D108: =tclcalcul!B108 -> 31.73564664 | E108: =IF('Input Sheet'!C108>0,'Input Sheet'!C108,Psychrometric!G108) -> 26.4 | F108: 4.686309849 | G108: ='Input Sheet'!B108 -> 26.4 | H108: 2.718 | I108: 1928.767584 | J108: 0.5 | K108: 0.0775 | L108: =IF('Input Sheet'!D108>0,'Input Sheet'!D108,0.15) -> 0.15 | M108: -0.3861977979 | N108: 0.08721203869 | O108: ='Input Sheet'!A108 -> 56 | P108: 0.5370856874 | Q108: 34.44227828 | R108: -4.057445275 | S108: 19.28767584 | T108: 16.92886215
A109: 58.2 | B109: 0 | C109: 1.0155 | D109: =tclcalcul!B109 -> 32.30922519 | E109: =IF('Input Sheet'!C109>0,'Input Sheet'!C109,Psychrometric!G109) -> 27.8 | F109: 4.686309849 | G109: ='Input Sheet'!B109 -> 27.8 | H109: 2.718 | I109: 1981.726226 | J109: 0.5 | K109: 0.0775 | L109: =IF('Input Sheet'!D109>0,'Input Sheet'!D109,0.15) -> 0.15 | M109: 0.118520412 | N109: 0.05296603117 | O109: ='Input Sheet'!A109 -> 53 | P109: 0.5349221754 | Q109: 37.39106087 | R109: -4.038203795 | S109: 19.81726226 | T109: 17.35691767
A110: 58.2 | B110: 0 | C110: 1.0155 | D110: =tclcalcul!B110 -> 32.7208691 | E110: =IF('Input Sheet'!C110>0,'Input Sheet'!C110,Psychrometric!G110) -> 28.8 | F110: 4.686309849 | G110: ='Input Sheet'!B110 -> 28.8 | H110: 2.718 | I110: 1902.22467 | J110: 0.5 | K110: 0.0775 | L110: =IF('Input Sheet'!D110>0,'Input Sheet'!D110,0.15) -> 0.15 | M110: 0.4494062632 | N110: 0.1032504442 | O110: ='Input Sheet'!A110 -> 48 | P110: 0.5333768096 | Q110: 39.62968062 | R110: -4.024489391 | S110: 19.0222467 | T110: 16.7104266
A111: 58.2 | B111: 0 | C111: 1.0155 | D111: =tclcalcul!B111 -> 32.9686373 | E111: =IF('Input Sheet'!C111>0,'Input Sheet'!C111,Psychrometric!G111) -> 29.4 | F111: 4.686309849 | G111: ='Input Sheet'!B111 -> 29.4 | H111: 2.718 | I111: 1969.347875 | J111: 0.5 | K111: 0.0775 | L111: =IF('Input Sheet'!D111>0,'Input Sheet'!D111,0.15) -> 0.15 | M111: 0.6791943905 | N111: 0.2000165801 | O111: ='Input Sheet'!A111 -> 48 | P111: 0.5324495902 | Q111: 41.02808074 | R111: -4.016272498 | S111: 19.69347875 | T111: 17.25777254
A112: 58.2 | B112: 0 | C112: 1.0155 | D112: =tclcalcul!B112 -> 33.0513574 | E112: =IF('Input Sheet'!C112>0,'Input Sheet'!C112,Psychrometric!G112) -> 29.6 | F112: 4.686309849 | G112: ='Input Sheet'!B112 -> 29.6 | H112: 2.718 | I112: 1909.16808 | J112: 0.5 | K112: 0.0775 | L112: =IF('Input Sheet'!D112>0,'Input Sheet'!D112,0.15) -> 0.15 | M112: 0.7339017292 | N112: 0.2335058411 | O112: ='Input Sheet'!A112 -> 46 | P112: 0.532140517 | Q112: 41.5036539 | R112: -4.013535487 | S112: 19.0916808 | T112: 16.76782465
A113: 58.2 | B113: 0 | C113: 1.0155 | D113: =tclcalcul!B113 -> 32.92730162 | E113: =IF('Input Sheet'!C113>0,'Input Sheet'!C113,Psychrometric!G113) -> 29.3 | F113: 4.686309849 | G113: ='Input Sheet'!B113 -> 29.3 | H113: 2.718 | I113: 1958.019673 | J113: 0.5 | K113: 0.0775 | L113: =IF('Input Sheet'!D113>0,'Input Sheet'!D113,0.15) -> 0.15 | M113: 0.6408245047 | N113: 0.1790718579 | O113: ='Input Sheet'!A113 -> 48 | P113: 0.5326041267 | Q113: 40.79207651 | R113: -4.01764137 | S113: 19.58019673 | T113: 17.16655831
A114: 58.2 | B114: 0 | C114: 1.0155 | D114: =tclcalcul!B114 -> 32.55601639 | E114: =IF('Input Sheet'!C114>0,'Input Sheet'!C114,Psychrometric!G114) -> 28.4 | F114: 4.686309849 | G114: ='Input Sheet'!B114 -> 28.4 | H114: 2.718 | I114: 1858.589742 | J114: 0.5 | K114: 0.0775 | L114: =IF('Input Sheet'!D114>0,'Input Sheet'!D114,0.15) -> 0.15 | M114: 0.296785697 | N114: 0.07048069 | O114: ='Input Sheet'!A114 -> 48 | P114: 0.5339949559 | Q114: 38.72061962 | R114: -4.02997221 | S114: 18.58589742 | T114: 16.34544885
A115: 58.2 | B115: 0 | C115: 1.0155 | D115: =tclcalcul!B115 -> 31.94013244 | E115: =IF('Input Sheet'!C115>0,'Input Sheet'!C115,Psychrometric!G115) -> 26.9 | F115: 4.686309849 | G115: ='Input Sheet'!B115 -> 26.9 | H115: 2.718 | I115: 1773.563285 | J115: 0.5 | K115: 0.0775 | L115: =IF('Input Sheet'!D115>0,'Input Sheet'!D115,0.15) -> 0.15 | M115: -0.2526458957 | N115: 0.06440065126 | O115: ='Input Sheet'!A115 -> 50 | P115: 0.5363130046 | Q115: 35.47126569 | R115: -4.050567768 | S115: 17.73563285 | T115: 15.61210607
A116: 58.2 | B116: 0 | C116: 1.0155 | D116: =tclcalcul!B116 -> 31.28719353 | E116: =IF('Input Sheet'!C116>0,'Input Sheet'!C116,Psychrometric!G116) -> 25.3 | F116: 4.686309849 | G116: ='Input Sheet'!B116 -> 25.3 | H116: 2.718 | I116: 1742.559985 | J116: 0.5 | K116: 0.0775 | L116: =IF('Input Sheet'!D116>0,'Input Sheet'!D116,0.15) -> 0.15 | M116: -0.8194277061 | N116: 0.2944505893 | O116: ='Input Sheet'!A116 -> 54 | P116: 0.5387855898 | Q116: 32.26962936 | R116: -4.072597577 | S116: 17.42559985 | T116: 15.3370091
A117: 58.2 | B117: 0 | C117: 1.0155 | D117: =tclcalcul!B117 -> 30.75970107 | E117: =IF('Input Sheet'!C117>0,'Input Sheet'!C117,Psychrometric!G117) -> 24 | F117: 4.686309849 | G117: ='Input Sheet'!B117 -> 24 | H117: 2.718 | I117: 1880.982533 | J117: 0.5 | K117: 0.0775 | L117: =IF('Input Sheet'!D117>0,'Input Sheet'!D117,0.15) -> 0.15 | M117: -1.233794443 | N117: 0.6865019887 | O117: ='Input Sheet'!A117 -> 63 | P117: 0.5407945653 | Q117: 29.8568656 | R117: -4.090543637 | S117: 18.80982533 | T117: 16.53367838
A118: 58.2 | B118: 0 | C118: 1.0155 | D118: =tclcalcul!B118 -> 30.23489699 | E118: =IF('Input Sheet'!C118>0,'Input Sheet'!C118,Psychrometric!G118) -> 22.7 | F118: 4.686309849 | G118: ='Input Sheet'!B118 -> 22.7 | H118: 2.718 | I118: 1877.010138 | J118: 0.5 | K118: 0.0775 | L118: =IF('Input Sheet'!D118>0,'Input Sheet'!D118,0.15) -> 0.15 | M118: -1.683841043 | N118: 0.9654241861 | O118: ='Input Sheet'!A118 -> 68 | P118: 0.5428035407 | Q118: 27.60309026 | R118: -4.108531956 | S118: 18.77010138 | T118: 16.50043121
A119: 58.2 | B119: 0 | C119: 1.0155 | D119: =tclcalcul!B119 -> 29.71276399 | E119: =IF('Input Sheet'!C119>0,'Input Sheet'!C119,Psychrometric!G119) -> 21.4 | F119: 4.686309849 | G119: ='Input Sheet'!B119 -> 21.4 | H119: 2.718 | I119: 1810.456566 | J119: 0.5 | K119: 0.0775 | L119: =IF('Input Sheet'!D119>0,'Input Sheet'!D119,0.15) -> 0.15 | M119: -2.148314531 | N119: 0.9997250833 | O119: ='Input Sheet'!A119 -> 71 | P119: 0.5448125162 | Q119: 25.49938825 | R119: -4.126562779 | S119: 18.10456566 | T119: 15.93401595
A120: 58.2 | B120: 0 | C120: 1.0155 | D120: =tclcalcul!B120 -> 29.1932837 | E120: =IF('Input Sheet'!C120>0,'Input Sheet'!C120,Psychrometric!G120) -> 20.1 | F120: 4.686309849 | G120: ='Input Sheet'!B120 -> 20.1 | H120: 2.718 | I120: 1718.218799 | J120: 0.5 | K120: 0.0775 | L120: =IF('Input Sheet'!D120>0,'Input Sheet'!D120,0.15) -> 0.15 | M120: -2.617397696 | N120: 0.9999999687 | O120: ='Input Sheet'!A120 -> 73 | P120: 0.5468214917 | Q120: 23.53724383 | R120: -4.144636352 | S120: 17.18218799 | T120: 15.11799714
A121: 58.2 | B121: 0 | C121: 1.0155 | D121: =tclcalcul!B121 -> 28.71610245 | E121: =IF('Input Sheet'!C121>0,'Input Sheet'!C121,Psychrometric!G121) -> 18.9 | F121: 4.686309849 | G121: ='Input Sheet'!B121 -> 18.9 | H121: 2.718 | I121: 1682.037303 | J121: 0.5 | K121: 0.0775 | L121: =IF('Input Sheet'!D121>0,'Input Sheet'!D121,0.15) -> 0.15 | M121: -3.035380492 | N121: 1 | O121: ='Input Sheet'!A121 -> 77 | P121: 0.5486759306 | Q121: 21.8446403 | R121: -4.161357803 | S121: 16.82037303 | T121: 14.7873606
A122: 58.2 | B122: 0 | C122: 1.0155 | D122: =tclcalcul!B122 -> 28.39922148 | E122: =IF('Input Sheet'!C122>0,'Input Sheet'!C122,Psychrometric!G122) -> 18.1 | F122: 4.686309849 | G122: ='Input Sheet'!B122 -> 18.1 | H122: 2.718 | I122: 1641.333175 | J122: 0.5 | K122: 0.0775 | L122: =IF('Input Sheet'!D122>0,'Input Sheet'!D122,0.15) -> 0.15 | M122: -3.31740993 | N122: 1 | O122: ='Input Sheet'!A122 -> 79 | P122: 0.5499122232 | Q122: 20.7763693 | R122: -4.172525882 | S122: 16.41333175 | T122: 14.40784135
A123: 58.2 | B123: 0 | C123: 1.0155 | D123: =tclcalcul!B123 -> 28.00450831 | E123: =IF('Input Sheet'!C123>0,'Input Sheet'!C123,Psychrometric!G123) -> 17.1 | F123: 4.686309849 | G123: ='Input Sheet'!B123 -> 17.1 | H123: 2.718 | I123: 1540.942843 | J123: 0.5 | K123: 0.0775 | L123: =IF('Input Sheet'!D123>0,'Input Sheet'!D123,0.15) -> 0.15 | M123: -3.681971328 | N123: 1 | O123: ='Input Sheet'!A123 -> 79 | P123: 0.551457589 | Q123: 19.5056056 | R123: -4.186509079 | S123: 15.40942843 | T123: 13.43521454
A124: 58.2 | B124: 0 | C124: 1.0155 | D124: =tclcalcul!B124 -> 27.80772754 | E124: =IF('Input Sheet'!C124>0,'Input Sheet'!C124,Psychrometric!G124) -> 16.6 | F124: 4.686309849 | G124: ='Input Sheet'!B124 -> 16.6 | H124: 2.718 | I124: 1492.798212 | J124: 0.5 | K124: 0.0775 | L124: =IF('Input Sheet'!D124>0,'Input Sheet'!D124,0.15) -> 0.15 | M124: -3.863220554 | N124: 1 | O124: ='Input Sheet'!A124 -> 79 | P124: 0.5522302719 | Q124: 18.8961799 | R124: -4.193510334 | S124: 14.92798212 | T124: 12.94884852
A125: 58.2 | B125: 0 | C125: 1.0155 | D125: =tclcalcul!B125 -> 27.61132927 | E125: =IF('Input Sheet'!C125>0,'Input Sheet'!C125,Psychrometric!G125) -> 16.1 | F125: 4.686309849 | G125: ='Input Sheet'!B125 -> 16.1 | H125: 2.718 | I125: 1482.585263 | J125: 0.5 | K125: 0.0775 | L125: =IF('Input Sheet'!D125>0,'Input Sheet'!D125,0.15) -> 0.15 | M125: -4.034039654 | N125: 1 | O125: ='Input Sheet'!A125 -> 81 | P125: 0.5530029547 | Q125: 18.30352177 | R125: -4.200518044 | S125: 14.82585263 | T125: 12.84390497
A126: 58.2 | B126: 0 | C126: 1.0155 | D126: =tclcalcul!B126 -> 27.4544852 | E126: =IF('Input Sheet'!C126>0,'Input Sheet'!C126,Psychrometric!G126) -> 15.7 | F126: 4.686309849 | G126: ='Input Sheet'!B126 -> 15.7 | H126: 2.718 | I126: 1462.978693 | J126: 0.5 | K126: 0.0775 | L126: =IF('Input Sheet'!D126>0,'Input Sheet'!D126,0.15) -> 0.15 | M126: -4.173510933 | N126: 1 | O126: ='Input Sheet'!A126 -> 82 | P126: 0.553621101 | Q126: 17.84120358 | R126: -4.206128868 | S126: 14.62978693 | T126: 12.64064239
A127: 58.2 | B127: 0 | C127: 1.0155 | D127: =tclcalcul!B127 -> 27.49367317 | E127: =IF('Input Sheet'!C127>0,'Input Sheet'!C127,Psychrometric!G127) -> 15.8 | F127: 4.686309849 | G127: ='Input Sheet'!B127 -> 15.8 | H127: 2.718 | I127: 1472.376545 | J127: 0.5 | K127: 0.0775 | L127: =IF('Input Sheet'!D127>0,'Input Sheet'!D127,0.15) -> 0.15 | M127: -4.137464119 | N127: 1 | O127: ='Input Sheet'!A127 -> 82 | P127: 0.5534665645 | Q127: 17.95581153 | R127: -4.204725774 | S127: 14.72376545 | T127: 12.73836758
A128: 58.2 | B128: 0 | C128: 1.0155 | D128: =tclcalcul!B128 -> 28.20167261 | E128: =IF('Input Sheet'!C128>0,'Input Sheet'!C128,Psychrometric!G128) -> 17.6 | F128: 4.686309849 | G128: ='Input Sheet'!B128 -> 17.6 | H128: 2.718 | I128: 1530.047152 | J128: 0.5 | K128: 0.0775 | L128: =IF('Input Sheet'!D128>0,'Input Sheet'!D128,0.15) -> 0.15 | M128: -3.516131916 | N128: 1 | O128: ='Input Sheet'!A128 -> 76 | P128: 0.5506849061 | Q128: 20.13219937 | R128: -4.179514266 | S128: 15.30047152 | T128: 13.32632621
A129: 58.2 | B129: 0 | C129: 1.0155 | D129: =tclcalcul!B129 -> 28.99418621 | E129: =IF('Input Sheet'!C129>0,'Input Sheet'!C129,Psychrometric!G129) -> 19.6 | F129: 4.686309849 | G129: ='Input Sheet'!B129 -> 19.6 | H129: 2.718 | I129: 1597.297306 | J129: 0.5 | K129: 0.0775 | L129: =IF('Input Sheet'!D129>0,'Input Sheet'!D129,0.15) -> 0.15 | M129: -2.819991831 | N129: 0.9999999999 | O129: ='Input Sheet'!A129 -> 70 | P129: 0.5475941746 | Q129: 22.81853295 | R129: -4.151599161 | S129: 15.97297306 | T129: 13.98782786
A130: 58.2 | B130: 0 | C130: 1.0155 | D130: =tclcalcul!B130 -> 29.79291906 | E130: =IF('Input Sheet'!C130>0,'Input Sheet'!C130,Psychrometric!G130) -> 21.6 | F130: 4.686309849 | G130: ='Input Sheet'!B130 -> 21.6 | H130: 2.718 | I130: 1652.071184 | J130: 0.5 | K130: 0.0775 | L130: =IF('Input Sheet'!D130>0,'Input Sheet'!D130,0.15) -> 0.15 | M130: -2.121937445 | N130: 0.9996024314 | O130: ='Input Sheet'!A130 -> 64 | P130: 0.5445034431 | Q130: 25.81361225 | R130: -4.12378603 | S130: 16.52071184 | T130: 14.50875708
A131: 58.2 | B131: 0 | C131: 1.0155 | D131: =tclcalcul!B131 -> 30.51715087 | E131: =IF('Input Sheet'!C131>0,'Input Sheet'!C131,Psychrometric!G131) -> 23.4 | F131: =IF((2.38*ABS(D131-G131)^0.25)>(12.1*SQRT(L131)),(2.38*ABS(D131-G131)^0.25),(12.1*SQRT(L131))) -> 4.686309849 | G131: ='Input Sheet'!B131 -> 23.4 | H131: 2.718 | I131: =S131*100 -> 1699.049832 | J131: 0.5 | K131: 0.0775 | L131: =IF('Input Sheet'!D131>0,'Input Sheet'!D131,0.15) -> 0.15 | M131: =(0.303*EXP(-0.036*A131)+0.028)*((A131-B131)-3.96*(10^-8)*C131*((D131+273)^4-(E131+273)^4)-C131*F131*(D131-G131)-3.05*10^-3*(5733-6.99*(A131-B131)-I131)-0.42*((A131-B131)-58.15)-1.773*10^-5*A131*(5867-I131)-0.0014*A131*(34-G131)) -> -1.489781158 | N131: 0.8877000298 | O131: ='Input Sheet'!A131 -> 59 | P131: 0.5417217847 | Q131: 28.79745478 | R131: -4.098840672 | S131: 16.99049832 | T131: 14.94359605
A132: =A131 -> 58.2 | B132: 0 | C132: 1.0155 | D132: =tclcalcul!B132 -> 31.16522471 | E132: =IF('Input Sheet'!C132>0,'Input Sheet'!C132,Psychrometric!G132) -> 25 | F132: 4.686309849 | G132: ='Input Sheet'!B132 -> 25 | H132: 2.718 | I132: 1743.403467 | J132: =J131 -> 0.5 | K132: =0.155*J132 -> 0.0775 | L132: =IF('Input Sheet'!D132>0,'Input Sheet'!D132,0.15) -> 0.15 | M132: -0.9235399782 | N132: =1-0.95*EXP(-(0.3353*M132^4+0.2179*M132^2)) -> 0.3818789159 | O132: ='Input Sheet'!A132 -> 55 | P132: 0.5392491995 | Q132: 31.69824486 | R132: =(-7.85951783*P132)+(1.84408259*P132^1.5)-(11.7866497*P132^3)+(22.6807411*P132^3.5)-(15.9618719*P132^4)+(1.80122502*P132^7.5) -> -4.076735238 | S132: =O132*Q132/100 -> 17.43403467 | T132: =240.7263/((7.591386/LOG10(S132/6.116441))-1) -> 15.34455013
A133: 58.2 | B133: 0 | C133: =(1+0.2*K133) -> 1.0155 | D133: =tclcalcul!B133 -> 31.65396505 | E133: =IF('Input Sheet'!C133>0,'Input Sheet'!C133,Psychrometric!G133) -> 26.2 | F133: 4.686309849 | G133: ='Input Sheet'!B133 -> 26.2 | H133: 2.718 | I133: 1769.977339 | J133: 0.5 | K133: 0.0775 | L133: =IF('Input Sheet'!D133>0,'Input Sheet'!D133,0.15) -> 0.15 | M133: -0.4983808152 | N133: 0.1184752098 | O133: ='Input Sheet'!A133 -> 52 | P133: =1-(273.15+G133)/647.096 -> 0.5373947606 | Q133: =220640*EXP((647.096/(G133+273.15))*R133) -> 34.03802575 | R133: -4.060198009 | S133: 17.69977339 | T133: 15.58050441
A134: 58.2 | B134: 0 | C134: 1.0155 | D134: =tclcalcul!B134 -> 32.02203978 | E134: =IF('Input Sheet'!C134>0,'Input Sheet'!C134,Psychrometric!G134) -> 27.1 | F134: 4.686309849 | G134: ='Input Sheet'!B134 -> 27.1 | H134: 2.718 | I134: 1794.514926 | J134: 0.5 | K134: 0.0775 | L134: =IF('Input Sheet'!D134>0,'Input Sheet'!D134,0.15) -> 0.15 | M134: -0.1770035318 | N134: 0.05677392154 | O134: ='Input Sheet'!A134 -> 50 | P134: 0.5360039314 | Q134: 35.89029853 | R134: -4.047818494 | S134: 17.94514926 | T134: 15.79563163
A135: 58.2 | B135: 0 | C135: 1.0155 | D135: =tclcalcul!B135 -> 32.22709129 | E135: =IF('Input Sheet'!C135>0,'Input Sheet'!C135,Psychrometric!G135) -> 27.6 | F135: 4.686309849 | G135: ='Input Sheet'!B135 -> 27.6 | H135: 2.718 | I135: 1773.926262 | J135: 0.5 | K135: 0.0775 | L135: =IF('Input Sheet'!D135>0,'Input Sheet'!D135,0.15) -> 0.15 | M135: -0.007103584316 | N135: 0.05001044641 | O135: ='Input Sheet'!A135 -> 48 | P135: 0.5352312485 | Q135: 36.95679713 | R135: -4.040949621 | S135: 17.73926262 | T135: 15.61530173
A136: 58.2 | B136: 0 | C136: 1.0155 | D136: =tclcalcul!B136 -> 32.26814997 | E136: =IF('Input Sheet'!C136>0,'Input Sheet'!C136,Psychrometric!G136) -> 27.7 | F136: 4.686309849 | G136: ='Input Sheet'!B136 -> 27.7 | H136: 2.718 | I136: 1784.322089 | J136: 0.5 | K136: 0.0775 | L136: =IF('Input Sheet'!D136>0,'Input Sheet'!D136,0.15) -> 0.15 | M136: 0.03078497329 | N136: 0.05019644744 | O136: ='Input Sheet'!A136 -> 48 | P136: 0.535076712 | Q136: 37.17337686 | R136: -4.039576585 | S136: 17.84322089 | T136: 15.70658402
A137: 58.2 | B137: 0 | C137: 1.0155 | D137: =tclcalcul!B137 -> 32.1450222 | E137: =IF('Input Sheet'!C137>0,'Input Sheet'!C137,Psychrometric!G137) -> 27.4 | F137: 4.686309849 | G137: ='Input Sheet'!B137 -> 27.4 | H137: 2.718 | I137: 1789.819652 | J137: 0.5 | K137: 0.0775 | L137: =IF('Input Sheet'!D137>0,'Input Sheet'!D137,0.15) -> 0.15 | M137: -0.07306384006 | N137: 0.05111348437 | O137: ='Input Sheet'!A137 -> 49 | P137: 0.5355403217 | Q137: 36.52693167 | R137: -4.043696431 | S137: 17.89819652 | T137: 15.75466766
A138: 58.2 | B138: 0 | C138: 1.0155 | D138: =tclcalcul!B138 -> 31.81739265 | E138: =IF('Input Sheet'!C138>0,'Input Sheet'!C138,Psychrometric!G138) -> 26.6 | F138: 4.686309849 | G138: ='Input Sheet'!B138 -> 26.6 | H138: 2.718 | I138: 1777.386128 | J138: 0.5 | K138: 0.0775 | L138: =IF('Input Sheet'!D138>0,'Input Sheet'!D138,0.15) -> 0.15 | M138: -0.3566141555 | N138: 0.08096152141 | O138: ='Input Sheet'!A138 -> 51 | P138: 0.5367766143 | Q138: 34.85070839 | R138: -4.054693531 | S138: 17.77386128 | T138: 15.64573369
A139: 58.2 | B139: 0 | C139: 1.0155 | D139: =tclcalcul!B139 -> 31.24652114 | E139: =IF('Input Sheet'!C139>0,'Input Sheet'!C139,Psychrometric!G139) -> 25.2 | F139: 4.686309849 | G139: ='Input Sheet'!B139 -> 25.2 | H139: 2.718 | I139: 1732.221606 | J139: 0.5 | K139: 0.0775 | L139: =IF('Input Sheet'!D139>0,'Input Sheet'!D139,0.15) -> 0.15 | M139: -0.8569750751 | N139: 0.3244076002 | O139: ='Input Sheet'!A139 -> 54 | P139: 0.5389401263 | Q139: 32.07817789 | R139: -4.073976549 | S139: 17.32221606 | T139: 15.24431899
A140: 58.2 | B140: 0 | C140: 1.0155 | D140: =tclcalcul!B140 -> 30.63835431 | E140: =IF('Input Sheet'!C140>0,'Input Sheet'!C140,Psychrometric!G140) -> 23.7 | F140: 4.686309849 | G140: ='Input Sheet'!B140 -> 23.7 | H140: 2.718 | I140: 1700.733036 | J140: 0.5 | K140: 0.0775 | L140: =IF('Input Sheet'!D140>0,'Input Sheet'!D140,0.15) -> 0.15 | M140: -1.385639823 | N140: 0.8183562233 | O140: ='Input Sheet'!A140 -> 58 | P140: 0.541258175 | Q140: 29.32298337 | R140: -4.094691027 | S140: 17.00733036 | T140: 14.95897903
A141: 58.2 | B141: 0 | C141: 1.0155 | D141: =tclcalcul!B141 -> 30.15439542 | E141: =IF('Input Sheet'!C141>0,'Input Sheet'!C141,Psychrometric!G141) -> 22.5 | F141: 4.686309849 | G141: ='Input Sheet'!B141 -> 22.5 | H141: 2.718 | I141: 1745.273181 | J141: 0.5 | K141: 0.0775 | L141: =IF('Input Sheet'!D141>0,'Input Sheet'!D141,0.15) -> 0.15 | M141: -1.787820956 | N141: 0.9845988432 | O141: ='Input Sheet'!A141 -> 64 | P141: 0.5431126139 | Q141: 27.26989345 | R141: -4.111303156 | S141: 17.45273181 | T141: 15.36125459
A142: 58.2 | B142: 0 | C142: 1.0155 | D142: =tclcalcul!B142 -> 29.67271018 | E142: =IF('Input Sheet'!C142>0,'Input Sheet'!C142,Psychrometric!G142) -> 21.3 | F142: 4.686309849 | G142: ='Input Sheet'!B142 -> 21.3 | H142: 2.718 | I142: 1723.360332 | J142: 0.5 | K142: 0.0775 | L142: =IF('Input Sheet'!D142>0,'Input Sheet'!D142,0.15) -> 0.15 | M142: -2.205795526 | N142: 0.9998825139 | O142: ='Input Sheet'!A142 -> 68 | P142: 0.5449670528 | Q142: 25.34353429 | R142: -4.127951533 | S142: 17.23360332 | T142: 15.16448453
A143: 58.2 | B143: 0 | C143: 1.0155 | D143: =tclcalcul!B143 -> 29.1932837 | E143: =IF('Input Sheet'!C143>0,'Input Sheet'!C143,Psychrometric!G143) -> 20.1 | F143: 4.686309849 | G143: ='Input Sheet'!B143 -> 20.1 | H143: 2.718 | I143: 1694.681556 | J143: 0.5 | K143: 0.0775 | L143: =IF('Input Sheet'!D143>0,'Input Sheet'!D143,0.15) -> 0.15 | M143: -2.623669832 | N143: 0.9999999733 | O143: ='Input Sheet'!A143 -> 72 | P143: 0.5468214917 | Q143: 23.53724383 | R143: -4.144636352 | S143: 16.94681556 | T143: 14.90361135
A144: 58.2 | B144: 0 | C144: 1.0155 | D144: =tclcalcul!B144 -> 28.755782 | E144: =IF('Input Sheet'!C144>0,'Input Sheet'!C144,Psychrometric!G144) -> 19 | F144: 4.686309849 | G144: ='Input Sheet'!B144 -> 19 | H144: 2.718 | I144: 1604.649444 | J144: 0.5 | K144: 0.0775 | L144: =IF('Input Sheet'!D144>0,'Input Sheet'!D144,0.15) -> 0.15 | M144: -3.022045985 | N144: 1 | O144: ='Input Sheet'!A144 -> 73 | P144: 0.548521394 | Q144: 21.98149924 | R144: -4.159962945 | S144: 16.04649444 | T144: 14.05865453
A145: 58.2 | B145: 0 | C145: 1.0155 | D145: =tclcalcul!B145 -> 28.28064602 | E145: =IF('Input Sheet'!C145>0,'Input Sheet'!C145,Psychrometric!G145) -> 17.8 | F145: 4.686309849 | G145: ='Input Sheet'!B145 -> 17.8 | H145: 2.718 | I145: 1529.080132 | J145: 0.5 | K145: 0.0775 | L145: =IF('Input Sheet'!D145>0,'Input Sheet'!D145,0.15) -> 0.15 | M145: -3.448801846 | N145: 1 | O145: ='Input Sheet'!A145 -> 75 | P145: 0.550375833 | Q145: 20.38773509 | R145: -4.176718142 | S145: 15.29080132 | T145: 13.31662918
A146: 58.2 | B146: 0 | C146: 1.0155 | D146: =tclcalcul!B146 -> 28.04391031 | E146: =IF('Input Sheet'!C146>0,'Input Sheet'!C146,Psychrometric!G146) -> 17.2 | F146: 4.686309849 | G146: ='Input Sheet'!B146 -> 17.2 | H146: 2.718 | I146: 1511.474423 | J146: 0.5 | K146: 0.0775 | L146: =IF('Input Sheet'!D146>0,'Input Sheet'!D146,0.15) -> 0.15 | M146: -3.656101198 | N146: 1 | O146: ='Input Sheet'!A146 -> 77 | P146: 0.5513030524 | Q146: 19.62953796 | R146: -4.185109602 | S146: 15.11474423 | T146: 13.13913425
A147: 58.2 | B147: 0 | C147: 1.0155 | D147: =tclcalcul!B147 -> 27.80772754 | E147: =IF('Input Sheet'!C147>0,'Input Sheet'!C147,Psychrometric!G147) -> 16.6 | F147: 4.686309849 | G147: ='Input Sheet'!B147 -> 16.6 | H147: 2.718 | I147: 1530.590572 | J147: 0.5 | K147: 0.0775 | L147: =IF('Input Sheet'!D147>0,'Input Sheet'!D147,0.15) -> 0.15 | M147: -3.853149758 | N147: 1 | O147: ='Input Sheet'!A147 -> 81 | P147: 0.5522302719 | Q147: 18.8961799 | R147: -4.193510334 | S147: 15.30590572 | T147: 13.33177311
A148: 58.2 | B148: 0 | C148: 1.0155 | D148: =tclcalcul!B148 -> 27.68984282 | E148: =IF('Input Sheet'!C148>0,'Input Sheet'!C148,Psychrometric!G148) -> 16.3 | F148: 4.686309849 | G148: ='Input Sheet'!B148 -> 16.3 | H148: 2.718 | I148: 1538.703653 | J148: 0.5 | K148: 0.0775 | L148: =IF('Input Sheet'!D148>0,'Input Sheet'!D148,0.15) -> 0.15 | M148: -3.951885011 | N148: 1 | O148: ='Input Sheet'!A148 -> 83 | P148: 0.5526938816 | Q148: 18.53859823 | R148: -4.197714184 | S148: 15.38703653 | T148: 13.41289212
A149: 58.2 | B149: 0 | C149: 1.0155 | D149: =tclcalcul!B149 -> 27.5720952 | E149: =IF('Input Sheet'!C149>0,'Input Sheet'!C149,Psychrometric!G149) -> 16 | F149: 4.686309849 | G149: ='Input Sheet'!B149 -> 16 | H149: 2.718 | I149: 1473.14437 | J149: 0.5 | K149: 0.0775 | L149: =IF('Input Sheet'!D149>0,'Input Sheet'!D149,0.15) -> 0.15 | M149: -4.070136229 | N149: 1 | O149: ='Input Sheet'!A149 -> 81 | P149: 0.5531574913 | Q149: 18.18696754 | R149: -4.201920361 | S149: 14.7314437 | T149: 12.74632767
A150: 58.2 | B150: 0 | C150: 1.0155 | D150: =tclcalcul!B150 -> 27.4544852 | E150: =IF('Input Sheet'!C150>0,'Input Sheet'!C150,Psychrometric!G150) -> 15.7 | F150: 4.686309849 | G150: ='Input Sheet'!B150 -> 15.7 | H150: 2.718 | I150: 1552.184711 | J150: 0.5 | K150: 0.0775 | L150: =IF('Input Sheet'!D150>0,'Input Sheet'!D150,0.15) -> 0.15 | M150: -4.149739576 | N150: 1 | O150: ='Input Sheet'!A150 -> 87 | P150: 0.553621101 | Q150: 17.84120358 | R150: -4.206128868 | S150: 15.52184711 | T150: 13.54685524
A151: 58.2 | B151: 0 | C151: 1.0155 | D151: =tclcalcul!B151 -> 27.49367317 | E151: =IF('Input Sheet'!C151>0,'Input Sheet'!C151,Psychrometric!G151) -> 15.8 | F151: 4.686309849 | G151: ='Input Sheet'!B151 -> 15.8 | H151: 2.718 | I151: 1544.199792 | J151: 0.5 | K151: 0.0775 | L151: =IF('Input Sheet'!D151>0,'Input Sheet'!D151,0.15) -> 0.15 | M151: -4.118324871 | N151: 1 | O151: ='Input Sheet'!A151 -> 86 | P151: 0.5534665645 | Q151: 17.95581153 | R151: -4.204725774 | S151: 15.44199792 | T151: 13.46763211
A152: 58.2 | B152: 0 | C152: 1.0155 | D152: =tclcalcul!B152 -> 28.24115181 | E152: =IF('Input Sheet'!C152>0,'Input Sheet'!C152,Psychrometric!G152) -> 17.7 | F152: 4.686309849 | G152: ='Input Sheet'!B152 -> 17.7 | H152: 2.718 | I152: 1661.288354 | J152: 0.5 | K152: 0.0775 | L152: =IF('Input Sheet'!D152>0,'Input Sheet'!D152,0.15) -> 0.15 | M152: -3.447371861 | N152: 1 | O152: ='Input Sheet'!A152 -> 82 | P152: 0.5505303695 | Q152: 20.25961407 | R152: -4.178116076 | S152: 16.61288354 | T152: 14.59492132
A153: 58.2 | B153: 0 | C153: 1.0155 | D153: =tclcalcul!B153 -> 29.03397479 | E153: =IF('Input Sheet'!C153>0,'Input Sheet'!C153,Psychrometric!G153) -> 19.7 | F153: 4.686309849 | G153: ='Input Sheet'!B153 -> 19.7 | H153: 2.718 | I153: 1722.05385 | J153: 0.5 | K153: 0.0775 | L153: =IF('Input Sheet'!D153>0,'Input Sheet'!D153,0.15) -> 0.15 | M153: -2.752699161 | N153: 0.9999999992 | O153: ='Input Sheet'!A153 -> 75 | P153: 0.547439638 | Q153: 22.960718 | R153: -4.15020609 | S153: 17.2205385 | T153: 15.15268348
A154: 58.2 | B154: 0 | C154: 1.0155 | D154: =tclcalcul!B154 -> 29.83302033 | E154: =IF('Input Sheet'!C154>0,'Input Sheet'!C154,Psychrometric!G154) -> 21.7 | F154: 4.686309849 | G154: ='Input Sheet'!B154 -> 21.7 | H154: 2.718 | I154: 1740.123323 | J154: 0.5 | K154: 0.0775 | L154: =IF('Input Sheet'!D154>0,'Input Sheet'!D154,0.15) -> 0.15 | M154: -2.064162248 | N154: 0.9991470352 | O154: ='Input Sheet'!A154 -> 67 | P154: 0.5443489065 | Q154: 25.9719899 | R154: -4.122398035 | S154: 17.40123323 | T154: 15.31520647
A155: 58.2 | B155: 0 | C155: 1.0155 | D155: =tclcalcul!B155 -> 30.55753603 | E155: =IF('Input Sheet'!C155>0,'Input Sheet'!C155,Psychrometric!G155) -> 23.5 | F155: 4.686309849 | G155: ='Input Sheet'!B155 -> 23.5 | H155: 2.718 | I155: 1796.245997 | J155: 0.5 | K155: 0.0775 | L155: =IF('Input Sheet'!D155>0,'Input Sheet'!D155,0.15) -> 0.15 | M155: -1.429329644 | N155: 0.8498210863 | O155: ='Input Sheet'!A155 -> 62 | P155: 0.5415672481 | Q155: 28.97170963 | R155: -4.097457206 | S155: 17.96245997 | T155: 15.81071063
A156: 58.2 | B156: 0 | C156: 1.0155 | D156: =tclcalcul!B156 -> 31.2058651 | E156: =IF('Input Sheet'!C156>0,'Input Sheet'!C156,Psychrometric!G156) -> 25.1 | F156: 4.686309849 | G156: ='Input Sheet'!B156 -> 25.1 | H156: 2.718 | I156: 1913.26307 | J156: 0.5 | K156: 0.0775 | L156: =IF('Input Sheet'!D156>0,'Input Sheet'!D156,0.15) -> 0.15 | M156: -0.8435108255 | N156: 0.3134499323 | O156: ='Input Sheet'!A156 -> 60 | P156: 0.5390946629 | Q156: 31.88771783 | R156: -4.075355769 | S156: 19.1326307 | T156: 16.80159026
A157: 58.2 | B157: 0 | C157: 1.0155 | D157: =tclcalcul!B157 -> 31.73564664 | E157: =IF('Input Sheet'!C157>0,'Input Sheet'!C157,Psychrometric!G157) -> 26.4 | F157: 4.686309849 | G157: ='Input Sheet'!B157 -> 26.4 | H157: 2.718 | I157: 1997.65214 | J157: 0.5 | K157: 0.0775 | L157: =IF('Input Sheet'!D157>0,'Input Sheet'!D157,0.15) -> 0.15 | M157: -0.3678416441 | N157: 0.08324544503 | O157: ='Input Sheet'!A157 -> 58 | P157: 0.5370856874 | Q157: 34.44227828 | R157: -4.057445275 | S157: 19.9765214 | T157: 17.48368108
A158: 58.2 | B158: 0 | C158: 1.0155 | D158: =tclcalcul!B158 -> 32.10401178 | E158: =IF('Input Sheet'!C158>0,'Input Sheet'!C158,Psychrometric!G158) -> 27.3 | F158: 4.686309849 | G158: ='Input Sheet'!B158 -> 27.3 | H158: 2.718 | I158: 2106.190923 | J158: 0.5 | K158: 0.0775 | L158: =IF('Input Sheet'!D158>0,'Input Sheet'!D158,0.15) -> 0.15 | M158: -0.02383533978 | N158: 0.05011769991 | O158: ='Input Sheet'!A158 -> 58 | P158: 0.5356948583 | Q158: 36.3136366 | R158: -4.045070206 | S158: 21.06190923 | T158: 18.32473443
A159: 58.2 | B159: 0 | C159: 1.0155 | D159: =tclcalcul!B159 -> 32.3503163 | E159: =IF('Input Sheet'!C159>0,'Input Sheet'!C159,Psychrometric!G159) -> 27.9 | F159: 4.686309849 | G159: ='Input Sheet'!B159 -> 27.9 | H159: 2.718 | I159: 2030.932108 | J159: 0.5 | K159: 0.0775 | L159: =IF('Input Sheet'!D159>0,'Input Sheet'!D159,0.15) -> 0.15 | M159: 0.1667782761 | N159: 0.05598535038 | O159: ='Input Sheet'!A159 -> 54 | P159: 0.5347676388 | Q159: 37.60985385 | R159: -4.03683125 | S159: 20.30932108 | T159: 17.7457386
A160: 58.2 | B160: 0 | C160: 1.0155 | D160: =tclcalcul!B160 -> 32.47368767 | E160: =IF('Input Sheet'!C160>0,'Input Sheet'!C160,Psychrometric!G160) -> 28.2 | F160: 4.686309849 | G160: ='Input Sheet'!B160 -> 28.2 | H160: 2.718 | I160: 2105.011375 | J160: 0.5 | K160: 0.0775 | L160: =IF('Input Sheet'!D160>0,'Input Sheet'!D160,0.15) -> 0.15 | M160: 0.2920372242 | N160: 0.06976302602 | O160: ='Input Sheet'!A160 -> 55 | P160: 0.5343040291 | Q160: 38.27293409 | R160: -4.03271509 | S160: 21.05011375 | T160: 18.31580066
A161: 58.2 | B161: 0 | C161: 1.0155 | D161: =tclcalcul!B161 -> 32.39142396 | E161: =IF('Input Sheet'!C161>0,'Input Sheet'!C161,Psychrometric!G161) -> 28 | F161: 4.686309849 | G161: ='Input Sheet'!B161 -> 28 | H161: 2.718 | I161: 2080.63683 | J161: 0.5 | K161: 0.0775 | L161: =IF('Input Sheet'!D161>0,'Input Sheet'!D161,0.15) -> 0.15 | M161: 0.2151825413 | N161: 0.06021271461 | O161: ='Input Sheet'!A161 -> 55 | P161: 0.5346131022 | Q161: 37.82976055 | R161: -4.035458951 | S161: 20.8063683 | T161: 18.13020073
A162: 58.2 | B162: 0 | C162: 1.0155 | D162: =tclcalcul!B162 -> 32.06301786 | E162: =IF('Input Sheet'!C162>0,'Input Sheet'!C162,Psychrometric!G162) -> 27.2 | F162: 4.686309849 | G162: ='Input Sheet'!B162 -> 27.2 | H162: 2.718 | I162: 2093.882772 | J162: 0.5 | K162: 0.0775 | L162: =IF('Input Sheet'!D162>0,'Input Sheet'!D162,0.15) -> 0.15 | M162: -0.06217893486 | N162: 0.05080474717 | O162: ='Input Sheet'!A162 -> 58 | P162: 0.5358493948 | Q162: 36.1014271 | R162: -4.046444227 | S162: 20.93882772 | T162: 18.23129702
A163: 58.2 | B163: 0 | C163: 1.0155 | D163: =tclcalcul!B163 -> 31.53156348 | E163: =IF('Input Sheet'!C163>0,'Input Sheet'!C163,Psychrometric!G163) -> 25.9 | F163: 4.686309849 | G163: ='Input Sheet'!B163 -> 25.9 | H163: 2.718 | I163: 2207.000493 | J163: 0.5 | K163: 0.0775 | L163: =IF('Input Sheet'!D163>0,'Input Sheet'!D163,0.15) -> 0.15 | M163: -0.4866262337 | N163: 0.1145821734 | O163: ='Input Sheet'!A163 -> 66 | P163: 0.5378583703 | Q163: 33.4394014 | R163: -4.064328966 | S163: 22.07000493 | T163: 19.07251524
A164: 58.2 | B164: 0 | C164: 1.0155 | D164: =tclcalcul!B164 -> 30.92171895 | E164: =IF('Input Sheet'!C164>0,'Input Sheet'!C164,Psychrometric!G164) -> 24.4 | F164: 4.686309849 | G164: ='Input Sheet'!B164 -> 24.4 | H164: 2.718 | I164: 2293.642197 | J164: 0.5 | K164: 0.0775 | L164: =IF('Input Sheet'!D164>0,'Input Sheet'!D164,0.15) -> 0.15 | M164: -0.9852247437 | N164: 0.4393845694 | O164: ='Input Sheet'!A164 -> 75 | P164: 0.540176419 | Q164: 30.58189596 | R164: -4.085017283 | S164: 22.93642197 | T164: 19.69164814
A165: 58.2 | B165: 0 | C165: 1.0155 | D165: =tclcalcul!B165 -> 30.63835431 | E165: =IF('Input Sheet'!C165>0,'Input Sheet'!C165,Psychrometric!G165) -> 23.7 | F165: 4.686309849 | G165: ='Input Sheet'!B165 -> 23.7 | H165: 2.718 | I165: 2404.484637 | J165: 0.5 | K165: 0.0775 | L165: =IF('Input Sheet'!D165>0,'Input Sheet'!D165,0.15) -> 0.15 | M165: -1.198106169 | N165: 0.6518002625 | O165: ='Input Sheet'!A165 -> 82 | P165: 0.541258175 | Q165: 29.32298337 | R165: -4.094691027 | S165: 24.04484637 | T165: 20.45450631
A166: 58.2 | B166: 0 | C166: 1.0155 | D166: =tclcalcul!B166 -> 30.31546177 | E166: =IF('Input Sheet'!C166>0,'Input Sheet'!C166,Psychrometric!G166) -> 22.9 | F166: 4.686309849 | G166: ='Input Sheet'!B166 -> 22.9 | H166: 2.718 | I166: 2319.006582 | J166: 0.5 | K166: 0.0775 | L166: =IF('Input Sheet'!D166>0,'Input Sheet'!D166,0.15) -> 0.15 | M166: -1.497130846 | N166: 0.8918461599 | O166: ='Input Sheet'!A166 -> 83 | P166: 0.5424944676 | Q166: 27.93983834 | R166: -4.105761761 | S166: 23.19006582 | T166: 19.86902034
A167: 58.2 | B167: 0 | C167: 1.0155 | D167: =tclcalcul!B167 -> 29.99358202 | E167: =IF('Input Sheet'!C167>0,'Input Sheet'!C167,Psychrometric!G167) -> 22.1 | F167: 4.686309849 | G167: ='Input Sheet'!B167 -> 22.1 | H167: 2.718 | I167: 2262.192327 | J167: 0.5 | K167: 0.0775 | L167: =IF('Input Sheet'!D167>0,'Input Sheet'!D167,0.15) -> 0.15 | M167: -1.787664621 | N167: 0.984578503 | O167: ='Input Sheet'!A167 -> 85 | P167: 0.5437307602 | Q167: 26.61402738 | R167: -4.116848578 | S167: 22.62192327 | T167: 19.46931798
A168: 58.2 | B168: 0 | C168: 1.0155 | D168: =tclcalcul!B168 -> 29.71276399 | E168: =IF('Input Sheet'!C168>0,'Input Sheet'!C168,Psychrometric!G168) -> 21.4 | F168: 4.686309849 | G168: ='Input Sheet'!B168 -> 21.4 | H168: 2.718 | I168: 2243.946166 | J168: 0.5 | K168: 0.0775 | L168: =IF('Input Sheet'!D168>0,'Input Sheet'!D168,0.15) -> 0.15 | M168: -2.032799499 | N168: 0.9987406928 | O168: ='Input Sheet'!A168 -> 88 | P168: 0.5448125162 | Q168: 25.49938825 | R168: -4.126562779 | S168: 22.43946166 | T168: 19.33908482
A169: 58.2 | B169: 0 | C169: 1.0155 | D169: =tclcalcul!B169 -> 29.39277128 | E169: =IF('Input Sheet'!C169>0,'Input Sheet'!C169,Psychrometric!G169) -> 20.6 | F169: 4.686309849 | G169: ='Input Sheet'!B169 -> 20.6 | H169: 2.718 | I169: 2184.811989 | J169: 0.5 | K169: 0.0775 | L169: =IF('Input Sheet'!D169>0,'Input Sheet'!D169,0.15) -> 0.15 | M169: -2.322361896 | N169: 0.9999829582 | O169: ='Input Sheet'!A169 -> 90 | P169: 0.5460488088 | Q169: 24.27568877 | R169: -4.137679903 | S169: 21.84811989 | T169: 18.91053536
A170: 58.2 | B170: 0 | C170: 1.0155 | D170: =tclcalcul!B170 -> 29.23315015 | E170: =IF('Input Sheet'!C170>0,'Input Sheet'!C170,Psychrometric!G170) -> 20.2 | F170: 4.686309849 | G170: ='Input Sheet'!B170 -> 20.2 | H170: 2.718 | I170: 2036.767208 | J170: 0.5 | K170: 0.0775 | L170: =IF('Input Sheet'!D170>0,'Input Sheet'!D170,0.15) -> 0.15 | M170: -2.498398349 | N170: 0.9999994832 | O170: ='Input Sheet'!A170 -> 86 | P170: 0.5466669551 | Q170: 23.68333962 | R170: -4.143244554 | S170: 20.36767208 | T170: 17.79129748
A171: 58.2 | B171: 0 | C171: 1.0155 | D171: =tclcalcul!B171 -> 29.07377857 | E171: =IF('Input Sheet'!C171>0,'Input Sheet'!C171,Psychrometric!G171) -> 19.8 | F171: 4.686309849 | G171: ='Input Sheet'!B171 -> 19.8 | H171: 2.718 | I171: 2033.123668 | J171: 0.5 | K171: 0.0775 | L171: =IF('Input Sheet'!D171>0,'Input Sheet'!D171,0.15) -> 0.15 | M171: -2.635744957 | N171: 0.9999999804 | O171: ='Input Sheet'!A171 -> 88 | P171: 0.5472851014 | Q171: 23.10367804 | R171: -4.148813273 | S171: 20.33123668 | T171: 17.76286315
A172: 58.2 | B172: 0 | C172: 1.0155 | D172: =tclcalcul!B172 -> 28.99418621 | E172: =IF('Input Sheet'!C172>0,'Input Sheet'!C172,Psychrometric!G172) -> 19.6 | F172: 4.686309849 | G172: ='Input Sheet'!B172 -> 19.6 | H172: 2.718 | I172: 2008.0309 | J172: 0.5 | K172: 0.0775 | L172: =IF('Input Sheet'!D172>0,'Input Sheet'!D172,0.15) -> 0.15 | M172: -2.710540753 | N172: 0.9999999974 | O172: ='Input Sheet'!A172 -> 88 | P172: 0.5475941746 | Q172: 22.81853295 | R172: -4.151599161 | S172: 20.080309 | T172: 17.56581522
A173: 58.2 | B173: 0 | C173: 1.0155 | D173: =tclcalcul!B173 -> 28.91465604 | E173: =IF('Input Sheet'!C173>0,'Input Sheet'!C173,Psychrometric!G173) -> 19.4 | F173: 4.686309849 | G173: ='Input Sheet'!B173 -> 19.4 | H173: 2.718 | I173: 1983.209677 | J173: 0.5 | K173: 0.0775 | L173: =IF('Input Sheet'!D173>0,'Input Sheet'!D173,0.15) -> 0.15 | M173: -2.785211798 | N173: 0.9999999997 | O173: ='Input Sheet'!A173 -> 88 | P173: 0.5479032477 | Q173: 22.5364736 | R173: -4.154386068 | S173: 19.83209677 | T173: 17.36876297
A174: 58.2 | B174: 0 | C174: 1.0155 | D174: =tclcalcul!B174 -> 28.87491443 | E174: =IF('Input Sheet'!C174>0,'Input Sheet'!C174,Psychrometric!G174) -> 19.3 | F174: 4.686309849 | G174: ='Input Sheet'!B174 -> 19.3 | H174: 2.718 | I174: 2082.883078 | J174: 0.5 | K174: 0.0775 | L174: =IF('Input Sheet'!D174>0,'Input Sheet'!D174,0.15) -> 0.15 | M174: -2.792659983 | N174: 0.9999999998 | O174: ='Input Sheet'!A174 -> 93 | P174: 0.5480577843 | Q174: 22.39659224 | R174: -4.155779904 | S174: 20.82883078 | T174: 18.14738431
A175: 58.2 | B175: 0 | C175: 1.0155 | D175: =tclcalcul!B175 -> 28.79547743 | E175: =IF('Input Sheet'!C175>0,'Input Sheet'!C175,Psychrometric!G175) -> 19.1 | F175: 4.686309849 | G175: ='Input Sheet'!B175 -> 19.1 | H175: 2.718 | I175: 2189.791747 | J175: 0.5 | K175: 0.0775 | L175: =IF('Input Sheet'!D175>0,'Input Sheet'!D175,0.15) -> 0.15 | M175: -2.832149554 | N175: 0.9999999999 | O175: ='Input Sheet'!A175 -> 99 | P175: 0.5483668575 | Q175: 22.11910856 | R175: -4.158568343 | S175: 21.89791747 | T175: 18.94701353
A176: 58.2 | B176: 0 | C176: 1.0155 | D176: =tclcalcul!B176 -> 29.1534332 | E176: =IF('Input Sheet'!C176>0,'Input Sheet'!C176,Psychrometric!G176) -> 20 | F176: 4.686309849 | G176: ='Input Sheet'!B176 -> 20 | H176: 2.718 | I176: 2292.409862 | J176: 0.5 | K176: 0.0775 | L176: =IF('Input Sheet'!D176>0,'Input Sheet'!D176,0.15) -> 0.15 | M176: -2.498489542 | N176: 0.9999994842 | O176: ='Input Sheet'!A176 -> 98 | P176: 0.5469760283 | Q176: 23.39193737 | R176: -4.146028405 | S176: 22.92409862 | T176: 19.68298677
A177: 58.2 | B177: 0 | C177: 1.0155 | D177: =tclcalcul!B177 -> 29.35284239 | E177: =IF('Input Sheet'!C177>0,'Input Sheet'!C177,Psychrometric!G177) -> 20.5 | F177: 4.686309849 | G177: ='Input Sheet'!B177 -> 20.5 | H177: 2.718 | I177: 2364.387131 | J177: 0.5 | K177: 0.0775 | L177: =IF('Input Sheet'!D177>0,'Input Sheet'!D177,0.15) -> 0.15 | M177: -2.308675346 | N177: 0.9999782986 | O177: ='Input Sheet'!A177 -> 98 | P177: 0.5462033454 | Q177: 24.12639929 | R177: -4.139070685 | S177: 23.64387131 | T177: 20.18216654
A178: 58.2 | B178: 0 | C178: 1.0155 | D178: =tclcalcul!B178 -> 29.35284239 | E178: =IF('Input Sheet'!C178>0,'Input Sheet'!C178,Psychrometric!G178) -> 20.5 | F178: 4.686309849 | G178: ='Input Sheet'!B178 -> 20.5 | H178: 2.718 | I178: 2364.387131 | J178: 0.5 | K178: 0.0775 | L178: =IF('Input Sheet'!D178>0,'Input Sheet'!D178,0.15) -> 0.15 | M178: -2.308675346 | N178: 0.9999782986 | O178: ='Input Sheet'!A178 -> 98 | P178: 0.5462033454 | Q178: 24.12639929 | R178: -4.139070685 | S178: 23.64387131 | T178: 20.18216654
A179: 58.2 | B179: 0 | C179: 1.0155 | D179: =tclcalcul!B179 -> 29.59264927 | E179: =IF('Input Sheet'!C179>0,'Input Sheet'!C179,Psychrometric!G179) -> 21.1 | F179: 4.686309849 | G179: ='Input Sheet'!B179 -> 21.1 | H179: 2.718 | I179: 2303.157766 | J179: 0.5 | K179: 0.0775 | L179: =IF('Input Sheet'!D179>0,'Input Sheet'!D179,0.15) -> 0.15 | M179: -2.119796655 | N179: 0.9995905818 | O179: ='Input Sheet'!A179 -> 92 | P179: 0.545276126 | Q179: 25.03432355 | R179: -4.130729801 | S179: 23.03157766 | T179: 19.75839066
A180: 58.2 | B180: 0 | C180: 1.0155 | D180: =tclcalcul!B180 -> 29.87313698 | E180: =IF('Input Sheet'!C180>0,'Input Sheet'!C180,Psychrometric!G180) -> 21.8 | F180: 4.686309849 | G180: ='Input Sheet'!B180 -> 21.8 | H180: 2.718 | I180: 2299.547042 | J180: 0.5 | K180: 0.0775 | L180: =IF('Input Sheet'!D180>0,'Input Sheet'!D180,0.15) -> 0.15 | M180: -1.880763885 | N180: 0.9933785362 | O180: ='Input Sheet'!A180 -> 88 | P180: 0.5441943699 | Q180: 26.13121639 | R180: -4.121010292 | S180: 22.99547042 | T180: 19.73309342
A181: 58.2 | B181: 0 | C181: 1.0155 | D181: =tclcalcul!B181 -> 30.03376163 | E181: =IF('Input Sheet'!C181>0,'Input Sheet'!C181,Psychrometric!G181) -> 22.2 | F181: 4.686309849 | G181: ='Input Sheet'!B181 -> 22.2 | H181: 2.718 | I181: 2276.018459 | J181: 0.5 | K181: 0.0775 | L181: =IF('Input Sheet'!D181>0,'Input Sheet'!D181,0.15) -> 0.15 | M181: -1.749602456 | N181: 0.978936205 | O181: ='Input Sheet'!A181 -> 85 | P181: 0.5435762236 | Q181: 26.77668775 | R181: -4.115461844 | S181: 22.76018459 | T181: 19.56739125
A182: 58.2 | B182: 0 | C182: 1.0155 | D182: =tclcalcul!B182 -> 30.19463848 | E182: =IF('Input Sheet'!C182>0,'Input Sheet'!C182,Psychrometric!G182) -> 22.6 | F182: 4.686309849 | G182: ='Input Sheet'!B182 -> 22.6 | H182: 2.718 | I182: 2332.064244 | J182: 0.5 | K182: 0.0775 | L182: =IF('Input Sheet'!D182>0,'Input Sheet'!D182,0.15) -> 0.15 | M182: -1.59702384 | N182: 0.9384657871 | O182: ='Input Sheet'!A182 -> 85 | P182: 0.5429580773 | Q182: 27.43604993 | R182: -4.10991743 | S182: 23.32064244 | T182: 19.95967029
A183: 58.2 | B183: 0 | C183: 1.0155 | D183: =tclcalcul!B183 -> 30.23489699 | E183: =IF('Input Sheet'!C183>0,'Input Sheet'!C183,Psychrometric!G183) -> 22.7 | F183: 4.686309849 | G183: ='Input Sheet'!B183 -> 22.7 | H183: 2.718 | I183: 2484.278124 | J183: 0.5 | K183: 0.0775 | L183: =IF('Input Sheet'!D183>0,'Input Sheet'!D183,0.15) -> 0.15 | M183: -1.522018058 | N183: 0.9051449392 | O183: ='Input Sheet'!A183 -> 90 | P183: 0.5428035407 | Q183: 27.60309026 | R183: -4.108531956 | S183: 24.84278124 | T183: 20.98482898
A184: 58.2 | B184: 0 | C184: 1.0155 | D184: =tclcalcul!B184 -> 30.27517164 | E184: =IF('Input Sheet'!C184>0,'Input Sheet'!C184,Psychrometric!G184) -> 22.8 | F184: 4.686309849 | G184: ='Input Sheet'!B184 -> 22.8 | H184: 2.718 | I184: 2416.078601 | J184: 0.5 | K184: 0.0775 | L184: =IF('Input Sheet'!D184>0,'Input Sheet'!D184,0.15) -> 0.15 | M184: -1.505734287 | N184: 0.8965726632 | O184: ='Input Sheet'!A184 -> 87 | P184: 0.5426490042 | Q184: 27.77101841 | R184: -4.107146733 | S184: 24.16078601 | T184: 20.53251032
A185: 58.2 | B185: 0 | C185: 1.0155 | D185: =tclcalcul!B185 -> 30.19463848 | E185: =IF('Input Sheet'!C185>0,'Input Sheet'!C185,Psychrometric!G185) -> 22.6 | F185: 4.686309849 | G185: ='Input Sheet'!B185 -> 22.6 | H185: 2.718 | I185: 2386.936344 | J185: 0.5 | K185: 0.0775 | L185: =IF('Input Sheet'!D185>0,'Input Sheet'!D185,0.15) -> 0.15 | M185: -1.582401685 | N185: 0.9327435227 | O185: ='Input Sheet'!A185 -> 87 | P185: 0.5429580773 | Q185: 27.43604993 | R185: -4.10991743 | S185: 23.86936344 | T185: 20.33581272
A186: 58.2 | B186: 0 | C186: 1.0155 | D186: =tclcalcul!B186 -> 30.07395735 | E186: =IF('Input Sheet'!C186>0,'Input Sheet'!C186,Psychrometric!G186) -> 22.3 | F186: 4.686309849 | G186: ='Input Sheet'!B186 -> 22.3 | H186: 2.718 | I186: 2370.739033 | J186: 0.5 | K186: 0.0775 | L186: =IF('Input Sheet'!D186>0,'Input Sheet'!D186,0.15) -> 0.15 | M186: -1.68997071 | N186: 0.9669115635 | O186: ='Input Sheet'!A186 -> 88 | P186: 0.543421687 | Q186: 26.94021628 | R186: -4.114075363 | S186: 23.70739033 | T186: 20.22557664
A187: 58.2 | B187: 0 | C187: 1.0155 | D187: =tclcalcul!B187 -> 29.75283385 | E187: =IF('Input Sheet'!C187>0,'Input Sheet'!C187,Psychrometric!G187) -> 21.5 | F187: 4.686309849 | G187: ='Input Sheet'!B187 -> 21.5 | H187: 2.718 | I187: 2386.015407 | J187: 0.5 | K187: 0.0775 | L187: =IF('Input Sheet'!D187>0,'Input Sheet'!D187,0.15) -> 0.15 | M187: -1.960656448 | N187: 0.9971024566 | O187: ='Input Sheet'!A187 -> 93 | P187: 0.5446579797 | Q187: 25.65607964 | R187: -4.125174278 | S187: 23.86015407 | T187: 20.32956257
A188: 58.2 | B188: 0 | C188: 1.0155 | D188: =tclcalcul!B188 -> 29.79291906 | E188: =IF('Input Sheet'!C188>0,'Input Sheet'!C188,Psychrometric!G188) -> 21.6 | F188: 4.686309849 | G188: ='Input Sheet'!B188 -> 21.6 | H188: 2.718 | I188: 2271.597878 | J188: 0.5 | K188: 0.0775 | L188: =IF('Input Sheet'!D188>0,'Input Sheet'!D188,0.15) -> 0.15 | M188: -1.956847796 | N188: 0.996979256 | O188: ='Input Sheet'!A188 -> 88 | P188: 0.5445034431 | Q188: 25.81361225 | R188: -4.12378603 | S188: 22.71597878 | T188: 19.53609154
A189: 58.2 | B189: 0 | C189: 1.0155 | D189: =tclcalcul!B189 -> 29.59264927 | E189: =IF('Input Sheet'!C189>0,'Input Sheet'!C189,Psychrometric!G189) -> 21.1 | F189: 4.686309849 | G189: ='Input Sheet'!B189 -> 21.1 | H189: 2.718 | I189: 2253.089119 | J189: 0.5 | K189: 0.0775 | L189: =IF('Input Sheet'!D189>0,'Input Sheet'!D189,0.15) -> 0.15 | M189: -2.133138801 | N189: 0.9996595375 | O189: ='Input Sheet'!A189 -> 90 | P189: 0.545276126 | Q189: 25.03432355 | R189: -4.130729801 | S189: 22.53089119 | T189: 19.40445877
A190: 58.2 | B190: 0 | C190: 1.0155 | D190: =tclcalcul!B190 -> 29.39277128 | E190: =IF('Input Sheet'!C190>0,'Input Sheet'!C190,Psychrometric!G190) -> 20.6 | F190: 4.686309849 | G190: ='Input Sheet'!B190 -> 20.6 | H190: 2.718 | I190: 2306.190433 | J190: 0.5 | K190: 0.0775 | L190: =IF('Input Sheet'!D190>0,'Input Sheet'!D190,0.15) -> 0.15 | M190: -2.290017326 | N190: 0.9999700273 | O190: ='Input Sheet'!A190 -> 95 | P190: 0.5460488088 | Q190: 24.27568877 | R190: -4.137679903 | S190: 23.06190433 | T190: 19.77961112
A191: 58.2 | B191: 0 | C191: 1.0155 | D191: =tclcalcul!B191 -> 29.03397479 | E191: =IF('Input Sheet'!C191>0,'Input Sheet'!C191,Psychrometric!G191) -> 19.7 | F191: 4.686309849 | G191: ='Input Sheet'!B191 -> 19.7 | H191: 2.718 | I191: 2273.111082 | J191: 0.5 | K191: 0.0775 | L191: =IF('Input Sheet'!D191>0,'Input Sheet'!D191,0.15) -> 0.15 | M191: -2.605855052 | N191: 0.9999999583 | O191: ='Input Sheet'!A191 -> 99 | P191: 0.547439638 | Q191: 22.960718 | R191: -4.15020609 | S191: 22.73111082 | T191: 19.54681171
A192: 58.2 | B192: 0 | C192: 1.0155 | D192: =tclcalcul!B192 -> 28.20167261 | E192: =IF('Input Sheet'!C192>0,'Input Sheet'!C192,Psychrometric!G192) -> 17.6 | F192: 4.686309849 | G192: ='Input Sheet'!B192 -> 17.6 | H192: 2.718 | I192: 1993.087738 | J192: 0.5 | K192: 0.0775 | L192: =IF('Input Sheet'!D192>0,'Input Sheet'!D192,0.15) -> 0.15 | M192: -3.392742224 | N192: 1 | O192: ='Input Sheet'!A192 -> 99 | P192: 0.5506849061 | Q192: 20.13219937 | R192: -4.179514266 | S192: 19.93087738 | T192: 17.44744131
A193: 58.2 | B193: 0 | C193: 1.0155 | D193: =tclcalcul!B193 -> 28.43877771 | E193: =IF('Input Sheet'!C193>0,'Input Sheet'!C193,Psychrometric!G193) -> 18.2 | F193: 4.686309849 | G193: ='Input Sheet'!B193 -> 18.2 | H193: 2.718 | I193: 2069.827539 | J193: 0.5 | K193: 0.0775 | L193: =IF('Input Sheet'!D193>0,'Input Sheet'!D193,0.15) -> 0.15 | M193: -3.169373832 | N193: 1 | O193: ='Input Sheet'!A193 -> 99 | P193: 0.5497576866 | Q193: 20.90734887 | R193: -4.171128975 | S193: 20.69827539 | T193: 18.04728246
A194: 58.2 | B194: 0 | C194: 1.0155 | D194: =tclcalcul!B194 -> 28.16220917 | E194: =IF('Input Sheet'!C194>0,'Input Sheet'!C194,Psychrometric!G194) -> 17.5 | F194: 4.686309849 | G194: ='Input Sheet'!B194 -> 17.5 | H194: 2.718 | I194: 1980.543282 | J194: 0.5 | K194: 0.0775 | L194: =IF('Input Sheet'!D194>0,'Input Sheet'!D194,0.15) -> 0.15 | M194: -3.429859583 | N194: 1 | O194: ='Input Sheet'!A194 -> 99 | P194: 0.5508394427 | Q194: 20.00548769 | R194: -4.180912714 | S194: 19.80543282 | T194: 17.34746632
A195: 58.2 | B195: 0 | C195: 1.0155 | D195: =tclcalcul!B195 -> 28.35968104 | E195: =IF('Input Sheet'!C195>0,'Input Sheet'!C195,Psychrometric!G195) -> 18 | F195: =IF((2.38*ABS(D195-G195)^0.25)>(12.1*SQRT(L195)),(2.38*ABS(D195-G195)^0.25),(12.1*SQRT(L195))) -> 4.686309849 | G195: ='Input Sheet'!B195 -> 18 | H195: 2.718 | I195: =S195*100 -> 2023.318719 | J195: 0.5 | K195: 0.0775 | L195: =IF('Input Sheet'!D195>0,'Input Sheet'!D195,0.15) -> 0.15 | M195: =(0.303*EXP(-0.036*A195)+0.028)*((A195-B195)-3.96*(10^-8)*C195*((D195+273)^4-(E195+273)^4)-C195*F195*(D195-G195)-3.05*10^-3*(5733-6.99*(A195-B195)-I195)-0.42*((A195-B195)-58.15)-1.773*10^-5*A195*(5867-I195)-0.0014*A195*(34-G195)) -> -3.249458956 | N195: 1 | O195: ='Input Sheet'!A195 -> 98 | P195: 0.5500667598 | Q195: 20.64610937 | R195: -4.173923045 | S195: 20.23318719 | T195: 17.68612236
A196: =A195 -> 58.2 | B196: 0 | C196: 1.0155 | D196: =tclcalcul!B196 -> 28.32015601 | E196: =IF('Input Sheet'!C196>0,'Input Sheet'!C196,Psychrometric!G196) -> 17.9 | F196: 4.686309849 | G196: ='Input Sheet'!B196 -> 17.9 | H196: 2.718 | I196: 2010.623444 | J196: =J195 -> 0.5 | K196: =0.155*J196 -> 0.0775 | L196: =IF('Input Sheet'!D196>0,'Input Sheet'!D196,0.15) -> 0.15 | M196: -3.286668378 | N196: =1-0.95*EXP(-(0.3353*M196^4+0.2179*M196^2)) -> 1 | O196: ='Input Sheet'!A196 -> 98 | P196: 0.5502212964 | Q196: 20.51656575 | R196: =(-7.85951783*P196)+(1.84408259*P196^1.5)-(11.7866497*P196^3)+(22.6807411*P196^3.5)-(15.9618719*P196^4)+(1.80122502*P196^7.5) -> -4.175320465 | S196: =O196*Q196/100 -> 20.10623444 | T196: =240.7263/((7.591386/LOG10(S196/6.116441))-1) -> 17.58627364
A197: 58.2 | B197: 0 | C197: =(1+0.2*K197) -> 1.0155 | D197: =tclcalcul!B197 -> 28.12276073 | E197: =IF('Input Sheet'!C197>0,'Input Sheet'!C197,Psychrometric!G197) -> 17.4 | F197: 4.686309849 | G197: ='Input Sheet'!B197 -> 17.4 | H197: 2.718 | I197: 1968.068099 | J197: 0.5 | K197: 0.0775 | L197: =IF('Input Sheet'!D197>0,'Input Sheet'!D197,0.15) -> 0.15 | M197: -3.46694531 | N197: 1 | O197: ='Input Sheet'!A197 -> 99 | P197: =1-(273.15+G197)/647.096 -> 0.5509939793 | Q197: =220640*EXP((647.096/(G197+273.15))*R197) -> 19.87947575 | R197: -4.182311419 | S197: 19.68068099 | T197: 17.24749093
A198: 58.2 | B198: 0 | C198: 1.0155 | D198: =tclcalcul!B198 -> 27.96512166 | E198: =IF('Input Sheet'!C198>0,'Input Sheet'!C198,Psychrometric!G198) -> 17 | F198: 4.686309849 | G198: ='Input Sheet'!B198 -> 17 | H198: 2.718 | I198: 1918.853634 | J198: 0.5 | K198: 0.0775 | L198: =IF('Input Sheet'!D198>0,'Input Sheet'!D198,0.15) -> 0.15 | M198: -3.614976638 | N198: 1 | O198: ='Input Sheet'!A198 -> 99 | P198: 0.5516121256 | Q198: 19.38235994 | R198: -4.187908814 | S198: 19.18853634 | T198: 16.84758551
A199: 58.2 | B199: 0 | C199: 1.0155 | D199: =tclcalcul!B199 -> 28.20167261 | E199: =IF('Input Sheet'!C199>0,'Input Sheet'!C199,Psychrometric!G199) -> 17.6 | F199: 4.686309849 | G199: ='Input Sheet'!B199 -> 17.6 | H199: 2.718 | I199: 1993.087738 | J199: 0.5 | K199: 0.0775 | L199: =IF('Input Sheet'!D199>0,'Input Sheet'!D199,0.15) -> 0.15 | M199: -3.392742224 | N199: 1 | O199: ='Input Sheet'!A199 -> 99 | P199: 0.5506849061 | Q199: 20.13219937 | R199: -4.179514266 | S199: 19.93087738 | T199: 17.44744131
A200: 58.2 | B200: 0 | C200: 1.0155 | D200: =tclcalcul!B200 -> 28.51793612 | E200: =IF('Input Sheet'!C200>0,'Input Sheet'!C200,Psychrometric!G200) -> 18.4 | F200: 4.686309849 | G200: ='Input Sheet'!B200 -> 18.4 | H200: 2.718 | I200: 2095.976565 | J200: 0.5 | K200: 0.0775 | L200: =IF('Input Sheet'!D200>0,'Input Sheet'!D200,0.15) -> 0.15 | M200: -3.094662126 | N200: 1 | O200: ='Input Sheet'!A200 -> 99 | P200: 0.5494486135 | Q200: 21.17148045 | R200: -4.168335931 | S200: 20.95976565 | T200: 18.247226
... 4300 more rows

Sheet Psychrometric 2
A1: T | B1: HR | C1: rho ? | D1: Pws | E1: coef | F1: Pw | G1: Pw 25% | H1: Pw 50% | I1: Pw 75% | J1: Td | K1: Td 25% | L1: Td 50% | M1: Td 75% | N1: data td | O1: data t | P1: EN 15251 | Q1: EN 15251 | R1: hr | S1: rho | T1: pws | U1: coef | V1: Td | W1: pw
A2: 0 | B2: 0 | C2: =1-(273.15+A2)/647.096 -> 0.5778833434 | D2: =220640*EXP((647.096/(A2+273.15))*E2) -> 6.112128459 | E2: =(-7.85951783*C2)+(1.84408259*C2^1.5)-(11.7866497*C2^3)+(22.6807411*C2^3.5)-(15.9618719*C2^4)+(1.80122502*C2^7.5) -> -4.429697523 | F2: =D2 -> 6.112128459 | G2: =F2/4 -> 1.528032115 | H2: =D2/2 -> 3.05606423 | I2: =D2*3/4 -> 4.584096345 | J2: =240.7263/((7.591386/LOG10(F2/6.116441))-1) -> -0.009713076506 | K2: =240.7263/((7.591386/LOG10(G2/6.116441))-1) -> -17.69707056 | L2: =240.7263/((7.591386/LOG10(H2/6.116441))-1) -> -9.190691482 | M2: =240.7263/((7.591386/LOG10(I2/6.116441))-1) -> -3.907116754 | N2: =Psychrometric!T2 -> 18.98398805 | O2: ='Input Sheet'!B2 -> 19.8 | P2: ASHRAE 2010 Sta | Q2: 25.5 | R2: 0 | S2: =1-(273.15+Q2)/647.096 -> 0.5384765166 | T2: =220640*EXP((647.096/(Q2+273.15))*U2) -> 32.65552386 | U2: =(-7.85951783*S2)+(1.84408259*S2^1.5)-(11.7866497*S2^3)+(22.6807411*S2^3.5)-(15.9618719*S2^4)+(1.80122502*S2^7.5) -> -4.06984038 | V2: =240.7263/((7.591386/LOG10(W2/6.116441))-1) ->  | W2: =T2*R2/100 -> 0
A3: 0.2 | B3: 0.2 | C3: =1-(273.15+A3)/647.096 -> 0.5775742703 | D3: =220640*EXP((647.096/(A3+273.15))*E3) -> 6.201519019 | E3: =(-7.85951783*C3)+(1.84408259*C3^1.5)-(11.7866497*C3^3)+(22.6807411*C3^3.5)-(15.9618719*C3^4)+(1.80122502*C3^7.5) -> -4.426807658 | F3: =D3 -> 6.201519019 | G3: =F3/4 -> 1.550379755 | H3: =D3/2 -> 3.100759509 | I3: =D3*3/4 -> 4.651139264 | J3: =240.7263/((7.591386/LOG10(F3/6.116441))-1) -> 0.1903906447 | K3: -17.52530339 | L3: -9.005566536 | M3: -3.713442879 | N3: =Psychrometric!T3 -> 17.80992997 | O3: ='Input Sheet'!B3 -> 20.6 | P3: Givoni | Q3: 25.5 | R3: 100 | S3: =1-(273.15+Q3)/647.096 -> 0.5384765166 | T3: =220640*EXP((647.096/(Q3+273.15))*U3) -> 32.65552386 | U3: =(-7.85951783*S3)+(1.84408259*S3^1.5)-(11.7866497*S3^3)+(22.6807411*S3^3.5)-(15.9618719*S3^4)+(1.80122502*S3^7.5) -> -4.06984038 | V3: =240.7263/((7.591386/LOG10(W3/6.116441))-1) -> 25.51283123 | W3: =T3*R3/100 -> 32.65552386
A4: 0.4 | B4: 0.4 | C4: 0.5772651971 | D4: 6.292066955 | E4: -4.423918895 | F4: 6.292066955 | G4: 1.573016739 | H4: 3.146033478 | I4: 4.719050216 | J4: 0.3904980222 | K4: -17.35355406 | L4: -8.820449945 | M4: -3.519770677 | N4: =Psychrometric!T4 -> 18.17180095 | O4: ='Input Sheet'!B4 -> 20.4 | P4: California | Q4: 29.3 | R4: 100 | S4: 0.5326041267 | T4: 40.79207651 | U4: -4.01764137 | V4: =240.7263/((7.591386/LOG10(W4/6.116441))-1) -> 29.31401732 | W4: =T4*R4/100 -> 40.79207651
A5: 0.6 | B5: 0.6 | C5: 0.576956124 | D5: 6.383785165 | E5: -4.421031231 | F5: 6.383785165 | G5: 1.595946291 | H5: 3.191892583 | I5: 4.787838874 | J5: 0.590608993 | K5: -17.18182262 | L5: -8.635341769 | M5: -3.326100212 | N5: =Psychrometric!T5 -> 17.1347174 | O5: ='Input Sheet'!B5 -> 20.3 | Q5: 29.3 | R5: 0 | S5: 0.5326041267 | T5: 40.79207651 | U5: -4.01764137 | W5: =T5*R5/100 -> 0
A6: 0.8 | B6: 0.8 | C6: 0.5766470508 | D6: 6.476686663 | E6: -4.418144666 | F6: 6.476686663 | G6: 1.619171666 | H6: 3.238343331 | I6: 4.857514997 | J6: 0.7907234943 | K6: -17.01010913 | L6: -8.450242063 | M6: -3.132431543 | N6: =Psychrometric!T6 -> 17.22858864 | O6: ='Input Sheet'!B6 -> 20.2 | Q6: 25.5 | R6: 0 | S6: 0.5384765166 | T6: 32.65552386 | U6: -4.06984038 | W6: =T6*R6/100 -> 0
A7: 1 | B7: 1 | C7: 0.5763379777 | D7: 6.570784581 | E7: -4.4152592 | F7: 6.570784581 | G7: 1.642696145 | H7: 3.285392291 | I7: 4.928088436 | J7: 0.9908414634 | K7: -16.83841363 | L7: -8.265150886 | M7: -2.938764731 | N7: =Psychrometric!T7 -> 17.5160692 | O7: ='Input Sheet'!B7 -> 20.3
A8: 1.2 | B8: 1.2 | C8: 0.5760289045 | D8: 6.666092173 | E8: -4.412374831 | F8: 6.666092173 | G8: 1.666523043 | H8: 3.333046087 | I8: 4.99956913 | J8: 1.190962838 | K8: -16.66673618 | L8: -8.080068296 | M8: -2.745099836 | N8: =Psychrometric!T8 -> 17.62139622 | O8: ='Input Sheet'!B8 -> 21.2
A9: 1.4 | B9: 1.4 | C9: 0.5757198314 | D9: 6.762622811 | E9: -4.409491559 | F9: 6.762622811 | G9: 1.690655703 | H9: 3.381311405 | I9: 5.071967108 | J9: 1.391087555 | K9: -16.49507683 | L9: -7.894994348 | M9: -2.551436921 | N9: =Psychrometric!T9 -> 17.76069646 | O9: ='Input Sheet'!B9 -> 22.4 | Q9: Ashrae 2010 Ada 0,5
A10: 1.6 | B10: 1.6 | C10: 0.5754107582 | D10: 6.860389989 | E10: -4.406609383 | F10: 6.860389989 | G10: 1.715097497 | H10: 3.430194994 | I10: 5.145292492 | J10: 1.591215552 | K10: -16.32343563 | L10: -7.709929102 | M10: -2.357776044 | N10: =Psychrometric!T10 -> 17.81868414 | O10: ='Input Sheet'!B10 -> 23.6 | Q10: 23.6 | R10: 67 | S10: =1-(273.15+Q10)/647.096 -> 0.5414127116 | T10: =220640*EXP((647.096/(Q10+273.15))*U10) -> 29.14688447 | U10: =(-7.85951783*S10)+(1.84408259*S10^1.5)-(11.7866497*S10^3)+(22.6807411*S10^3.5)-(15.9618719*S10^4)+(1.80122502*S10^7.5) -> -4.096073992 | V10: =240.7263/((7.591386/LOG10(W10/6.116441))-1) -> 17.12470764 | W10: =T10*R10/100 -> 19.52841259
A11: 1.8 | B11: 1.8 | C11: 0.5751016851 | D11: 6.959407323 | E11: -4.403728302 | F11: 6.959407323 | G11: 1.739851831 | H11: 3.479703662 | I11: 5.219555492 | J11: 1.791346768 | K11: -16.15181263 | L11: -7.524872613 | M11: -2.164117266 | N11: =Psychrometric!T11 -> 18.17190615 | O11: ='Input Sheet'!B11 -> 24.7 | Q11: 26.8 | R11: 56 | S11: 0.5364675411 | T11: 35.26335224 | U11: -4.051942776 | V11: =240.7263/((7.591386/LOG10(W11/6.116441))-1) -> 17.30109 | W11: =T11*R11/100 -> 19.74747725
A12: 2 | B12: 2 | C12: 0.5747926119 | D12: 7.059688552 | E12: -4.400848315 | F12: 7.059688552 | G12: 1.764922138 | H12: 3.529844276 | I12: 5.294766414 | J12: 1.991481139 | K12: -15.98020788 | L12: -7.339824938 | M12: -1.970460647 | N12: =Psychrometric!T12 -> 17.43869058 | O12: ='Input Sheet'!B12 -> 25.5 | Q12: 27.9 | R12: 13 | S12: 0.5347676388 | T12: 37.60985385 | U12: -4.03683125 | V12: -3.044952853 | W12: =T12*R12/100 -> 4.889281001
A13: 2.2 | B13: 2.2 | C13: 0.5744835388 | D13: 7.161247539 | E13: -4.397969422 | F13: 7.161247539 | G13: 1.790311885 | H13: 3.58062377 | I13: 5.370935654 | J13: 2.191618604 | K13: -15.80862143 | L13: -7.154786135 | M13: -1.776806248 | N13: =Psychrometric!T13 -> 17.83424685 | O13: ='Input Sheet'!B13 -> 26.2 | Q13: 24.7 | R13: 16 | S13: 0.5397128092 | T13: 31.13570553 | U13: -4.080875139 | V13: -2.793247077 | W13: =T13*R13/100 -> 4.981712885
A14: 2.4 | B14: 2.4 | C14: 0.5741744656 | D14: 7.26409827 | E14: -4.395091621 | F14: 7.26409827 | G14: 1.816024568 | H14: 3.632049135 | I14: 5.448073703 | J14: 2.3917591 | K14: -15.63705333 | L14: -6.969756261 | M14: -1.583154129 | N14: =Psychrometric!T14 -> 17.942139 | O14: ='Input Sheet'!B14 -> 26.6 | Q14: 23.6 | R14: 67 | S14: 0.5414127116 | T14: 29.14688447 | U14: -4.096073992 | V14: 17.12470764 | W14: =T14*R14/100 -> 19.52841259
A15: 2.6 | B15: 2.6 | C15: 0.5738653925 | D15: 7.368254858 | E15: -4.392214913 | F15: 7.368254858 | G15: 1.842063715 | H15: 3.684127429 | I15: 5.526191144 | J15: 2.591902566 | K15: -15.46550363 | L15: -6.784735371 | M15: -1.389504349 | N15: =Psychrometric!T15 -> 17.95096527 | O15: ='Input Sheet'!B15 -> 26.9
A16: 2.8 | B16: 2.8 | C16: 0.5735563193 | D16: 7.473731541 | E16: -4.389339296 | F16: 7.473731541 | G16: 1.868432885 | H16: 3.73686577 | I16: 5.605298656 | J16: 2.79204894 | K16: -15.29397238 | L16: -6.599723523 | M16: -1.195856969 | N16: =Psychrometric!T16 -> 18.31673362 | O16: ='Input Sheet'!B16 -> 27 | Q16: Ashrae 2010 Ada 1.0
A17: 3 | B17: 3 | C17: 0.5732472462 | D17: 7.580542684 | E17: -4.386464769 | F17: 7.580542684 | G17: 1.895135671 | H17: 3.790271342 | I17: 5.685407013 | J17: 2.992198161 | K17: -15.12245963 | L17: -6.414720773 | M17: -1.002212048 | N17: =Psychrometric!T17 -> 18.92164711 | O17: ='Input Sheet'!B17 -> 26.8 | Q17: 19.6 | R17: 86 | S17: =1-(273.15+Q17)/647.096 -> 0.5475941746 | T17: =220640*EXP((647.096/(Q17+273.15))*U17) -> 22.81853295 | U17: =(-7.85951783*S17)+(1.84408259*S17^1.5)-(11.7866497*S17^3)+(22.6807411*S17^3.5)-(15.9618719*S17^4)+(1.80122502*S17^7.5) -> -4.151599161 | V17: =240.7263/((7.591386/LOG10(W17/6.116441))-1) -> 17.20183362 | W17: =T17*R17/100 -> 19.62393834
A18: 3.2 | B18: 3.2 | C18: 0.572938173 | D18: 7.68870278 | E18: -4.383591332 | F18: 7.68870278 | G18: 1.922175695 | H18: 3.84435139 | I18: 5.766527085 | J18: 3.192350165 | K18: -14.95096544 | L18: -6.229727177 | M18: -0.808569645 | N18: =Psychrometric!T18 -> 21.52528536 | O18: ='Input Sheet'!B18 -> 26.3 | Q18: 23.9 | R18: 66 | S18: =1-(273.15+Q18)/647.096 -> 0.5409491018 | T18: =220640*EXP((647.096/(Q18+273.15))*U18) -> 29.67796982 | U18: =(-7.85951783*S18)+(1.84408259*S18^1.5)-(11.7866497*S18^3)+(22.6807411*S18^3.5)-(15.9618719*S18^4)+(1.80122502*S18^7.5) -> -4.09192585 | V18: =240.7263/((7.591386/LOG10(W18/6.116441))-1) -> 17.17242061 | W18: =T18*R18/100 -> 19.58746008
A19: 3.4 | B19: 3.4 | C19: 0.5726290999 | D19: 7.798226451 | E19: -4.380718984 | F19: 7.798226451 | G19: 1.949556613 | H19: 3.899113225 | I19: 5.848669838 | J19: 3.392504893 | K19: -14.77948984 | L19: -6.044742792 | M19: -0.6149298206 | N19: =Psychrometric!T19 -> 22.41059313 | O19: ='Input Sheet'!B19 -> 25.5 | Q19: 25.7 | R19: 15 | S19: =1-(273.15+Q19)/647.096 -> 0.5381674435 | T19: =220640*EXP((647.096/(Q19+273.15))*U19) -> 33.04543618 | U19: =(-7.85951783*S19)+(1.84408259*S19^1.5)-(11.7866497*S19^3)+(22.6807411*S19^3.5)-(15.9618719*S19^4)+(1.80122502*S19^7.5) -> -4.067084177 | V19: =240.7263/((7.591386/LOG10(W19/6.116441))-1) -> -2.860636237 | W19: =T19*R19/100 -> 4.956815427
A20: 3.6 | B20: 3.6 | C20: 0.5723200267 | D20: 7.909128448 | E20: -4.377847723 | F20: 7.909128448 | G20: 1.977282112 | H20: 3.954564224 | I20: 5.931846336 | J20: 3.592662283 | K20: -14.6080329 | L20: -5.859767673 | M20: -0.4212926339 | N20: =Psychrometric!T20 -> 22.39212004 | O20: ='Input Sheet'!B20 -> 24.5 | Q20: 21.2 | R20: 20 | S20: 0.5451215894 | T20: 25.18851398 | U20: =(-7.85951783*S20)+(1.84408259*S20^1.5)-(11.7866497*S20^3)+(22.6807411*S20^3.5)-(15.9618719*S20^4)+(1.80122502*S20^7.5) -> -4.12934054 | V20: -2.642785471 | W20: =T20*R20/100 -> 5.037702795
A21: 3.8 | B21: 3.8 | C21: 0.5720109536 | D21: 8.021423652 | E21: -4.37497755 | F21: 8.021423652 | G21: 2.005355913 | H21: 4.010711826 | I21: 6.016067739 | J21: 3.792822272 | K21: -14.43659465 | L21: -5.674801877 | M21: -0.2276581442 | N21: =Psychrometric!T21 -> 21.71986639 | O21: ='Input Sheet'!B21 -> 24.2 | Q21: 19.6 | R21: 86 | S21: 0.5475941746 | T21: 22.81853295 | U21: -4.151599161 | V21: 17.20183362 | W21: =T21*R21/100 -> 19.62393834
A22: 4 | B22: 4 | C22: 0.5717018804 | D22: 8.135127076 | E22: -4.372108464 | F22: 8.135127076 | G22: 2.033781769 | H22: 4.067563538 | I22: 6.101345307 | J22: 3.992984801 | K22: -14.26517516 | L22: -5.48984546 | M22: -0.03402641069 | N22: =Psychrometric!T22 -> 21.67614765 | O22: ='Input Sheet'!B22 -> 23.4
A23: 4.2 | B23: 4.2 | C23: 0.5713928072 | D23: 8.250253864 | E23: -4.369240462 | F23: 8.250253864 | G23: 2.062563466 | H23: 4.125126932 | I23: 6.187690398 | J23: 4.193149808 | K23: -14.09377446 | L23: -5.304898477 | M23: 0.1596025075 | N23: =Psychrometric!T23 -> 20.44332076 | O23: ='Input Sheet'!B23 -> 22.9 | Q23: Ashrae 2005
A24: 4.4 | B24: 4.4 | C24: 0.5710837341 | D24: 8.366819294 | E24: -4.366373546 | F24: 8.366819294 | G24: 2.091704824 | H24: 4.183409647 | I24: 6.275114471 | J24: 4.393317231 | K24: -13.92239261 | L24: -5.119960984 | M24: 0.3532285512 | N24: =Psychrometric!T24 -> 19.95227825 | O24: ='Input Sheet'!B24 -> 22.4 | Q24: 20.2 | V24: 2.2 | W24: 0
A25: 4.6 | B25: 4.6 | C25: 0.5707746609 | D25: 8.484838777 | E25: -4.363507714 | F25: 8.484838777 | G25: 2.121209694 | H25: 4.242419389 | I25: 6.363629083 | J25: 4.593487011 | K25: -13.75102966 | L25: -4.935033036 | M25: 0.5468516618 | N25: =Psychrometric!T25 -> 20.09590618 | O25: ='Input Sheet'!B25 -> 21.8 | Q25: 19.8 | R25: 90 | S25: =1-(273.15+Q25)/647.096 -> 0.5472851014 | T25: =220640*EXP((647.096/(Q25+273.15))*U25) -> 23.10367804 | U25: =(-7.85951783*S25)+(1.84408259*S25^1.5)-(11.7866497*S25^3)+(22.6807411*S25^3.5)-(15.9618719*S25^4)+(1.80122502*S25^7.5) -> -4.148813273 | V25: =240.7263/((7.591386/LOG10(W25/6.116441))-1) -> 18.12020395 | W25: =T25*R25/100 -> 20.79331024
A26: 4.8 | B26: 4.8 | C26: 0.5704655878 | D26: 8.604327859 | E26: -4.360642964 | F26: 8.604327859 | G26: 2.151081965 | H26: 4.30216393 | I26: 6.453245894 | J26: 4.793659085 | K26: -13.57968565 | L26: -4.75011469 | M26: 0.7404717802 | N26: =Psychrometric!T26 -> 18.95878415 | O26: ='Input Sheet'!B26 -> 21.2 | Q26: 23.5 | R26: 60 | S26: =1-(273.15+Q26)/647.096 -> 0.5415672481 | T26: =220640*EXP((647.096/(Q26+273.15))*U26) -> 28.97170963 | U26: =(-7.85951783*S26)+(1.84408259*S26^1.5)-(11.7866497*S26^3)+(22.6807411*S26^3.5)-(15.9618719*S26^4)+(1.80122502*S26^7.5) -> -4.097457206 | V26: =240.7263/((7.591386/LOG10(W26/6.116441))-1) -> 15.2988974 | W26: =T26*R26/100 -> 17.38302578
A27: 5 | B27: 5 | C27: 0.5701565146 | D27: 8.72530222 | E27: -4.357779298 | F27: 8.72530222 | G27: 2.181325555 | H27: 4.36265111 | I27: 6.543976665 | J27: 4.993833394 | K27: -13.40836064 | L27: -4.565206001 | M27: 0.9340888478 | N27: =Psychrometric!T27 -> 18.49412786 | O27: ='Input Sheet'!B27 -> 20 | Q27: 24.8 | R27: 22.91 | S27: =1-(273.15+Q27)/647.096 -> 0.5395582727 | T27: =220640*EXP((647.096/(Q27+273.15))*U27) -> 31.32224299 | U27: =(-7.85951783*S27)+(1.84408259*S27^1.5)-(11.7866497*S27^3)+(22.6807411*S27^3.5)-(15.9618719*S27^4)+(1.80122502*S27^7.5) -> -4.079494922 | V27: =240.7263/((7.591386/LOG10(W27/6.116441))-1) ->  | W27: 0
A28: 5.2 | B28: 5.2 | C28: 0.5698474415 | D28: 8.847777679 | E28: -4.354916712 | F28: 8.847777679 | G28: 2.21194442 | H28: 4.42388884 | I28: 6.635833259 | J28: 5.194009877 | K28: -13.23705467 | L28: -4.380307023 | M28: 1.127702806 | N28: =Psychrometric!T28 -> 18.25546373 | O28: ='Input Sheet'!B28 -> 20.3 | Q28: 20.2 | V28: 2.2 | W28: 0
A29: 5.4 | B29: 5.4 | C29: 0.5695383683 | D29: 8.971770189 | E29: -4.352055208 | F29: 8.971770189 | G29: 2.242942547 | H29: 4.485885095 | I29: 6.728827642 | J29: 5.394188473 | K29: -13.06576779 | L29: -4.195417812 | M29: 1.321313596 | N29: =Psychrometric!T29 -> 18.86689283 | O29: ='Input Sheet'!B29 -> 20.2
A30: 5.6 | B30: 5.6 | C30: 0.5692292952 | D30: 9.097295844 | E30: -4.349194783 | F30: 9.097295844 | G30: 2.274323961 | H30: 4.548647922 | I30: 6.822971883 | J30: 5.594369121 | K30: -12.89450006 | L30: -4.010538424 | M30: 1.51492116 | N30: =Psychrometric!T30 -> 19.08344361 | O30: ='Input Sheet'!B30 -> 19.9 | Q30: Givoni 0m
A31: 5.8 | B31: 5.8 | C31: 0.568920222 | D31: 9.224370875 | E31: -4.346335438 | F31: 9.224370875 | G31: 2.306092719 | H31: 4.612185437 | I31: 6.918278156 | J31: 5.794551763 | K31: -12.72325151 | L31: -3.825668912 | M31: 1.70852544 | N31: =Psychrometric!T31 -> 19.35111336 | O31: ='Input Sheet'!B31 -> 20 | Q31: 18 | R31: 20 | S31: =1-(273.15+Q31)/647.096 -> 0.5500667598 | T31: =220640*EXP((647.096/(Q31+273.15))*U31) -> 20.64610937 | U31: =(-7.85951783*S31)+(1.84408259*S31^1.5)-(11.7866497*S31^3)+(22.6807411*S31^3.5)-(15.9618719*S31^4)+(1.80122502*S31^7.5) -> -4.173923045 | V31: =240.7263/((7.591386/LOG10(W31/6.116441))-1) -> -5.291829224 | W31: =T31*R31/100 -> 4.129221875
A32: 6 | B32: 6 | C32: 0.5686111489 | D32: 9.353011652 | E32: -4.34347717 | F32: 9.353011652 | G32: 2.338252913 | H32: 4.676505826 | I32: 7.014758739 | J32: 5.994736336 | K32: -12.5520222 | L32: -3.640809333 | M32: 1.902126376 | N32: =Psychrometric!T32 -> 19.83365101 | O32: ='Input Sheet'!B32 -> 21 | Q32: 18 | R32: 80 | S32: =1-(273.15+Q32)/647.096 -> 0.5500667598 | T32: =220640*EXP((647.096/(Q32+273.15))*U32) -> 20.64610937 | U32: =(-7.85951783*S32)+(1.84408259*S32^1.5)-(11.7866497*S32^3)+(22.6807411*S32^3.5)-(15.9618719*S32^4)+(1.80122502*S32^7.5) -> -4.173923045 | V32: =240.7263/((7.591386/LOG10(W32/6.116441))-1) -> 14.50517287 | W32: 16.5168875
A33: 6.2 | B33: 6.2 | C33: 0.5683020757 | D33: 9.483234689 | E33: -4.340619981 | F33: 9.483234689 | G33: 2.370808672 | H33: 4.741617345 | I33: 7.112426017 | J33: 6.194922782 | K33: -12.38081218 | L33: -3.45595974 | M33: 2.095723912 | N33: =Psychrometric!T33 -> 19.75585167 | O33: ='Input Sheet'!B33 -> 22.2 | Q33: 25 | R33: 80 | S33: =1-(273.15+Q33)/647.096 -> 0.5392491995 | T33: =220640*EXP((647.096/(Q33+273.15))*U33) -> 31.69824486 | U33: =(-7.85951783*S33)+(1.84408259*S33^1.5)-(11.7866497*S33^3)+(22.6807411*S33^3.5)-(15.9618719*S33^4)+(1.80122502*S33^7.5) -> -4.076735238 | V33: =240.7263/((7.591386/LOG10(W33/6.116441))-1) -> 21.31976577 | W33: 25.35859589
A34: 6.4 | B34: 6.4 | C34: 0.5679930026 | D34: 9.615056639 | E34: -4.337763868 | F34: 9.615056639 | G34: 2.40376416 | H34: 4.80752832 | I34: 7.211292479 | J34: 6.395111039 | K34: -12.20962149 | L34: -3.271120188 | M34: 2.289317989 | N34: =Psychrometric!T34 -> 20.83612974 | O34: ='Input Sheet'!B34 -> 23.3 | Q34: 27 | R34: 50 | S34: 0.536158468 | T34: 35.68024626 | U34: =(-7.85951783*S34)+(1.84408259*S34^1.5)-(11.7866497*S34^3)+(22.6807411*S34^3.5)-(15.9618719*S34^4)+(1.80122502*S34^7.5) -> -4.049193008 | V34: 15.70387074 | W34: 17.84012313
A35: 6.6 | B35: 6.6 | C35: 0.5676839294 | D35: 9.748494298 | E35: -4.33490883 | F35: 9.748494298 | G35: 2.437123574 | H35: 4.874247149 | I35: 7.311370723 | J35: 6.595301049 | K35: -12.03845018 | L35: -3.086290732 | M35: 2.482908549 | N35: =Psychrometric!T35 -> 18.96813197 | O35: ='Input Sheet'!B35 -> 24.1 | Q35: 27 | R35: 20 | S35: 0.536158468 | T35: 35.68024626 | U35: =(-7.85951783*S35)+(1.84408259*S35^1.5)-(11.7866497*S35^3)+(22.6807411*S35^3.5)-(15.9618719*S35^4)+(1.80122502*S35^7.5) -> -4.049193008 | V35: 2.142196871 | W35: 7.136049252
A36: 6.8 | B36: 6.8 | C36: 0.5673748563 | D36: 9.883564604 | E36: -4.332054868 | F36: 9.883564604 | G36: 2.470891151 | H36: 4.941782302 | I36: 7.412673453 | J36: 6.795492751 | K36: -11.8672983 | L36: -2.901471427 | M36: 2.676495535 | N36: =Psychrometric!T36 -> 19.19477993 | O36: ='Input Sheet'!B36 -> 24.8 | Q36: 18 | R36: 20 | S36: 0.5500667598 | T36: 20.64610937 | U36: -4.173923045 | V36: -5.291829224 | W36: 4.129221875
A37: 7 | B37: 7 | C37: 0.5670657831 | D37: 10.02028464 | E37: -4.32920198 | F37: 10.02028464 | G37: 2.505071161 | H37: 5.010142321 | I37: 7.515213482 | J37: 6.995686086 | K37: -11.6961659 | L37: -2.716662326 | M37: 2.870078889 | N37: =Psychrometric!T37 -> 19.76993692 | O37: ='Input Sheet'!B37 -> 25.4
A38: 7.2 | B38: 7.2 | C38: 0.56675671 | D38: 10.15867164 | E38: -4.326350166 | F38: 10.15867164 | G38: 2.53966791 | H38: 5.07933582 | I38: 7.61900373 | J38: 7.195880994 | K38: -11.52505302 | L38: -2.531863483 | M38: 3.063658552 | N38: =Psychrometric!T38 -> 19.64757979 | O38: ='Input Sheet'!B38 -> 26 | Q38: Givoni 1m
A39: 7.4 | B39: 7.4 | C39: 0.5664476368 | D39: 10.29874297 | E39: -4.323499424 | F39: 10.29874297 | G39: 2.574685743 | H39: 5.149371486 | I39: 7.72405723 | J39: 7.396077415 | K39: -11.35395972 | L39: -2.347074954 | M39: 3.257234469 | N39: =Psychrometric!T39 -> 19.69455104 | O39: ='Input Sheet'!B39 -> 26.3 | Q39: 18 | R39: 20 | S39: =1-(273.15+Q39)/647.096 -> 0.5500667598 | T39: =220640*EXP((647.096/(Q39+273.15))*U39) -> 20.64610937 | U39: =(-7.85951783*S39)+(1.84408259*S39^1.5)-(11.7866497*S39^3)+(22.6807411*S39^3.5)-(15.9618719*S39^4)+(1.80122502*S39^7.5) -> -4.173923045 | V39: =240.7263/((7.591386/LOG10(W39/6.116441))-1) -> -5.291829224 | W39: =T39*R39/100 -> 4.129221875
A40: 7.6 | B40: 7.6 | C40: 0.5661385637 | D40: 10.44051616 | E40: -4.320649754 | F40: 10.44051616 | G40: 2.61012904 | H40: 5.220258081 | I40: 7.830387121 | J40: 7.596275291 | K40: -11.18288603 | L40: -2.162296791 | M40: 3.450806581 | N40: =Psychrometric!T40 -> 20.16948684 | O40: ='Input Sheet'!B40 -> 26.3 | Q40: 18 | R40: 80 | S40: =1-(273.15+Q40)/647.096 -> 0.5500667598 | T40: =220640*EXP((647.096/(Q40+273.15))*U40) -> 20.64610937 | U40: =(-7.85951783*S40)+(1.84408259*S40^1.5)-(11.7866497*S40^3)+(22.6807411*S40^3.5)-(15.9618719*S40^4)+(1.80122502*S40^7.5) -> -4.173923045 | V40: =240.7263/((7.591386/LOG10(W40/6.116441))-1) -> 14.50517287 | W40: 16.5168875
A41: 7.8 | B41: 7.8 | C41: 0.5658294905 | D41: 10.58400888 | E41: -4.317801155 | F41: 10.58400888 | G41: 2.646002219 | H41: 5.292004438 | I41: 7.938006657 | J41: 7.796474561 | K41: -11.01183202 | L41: -1.97752905 | M41: 3.644374831 | N41: =Psychrometric!T41 -> 20.21111867 | O41: ='Input Sheet'!B41 -> 26.1 | Q41: 20 | R41: 80 | S41: =1-(273.15+Q41)/647.096 -> 0.5469760283 | T41: =220640*EXP((647.096/(Q41+273.15))*U41) -> 23.39193737 | U41: =(-7.85951783*S41)+(1.84408259*S41^1.5)-(11.7866497*S41^3)+(22.6807411*S41^3.5)-(15.9618719*S41^4)+(1.80122502*S41^7.5) -> -4.146028405 | V41: =240.7263/((7.591386/LOG10(W41/6.116441))-1) -> 16.45299344 | W41: =T41*R41/100 -> 18.71354989
A42: 8 | B42: 8 | C42: 0.5655204174 | D42: 10.72923893 | E42: -4.314953626 | F42: 10.72923893 | G42: 2.682309734 | H42: 5.364619467 | I42: 8.046929201 | J42: 7.996675167 | K42: -10.84079771 | L42: -1.792771782 | M42: 3.837939162 | N42: =Psychrometric!T42 -> 22.3088672 | O42: ='Input Sheet'!B42 -> 25.6 | Q42: 20 | R42: 95 | S42: 0.5469760283 | T42: 23.39193737 | U42: -4.146028405 | V42: 19.18289842 | W42: 22.2223405
A43: 8.2 | B43: 8.2 | C43: 0.5652113442 | D43: 10.8762243 | E43: -4.312107166 | F43: 10.8762243 | G43: 2.719056076 | H43: 5.438112152 | I43: 8.157168227 | J43: 8.196877049 | K43: -10.66978317 | L43: -1.608025043 | M43: 4.031499517 | N43: =Psychrometric!T43 -> 22.50531003 | O43: ='Input Sheet'!B43 -> 25 | Q43: 27 | R43: 95 | S43: 0.536158468 | T43: 35.68024626 | U43: -4.049193008 | V43: 26.14248304 | W43: 33.89623395
A44: 8.4 | B44: 8.4 | C44: 0.5649022711 | D44: 11.0249831 | E44: -4.309261774 | F44: 11.0249831 | G44: 2.756245775 | H44: 5.512491551 | I44: 8.268737326 | J44: 8.397080148 | K44: -10.49878844 | L44: -1.423288886 | M44: 4.22505584 | N44: =Psychrometric!T44 -> 21.71986639 | O44: ='Input Sheet'!B44 -> 24.2 | Q44: 32 | R44: 50 | S44: 0.5284316392 | T44: 47.59555234 | U44: -3.980767129 | V44: 20.28717273 | W44: 23.79777617
A45: 8.6 | B45: 8.6 | C45: 0.5645931979 | D45: 11.1755336 | E45: -4.306417451 | F45: 11.1755336 | G45: 2.7938834 | H45: 5.587766799 | I45: 8.381650199 | J45: 8.597284406 | K45: -10.32781356 | L45: -1.238563363 | M45: 4.418608072 | N45: =Psychrometric!T45 -> 20.93432846 | O45: ='Input Sheet'!B45 -> 23.4 | Q45: 32 | R45: 20 | S45: 0.5284316392 | T45: 47.59555234 | U45: -3.980767129 | V45: 6.24964673 | W45: 9.519110469
A46: 8.8 | B46: 8.8 | C46: 0.5642841248 | D46: 11.32789422 | E46: -4.303574194 | F46: 11.32789422 | G46: 2.831973554 | H46: 5.663947108 | I46: 8.495920662 | J46: 8.797489764 | K46: -10.15685859 | L46: -1.05384853 | M46: 4.612156158 | N46: =Psychrometric!T46 -> 21.71798563 | O46: ='Input Sheet'!B46 -> 22.9 | Q46: 18 | R46: 20 | S46: 0.5500667598 | T46: 20.64610937 | U46: -4.173923045 | V46: -5.291829224 | W46: 4.129221875
A47: 9 | B47: 9 | C47: 0.5639750516 | D47: 11.48208353 | E47: -4.300732003 | F47: 11.48208353 | G47: 2.870520882 | H47: 5.741041765 | I47: 8.611562647 | J47: 8.997696163 | K47: -9.985923559 | L47: -0.8691444376 | M47: 4.805700041 | N47: =Psychrometric!T47 -> 21.71126754 | O47: ='Input Sheet'!B47 -> 22.2
A48: 9.2 | B48: 9.2 | C48: 0.5636659785 | D48: 11.63812027 | E48: -4.297890877 | F48: 11.63812027 | G48: 2.909530067 | H48: 5.819060134 | I48: 8.728590201 | J48: 9.197903544 | K48: -9.815008528 | L48: -0.6844511405 | M48: 4.999239664 | N48: =Psychrometric!T48 -> 20.71428083 | O48: ='Input Sheet'!B48 -> 21.2
A49: 9.4 | B49: 9.4 | C49: 0.5633569053 | D49: 11.79602332 | E49: -4.295050815 | F49: 11.79602332 | G49: 2.949005829 | H49: 5.898011658 | I49: 8.847017487 | J49: 9.398111849 | K49: -9.644113538 | L49: -0.4997686913 | M49: 5.192774971 | N49: =Psychrometric!T49 -> 20.64638953 | O49: ='Input Sheet'!B49 -> 20.8
A50: 9.6 | B50: 9.6 | C50: 0.5630478322 | D50: 11.95581171 | E50: -4.292211817 | F50: 11.95581171 | G50: 2.988952929 | H50: 5.977905857 | I50: 8.966858786 | J50: 9.598321019 | K50: -9.473238637 | L50: -0.3150971429 | M50: 5.386305905 | N50: =Psychrometric!T50 -> 20.24655126 | O50: ='Input Sheet'!B50 -> 20.4
A51: 9.8 | B51: 9.8 | C51: 0.562738759 | D51: 12.11750466 | E51: -4.289373882 | F51: 12.11750466 | G51: 3.029376165 | H51: 6.05875233 | I51: 9.088128495 | J51: 9.798530997 | K51: -9.302383869 | L51: -0.1304365482 | M51: 5.579832412 | N51: =Psychrometric!T51 -> 19.74674013 | O51: ='Input Sheet'!B51 -> 19.9
A52: 10 | B52: 10 | C52: 0.5624296859 | D52: 12.28112151 | E52: -4.286537008 | F52: 12.28112151 | G52: 3.070280377 | H52: 6.140560754 | I52: 9.210841132 | J52: 9.998741724 | K52: -9.131549282 | L52: 0.0542130402 | M52: 5.773354433 | N52: =Psychrometric!T52 -> 19.54681171 | O52: ='Input Sheet'!B52 -> 19.7
A53: 10.2 | B53: 10.2 | C53: 0.5621206127 | D53: 12.44668177 | E53: -4.283701196 | F53: 12.44668177 | G53: 3.111670444 | H53: 6.223340887 | I53: 9.335011331 | J53: 10.19895314 | K53: -8.960734921 | L53: 0.2388515697 | M53: 5.966871914 | N53: =Psychrometric!T53 -> 19.24691499 | O53: ='Input Sheet'!B53 -> 19.4
A54: 10.4 | B54: 10.4 | C54: 0.5618115396 | D54: 12.61420513 | E54: -4.280866443 | F54: 12.61420513 | G54: 3.153551283 | H54: 6.307102565 | I54: 9.460653848 | J54: 10.39916519 | K54: -8.789940833 | L54: 0.4234789879 | M54: 6.160384798 | N54: =Psychrometric!T54 -> 19.0469812 | O54: ='Input Sheet'!B54 -> 19.2
A55: 10.6 | B55: 10.6 | C55: 0.5615024664 | D55: 12.78371141 | E55: -4.27803275 | F55: 12.78371141 | G55: 3.195927853 | H55: 6.391855706 | I55: 9.587783559 | J55: 10.59937782 | K55: -8.619167062 | L55: 0.6080952423 | M55: 6.35389303 | N55: =Psychrometric!T55 -> 19.14694836 | O55: ='Input Sheet'!B55 -> 19.3
A56: 10.8 | B56: 10.8 | C56: 0.5611933933 | D56: 12.95522061 | E56: -4.275200115 | F56: 12.95522061 | G56: 3.238805154 | H56: 6.477610307 | I56: 9.716415461 | J56: 10.79959096 | K56: -8.448413655 | L56: 0.7927002807 | M56: 6.547396554 | N56: =Psychrometric!T56 -> 20.28200058 | O56: ='Input Sheet'!B56 -> 20.6
A57: 11 | B57: 11 | C57: 0.5608843201 | D57: 13.1287529 | E57: -4.272368538 | F57: 13.1287529 | G57: 3.282188225 | H57: 6.564376449 | I57: 9.846564674 | J57: 10.99980456 | K57: -8.277680658 | L57: 0.9772940509 | M57: 6.740895314 | N57: =Psychrometric!T57 -> 20.99944512 | O57: ='Input Sheet'!B57 -> 22
A58: 11.2 | B58: 11.2 | C58: 0.5605752469 | D58: 13.30432858 | E58: -4.269538018 | F58: 13.30432858 | G58: 3.326082146 | H58: 6.652164292 | I58: 9.978246438 | J58: 11.20001857 | K58: -8.106968114 | L58: 1.161876501 | M58: 6.934389256 | N58: =Psychrometric!T58 -> 20.55339742 | O58: ='Input Sheet'!B58 -> 23.6
A59: 11.4 | B59: 11.4 | C59: 0.5602661738 | D59: 13.48196816 | E59: -4.266708554 | F59: 13.48196816 | G59: 3.37049204 | H59: 6.74098408 | I59: 10.11147612 | J59: 11.40023292 | K59: -7.936276071 | L59: 1.346447579 | M59: 7.127878323 | N59: =Psychrometric!T59 -> 20.50384767 | O59: ='Input Sheet'!B59 -> 24.8
A60: 11.6 | B60: 11.6 | C60: 0.5599571006 | D60: 13.66169228 | E60: -4.263880144 | F60: 13.66169228 | G60: 3.415423069 | H60: 6.830846138 | I60: 10.24626921 | J60: 11.60044756 | K60: -7.765604573 | L60: 1.531007233 | M60: 7.32136246 | N60: =Psychrometric!T60 -> 19.78749967 | O60: ='Input Sheet'!B60 -> 25.9
A61: 11.8 | B61: 11.8 | C61: 0.5596480275 | D61: 13.84352175 | E61: -4.261052789 | F61: 13.84352175 | G61: 3.460880438 | H61: 6.921760876 | I61: 10.38264131 | J61: 11.80066242 | K61: -7.594953664 | L61: 1.715555411 | M61: 7.514841613 | N61: =Psychrometric!T61 -> 19.6809341 | O61: ='Input Sheet'!B61 -> 26.8
A62: 12 | B62: 12 | C62: 0.5593389543 | D62: 14.02747757 | E62: -4.258226488 | F62: 14.02747757 | G62: 3.506869394 | H62: 7.013738787 | I62: 10.52060818 | J62: 12.00087746 | K62: -7.424323391 | L62: 1.900092062 | M62: 7.708315725 | N62: =Psychrometric!T62 -> 19.74465544 | O62: ='Input Sheet'!B62 -> 27.4
A63: 12.2 | B63: 12.2 | C63: 0.5590298812 | D63: 14.2135809 | E63: -4.255401239 | F63: 14.2135809 | G63: 3.553395224 | H63: 7.106790449 | I63: 10.66018567 | J63: 12.20109262 | K63: -7.253713798 | L63: 2.084617135 | M63: 7.901784744 | N63: =Psychrometric!T63 -> 20.02781661 | O63: ='Input Sheet'!B63 -> 27.7
A64: 12.4 | B64: 12.4 | C64: 0.558720808 | D64: 14.40185304 | E64: -4.252577041 | F64: 14.40185304 | G64: 3.600463261 | H64: 7.200926521 | I64: 10.80138978 | J64: 12.40130783 | K64: -7.08312493 | L64: 2.269130577 | M64: 8.095248612 | N64: =Psychrometric!T64 -> 19.86372482 | O64: ='Input Sheet'!B64 -> 27.8
A65: 12.6 | B65: 12.6 | C65: 0.5584117349 | D65: 14.59231551 | E65: -4.249753895 | F65: 14.59231551 | G65: 3.648078876 | H65: 7.296157753 | I65: 10.94423663 | J65: 12.60152305 | K65: -6.912556831 | L65: 2.453632338 | M65: 8.288707276 | N65: =Psychrometric!T65 -> 18.7849054 | O65: ='Input Sheet'!B65 -> 27.5
A66: 12.8 | B66: 12.8 | C66: 0.5581026617 | D66: 14.78498995 | E66: -4.246931798 | F66: 14.78498995 | G66: 3.696247488 | H66: 7.392494975 | I66: 11.08874246 | J66: 12.80173821 | K66: -6.742009546 | L66: 2.638122366 | M66: =240.7263/((7.591386/LOG10(I66/6.116441))-1) -> 8.482160682 | N66: =Psychrometric!T66 -> 21.66118763 | O66: ='Input Sheet'!B66 -> 26.9
A67: 13 | B67: 13 | C67: =1-(273.15+A67)/647.096 -> 0.5577935886 | D67: =220640*EXP((647.096/(A67+273.15))*E67) -> 14.97989821 | E67: =(-7.85951783*C67)+(1.84408259*C67^1.5)-(11.7866497*C67^3)+(22.6807411*C67^3.5)-(15.9618719*C67^4)+(1.80122502*C67^7.5) -> -4.244110751 | F67: =D67 -> 14.97989821 | G67: =F67/4 -> 3.744974553 | H67: =D67/2 -> 7.489949107 | I67: =D67*3/4 -> 11.23492366 | J67: =240.7263/((7.591386/LOG10(F67/6.116441))-1) -> 13.00195326 | K67: -6.571483119 | L67: 2.822600611 | M67: 8.675608774 | N67: =Psychrometric!T67 -> 18.76909413 | O67: ='Input Sheet'!B67 -> 26.1
A68: 13.2 | B68: 13.2 | C68: 0.5574845154 | D68: 15.1770623 | E68: -4.241290752 | F68: 15.1770623 | G68: 3.794265576 | H68: 7.588531152 | I68: 11.38279673 | J68: 13.20216814 | K68: -6.400977595 | L68: 3.007067021 | M68: 8.869051499 | N68: =Psychrometric!T68 -> 19.02340559 | O68: ='Input Sheet'!B68 -> 25.1
A69: 13.4 | B69: 13.4 | C69: 0.5571754423 | D69: 15.37650441 | E69: -4.238471801 | F69: 15.37650441 | G69: 3.844126102 | H69: 7.688252205 | I69: 11.53237831 | J69: 13.4023828 | K69: -6.230493018 | L69: 3.191521546 | M69: 9.062488801 | N69: =Psychrometric!T69 -> 19.18637941 | O69: ='Input Sheet'!B69 -> 24.1
A70: 13.6 | B70: 13.6 | C70: 0.5568663691 | D70: 15.57824689 | E70: -4.235653896 | F70: 15.57824689 | G70: 3.894561721 | H70: 7.789123443 | I70: 11.68368516 | J70: 13.60259718 | K70: -6.060029431 | L70: 3.375964134 | M70: 9.255920627 | N70: =Psychrometric!T70 -> 19.17148573 | O70: ='Input Sheet'!B70 -> 23
A71: 13.8 | B71: 13.8 | C71: 0.556557296 | D71: 15.78231227 | E71: -4.232837037 | F71: 15.78231227 | G71: 3.945578067 | H71: 7.891156134 | I71: 11.8367342 | J71: 13.80281122 | K71: -5.88958688 | L71: 3.560394736 | M71: 9.449346923 | N71: =Psychrometric!T71 -> 18.69719314 | O71: ='Input Sheet'!B71 -> 21.9
A72: 14 | B72: 14 | C72: 0.5562482228 | D72: 15.98872327 | E72: -4.230021222 | F72: 15.98872327 | G72: 3.997180817 | H72: 7.994361635 | I72: 11.99154245 | J72: 14.00302487 | K72: -5.719165407 | L72: 3.7448133 | M72: 9.642767635 | N72: =Psychrometric!T72 -> 18.38071737 | O72: ='Input Sheet'!B72 -> 20.8
A73: 14.2 | B73: 14.2 | C73: 0.5559391497 | D73: 16.19750278 | E73: -4.227206452 | F73: 16.19750278 | G73: 4.049375695 | H73: 8.09875139 | I73: 12.14812709 | J73: 14.20323807 | K73: -5.548765057 | L73: 3.929219777 | M73: 9.836182709 | N73: =Psychrometric!T73 -> 17.84375361 | O73: ='Input Sheet'!B73 -> 19.7
A74: 14.4 | B74: 14.4 | C74: 0.5556300765 | D74: 16.40867387 | E74: -4.224392725 | F74: 16.40867387 | G74: 4.102168468 | H74: 8.204336935 | I74: 12.3065054 | J74: 14.40345076 | K74: -5.378385873 | L74: 4.113614116 | M74: 10.02959209 | N74: =Psychrometric!T74 -> 17.5521738 | O74: ='Input Sheet'!B74 -> 18.7
A75: 14.6 | B75: 14.6 | C75: 0.5553210034 | D75: 16.62225979 | E75: -4.221580041 | F75: 16.62225979 | G75: 4.155564947 | H75: 8.311129893 | I75: 12.46669484 | J75: 14.6036629 | K75: -5.208027898 | L75: 4.297996267 | M75: 10.22299573 | N75: =Psychrometric!T75 -> 16.89525925 | O75: ='Input Sheet'!B75 -> 17.7
A76: 14.8 | B76: 14.8 | C76: 0.5550119302 | D76: 16.83828396 | E76: -4.218768397 | F76: 16.83828396 | G76: 4.20957099 | H76: 8.41914198 | I76: 12.62871297 | J76: 14.80387441 | K76: -5.037691177 | L76: 4.48236618 | M76: 10.41639356 | N76: =Psychrometric!T76 -> 16.13239988 | O76: ='Input Sheet'!B76 -> 17.1
A77: 15 | B77: 15 | C77: 0.5547028571 | D77: 17.05677 | E77: -4.215957795 | F77: 17.05677 | G77: 4.264192501 | H77: 8.528385002 | I77: 12.7925775 | J77: 15.00408526 | K77: -4.867375752 | L77: 4.666723804 | M77: 10.60978555 | N77: =Psychrometric!T77 -> 15.70157598 | O77: ='Input Sheet'!B77 -> 16.5
A78: 15.2 | B78: 15.2 | C78: 0.5543937839 | D78: 17.27774171 | E78: -4.213148232 | F78: 17.27774171 | G78: 4.319435428 | H78: 8.638870855 | I78: 12.95830628 | J78: 15.20429538 | K78: -4.697081666 | L78: 4.851069091 | M78: 10.80317163 | N78: =Psychrometric!T78 -> 14.80475547 | O78: ='Input Sheet'!B78 -> 16.1
A79: 15.4 | B79: 15.4 | C79: 0.5540847108 | D79: 17.50122306 | E79: -4.210339708 | F79: 17.50122306 | G79: 4.375305765 | H79: 8.75061153 | I79: 13.1259173 | J79: 15.40450472 | K79: -4.526808963 | L79: 5.03540199 | M79: 10.99655175 | N79: =Psychrometric!T79 -> 15.00293746 | O79: ='Input Sheet'!B79 -> 16.3
A80: 15.6 | B80: 15.6 | C80: 0.5537756376 | D80: 17.72723822 | E80: -4.207532222 | F80: 17.72723822 | G80: 4.431809554 | H80: 8.863619109 | I80: 13.29542866 | J80: 15.60471321 | K80: -4.356557686 | L80: 5.219722452 | M80: 11.18992586 | N80: =Psychrometric!T80 -> 16.02277957 | O80: ='Input Sheet'!B80 -> 18.4
A81: 15.8 | B81: 15.8 | C81: 0.5534665645 | D81: 17.95581153 | E81: -4.204725774 | F81: 17.95581153 | G81: 4.488952882 | H81: 8.977905765 | I81: 13.46685865 | J81: 15.80492082 | K81: -4.186327877 | L81: 5.404030426 | M81: 11.3832939 | N81: =Psychrometric!T81 -> 16.83875671 | O81: ='Input Sheet'!B81 -> 20.6
A82: 16 | B82: 16 | C82: 0.5531574913 | D82: 18.18696754 | E82: -4.201920361 | F82: 18.18696754 | G82: 4.546741884 | H82: 9.093483768 | I82: 13.64022565 | J82: 16.00512748 | K82: -4.016119579 | L82: 5.588325865 | M82: 11.57665583 | N82: =Psychrometric!T82 -> 16.59583838 | O82: ='Input Sheet'!B82 -> 22.8
A83: 16.2 | B83: 16.2 | C83: 0.5528484182 | D83: 18.42073096 | E83: -4.199115985 | F83: 18.42073096 | G83: 4.605182739 | H83: 9.210365479 | I83: 13.81554822 | J83: 16.20533313 | K83: -3.845932835 | L83: 5.772608718 | M83: 11.77001158 | N83: =Psychrometric!T83 -> 17.53889172 | O83: ='Input Sheet'!B83 -> 24.8
A84: 16.4 | B84: 16.4 | C84: 0.552539345 | D84: 18.65712671 | E84: -4.196312642 | F84: 18.65712671 | G84: 4.664281678 | H84: 9.328563355 | I84: 13.99284503 | J84: 16.40553773 | K84: -3.675767687 | L84: 5.956878936 | M84: 11.96336111 | N84: =Psychrometric!T84 -> 17.84848245 | O84: ='Input Sheet'!B84 -> 26.5
A85: 16.6 | B85: 16.6 | C85: 0.5522302719 | D85: 18.8961799 | E85: -4.193510334 | F85: 18.8961799 | G85: 4.724044974 | H85: 9.448089948 | I85: 14.17213492 | J85: 16.60574121 | K85: -3.505624178 | L85: 6.14113647 | M85: 12.15670437 | N85: =Psychrometric!T85 -> 17.7457386 | O85: ='Input Sheet'!B85 -> 27.9
A86: 16.8 | B86: 16.8 | C86: 0.5519211987 | D86: 19.13791581 | E86: -4.190709058 | F86: 19.13791581 | G86: 4.784478953 | H86: 9.568957906 | I86: 14.35343686 | J86: 16.80594353 | K86: -3.33550235 | L86: 6.325381272 | M86: 12.3500413 | N86: =Psychrometric!T86 -> 18.06943832 | O86: ='Input Sheet'!B86 -> 28.9
A87: 17 | B87: 17 | C87: 0.5516121256 | D87: 19.38235994 | E87: -4.187908814 | F87: 19.38235994 | G87: 4.845589985 | H87: 9.69117997 | I87: 14.53676995 | J87: 17.00614462 | K87: -3.165402245 | L87: 6.509613292 | M87: 12.54337184 | N87: =Psychrometric!T87 -> 18.62216787 | O87: ='Input Sheet'!B87 -> 29.5
A88: 17.2 | B88: 17.2 | C88: 0.5513030524 | D88: 19.62953796 | E88: -4.185109602 | F88: 19.62953796 | G88: 4.90738449 | H88: 9.814768981 | I88: 14.72215347 | J88: 17.20634444 | K88: -2.995323905 | L88: 6.693832482 | M88: 12.73669596 | N88: =Psychrometric!T88 -> 18.18007001 | O88: ='Input Sheet'!B88 -> 29.7
A89: 17.4 | B89: 17.4 | C89: 0.5509939793 | D89: 19.87947575 | E89: -4.182311419 | F89: 19.87947575 | G89: 4.969868937 | H89: 9.939737875 | I89: 14.90960681 | J89: 17.40654293 | K89: -2.825267373 | L89: 6.878038793 | M89: 12.93001359 | N89: =Psychrometric!T89 -> 17.90507614 | O89: ='Input Sheet'!B89 -> 29.4
A90: 17.6 | B90: 17.6 | C90: 0.5506849061 | D90: 20.13219937 | E90: -4.179514266 | F90: 20.13219937 | G90: 5.033049843 | H90: 10.06609969 | I90: 15.09914953 | J90: 17.60674003 | K90: -2.655232689 | L90: 7.062232176 | M90: 13.12332468 | N90: =Psychrometric!T90 -> 17.39305133 | O90: ='Input Sheet'!B90 -> 28.5
A91: 17.8 | B91: 17.8 | C91: 0.550375833 | D91: 20.38773509 | E91: -4.176718142 | F91: 20.38773509 | G91: 5.096933773 | H91: 10.19386755 | I91: 15.29080132 | J91: 17.8069357 | K91: -2.485219896 | L91: 7.246412583 | M91: 13.31662918 | N91: =Psychrometric!T91 -> 18.13785635 | O91: ='Input Sheet'!B91 -> 27.1
A92: 18 | B92: 18 | C92: 0.5500667598 | D92: 20.64610937 | E92: -4.173923045 | F92: 20.64610937 | G92: 5.161527344 | H92: 10.32305469 | I92: 15.48458203 | J92: 18.00712987 | K92: -2.315229036 | L92: 7.430579966 | M92: 13.50992704 | N92: =Psychrometric!T92 -> 18.83814504 | O92: ='Input Sheet'!B92 -> 25.4
A93: 18.2 | B93: 18.2 | C93: 0.5497576866 | D93: 20.90734887 | E93: -4.171128975 | F93: 20.90734887 | G93: 5.226837219 | H93: 10.45367444 | I93: 15.68051166 | J93: 18.2073225 | K93: -2.145260149 | L93: 7.614734277 | M93: 13.70321821 | N93: =Psychrometric!T93 -> 19.61522909 | O93: ='Input Sheet'!B93 -> 24.1
A94: 18.4 | B94: 18.4 | C94: 0.5494486135 | D94: 21.17148045 | E94: -4.168335931 | F94: 21.17148045 | G94: 5.292870113 | H94: 10.58574023 | I94: 15.87861034 | J94: 18.40751352 | K94: -1.975313278 | L94: 7.798875468 | M94: 13.89650264 | N94: =Psychrometric!T94 -> 19.47596377 | O94: ='Input Sheet'!B94 -> 22.9
A95: 18.6 | B95: 18.6 | C95: 0.5491395403 | D95: 21.43853116 | E95: -4.165543912 | F95: 21.43853116 | G95: 5.359632791 | H95: 10.71926558 | I95: 16.07889837 | J95: 18.6077029 | K95: -1.805388463 | L95: 7.98300349 | M95: 14.08978027 | N95: =Psychrometric!T95 -> 18.78937708 | O95: ='Input Sheet'!B95 -> 21.6
A96: 18.8 | B96: 18.8 | C96: 0.5488304672 | D96: 21.70852827 | E96: -4.162752917 | F96: 21.70852827 | G96: 5.427132068 | H96: 10.85426414 | I96: 16.2813962 | J96: 18.80789056 | K96: -1.635485746 | L96: 8.167118295 | M96: 14.28305105 | N96: =Psychrometric!T96 -> 17.88953722 | O96: ='Input Sheet'!B96 -> 20.3
A97: 19 | B97: 19 | C97: 0.548521394 | D97: 21.98149924 | E97: -4.159962945 | F97: 21.98149924 | G97: 5.49537481 | H97: 10.99074962 | I97: 16.48612443 | J97: 19.00807646 | K97: -1.465605167 | L97: 8.351219837 | M97: 14.47631494 | N97: =Psychrometric!T97 -> 17.84978261 | O97: ='Input Sheet'!B97 -> 19
A98: 19.2 | B98: 19.2 | C98: 0.5482123209 | D98: 22.25747173 | E98: -4.157173996 | F98: 22.25747173 | G98: 5.564367932 | H98: 11.12873586 | I98: 16.69310379 | J98: 19.20826055 | K98: -1.295746768 | L98: 8.535308067 | M98: 14.66957187 | N98: =Psychrometric!T98 -> 16.18636167 | O98: ='Input Sheet'!B98 -> 18.2
A99: 19.4 | B99: 19.4 | C99: 0.5479032477 | D99: 22.5364736 | E99: -4.154386068 | F99: 22.5364736 | G99: 5.634118401 | H99: 11.2682368 | I99: 16.9023552 | J99: 19.40844278 | K99: -1.12591059 | L99: 8.719382938 | M99: 14.86282181 | N99: =Psychrometric!T99 -> 15.37692612 | O99: ='Input Sheet'!B99 -> 17.2
A100: 19.6 | B100: 19.6 | C100: 0.5475941746 | D100: 22.81853295 | E100: -4.151599161 | F100: 22.81853295 | G100: 5.704633237 | H100: 11.40926647 | I100: 17.11389971 | J100: 19.60862308 | K100: -0.956096673 | L100: 8.903444403 | M100: 15.05606469 | N100: =Psychrometric!T100 -> 15.22902272 | O100: ='Input Sheet'!B100 -> 16.7
A101: 19.8 | B101: 19.8 | C101: 0.5472851014 | D101: 23.10367804 | E101: -4.148813273 | F101: 23.10367804 | G101: 5.77591951 | H101: 11.55183902 | I101: 17.32775853 | J101: 19.80880141 | K101: -0.7863050577 | L101: 9.087492413 | M101: 15.24930048 | N101: =Psychrometric!T101 -> 14.73423392 | O101: ='Input Sheet'!B101 -> 16.2
A102: 20 | B102: 20 | C102: 0.5469760283 | D102: 23.39193737 | E102: -4.146028405 | F102: 23.39193737 | G102: 5.847984342 | H102: 11.69596868 | I102: 17.54395302 | J102: 20.00897771 | K102: -0.6165357848 | L102: 9.271526923 | M102: 15.44252911 | N102: =Psychrometric!T102 -> 15.4291726 | O102: ='Input Sheet'!B102 -> 15.9
A103: 20.2 | B103: 20.2 | C103: 0.5466669551 | D103: 23.68333962 | E103: -4.143244554 | F103: 23.68333962 | G103: 5.920834906 | H103: 11.84166981 | I103: 17.76250472 | J103: 20.20915193 | K103: -0.4467888946 | L103: 9.455547884 | M103: 15.63575054 | N103: =Psychrometric!T103 -> 15.68906543 | O103: ='Input Sheet'!B103 -> 16
A104: 20.4 | B104: 20.4 | C104: 0.546357882 | D104: 23.97791372 | E104: -4.140461721 | F104: 23.97791372 | G104: 5.994478429 | H104: 11.98895686 | I104: 17.98343529 | J104: 20.40932402 | K104: -0.2770644273 | L104: 9.639555251 | M104: 15.82896471 | N104: =Psychrometric!T104 -> 16.26505215 | O104: ='Input Sheet'!B104 -> 18.1
A105: 20.6 | B105: 20.6 | C105: 0.5460488088 | D105: 24.27568877 | E105: -4.137679903 | F105: 24.27568877 | G105: 6.068922191 | H105: 12.13784438 | I105: 18.20676657 | J105: 20.60949393 | K105: -0.1073624232 | L105: 9.823548975 | M105: 16.02217158 | N105: =Psychrometric!T105 -> 16.94097151 | O105: ='Input Sheet'!B105 -> 20.3
A106: 20.8 | B106: 20.8 | C106: 0.5457397357 | D106: 24.57669409 | E106: -4.134899102 | F106: 24.57669409 | G106: 6.144173524 | H106: 12.28834705 | I106: 18.43252057 | J106: 20.80966159 | K106: 0.06231707783 | L106: 10.00752901 | M106: 16.21537109 | N106: =Psychrometric!T106 -> 16.63461242 | O106: ='Input Sheet'!B106 -> 22.6
A107: 21 | B107: 21 | C107: 0.5454306625 | D107: 24.88095925 | E107: -4.132119314 | F107: 24.88095925 | G107: 6.220239812 | H107: 12.44047962 | I107: 18.66071944 | J107: 21.00982697 | K107: 0.2319740357 | L107: 10.19149531 | M107: 16.4085632 | N107: =Psychrometric!T107 -> 16.59191458 | O107: ='Input Sheet'!B107 -> 24.6
A108: 21.2 | B108: 21.2 | C108: 0.5451215894 | D108: 25.18851398 | E108: -4.12934054 | F108: 25.18851398 | G108: 6.297128494 | H108: 12.59425699 | I108: 18.89138548 | J108: 21.20999001 | K108: 0.4016084107 | L108: 10.37544783 | M108: 16.60174786 | N108: =Psychrometric!T108 -> 16.92886215 | O108: ='Input Sheet'!B108 -> 26.4
A109: 21.4 | B109: 21.4 | C109: 0.5448125162 | D109: 25.49938825 | E109: -4.126562779 | F109: 25.49938825 | G109: 6.374847062 | H109: 12.74969412 | I109: 19.12454119 | J109: 21.41015066 | K109: 0.571220163 | L109: 10.55938652 | M109: 16.79492501 | N109: =Psychrometric!T109 -> 17.35691767 | O109: ='Input Sheet'!B109 -> 27.8
A110: 21.6 | B110: 21.6 | C110: 0.5445034431 | D110: 25.81361225 | E110: -4.12378603 | F110: 25.81361225 | G110: 6.453403063 | H110: 12.90680613 | I110: 19.36020919 | J110: 21.61030885 | K110: 0.7408092532 | L110: 10.74331134 | M110: 16.98809461 | N110: =Psychrometric!T110 -> 16.7104266 | O110: ='Input Sheet'!B110 -> 28.8
A111: 21.8 | B111: 21.8 | C111: 0.5441943699 | D111: 26.13121639 | E111: -4.121010292 | F111: 26.13121639 | G111: 6.532804097 | H111: 13.06560819 | I111: 19.59841229 | J111: 21.81046456 | K111: 0.9103756416 | L111: 10.92722223 | M111: 17.1812566 | N111: =Psychrometric!T111 -> 17.25777254 | O111: ='Input Sheet'!B111 -> 29.4
A112: 22 | B112: 22 | C112: 0.5438852968 | D112: 26.45223128 | E112: -4.118235563 | F112: 26.45223128 | G112: 6.613057819 | H112: 13.22611564 | I112: 19.83917346 | J112: 22.01061771 | K112: 1.079919289 | L112: 11.11111916 | M112: 17.37441094 | N112: =Psychrometric!T112 -> 16.76782465 | O112: ='Input Sheet'!B112 -> 29.6
A113: 22.2 | B113: 22.2 | C113: 0.5435762236 | D113: 26.77668775 | E113: -4.115461844 | F113: 26.77668775 | G113: 6.694171938 | H113: 13.38834388 | I113: 20.08251582 | J113: 22.21076826 | K113: 1.249440156 | L113: 11.29500208 | M113: 17.56755758 | N113: =Psychrometric!T113 -> 17.16655831 | O113: ='Input Sheet'!B113 -> 29.3
A114: 22.4 | B114: 22.4 | C114: 0.5432671505 | D114: 27.10461688 | E114: -4.112689133 | F114: 27.10461688 | G114: 6.776154219 | H114: 13.55230844 | I114: 20.32846266 | J114: 22.41091615 | K114: 1.418938204 | L114: 11.47887093 | M114: 17.76069646 | N114: =Psychrometric!T114 -> 16.34544885 | O114: ='Input Sheet'!B114 -> 28.4
A115: 22.6 | B115: 22.6 | C115: 0.5429580773 | D115: 27.43604993 | E115: -4.10991743 | F115: 27.43604993 | G115: 6.859012482 | H115: 13.71802496 | I115: 20.57703745 | J115: 22.61106135 | K115: 1.588413393 | L115: 11.66272569 | M115: 17.95382755 | N115: =Psychrometric!T115 -> 15.61210607 | O115: ='Input Sheet'!B115 -> 26.9
A116: 22.8 | B116: 22.8 | C116: 0.5426490042 | D116: 27.77101841 | E116: -4.107146733 | F116: 27.77101841 | G116: 6.942754602 | H116: 13.8855092 | I116: 20.82826381 | J116: 22.81120378 | K116: 1.757865684 | L116: 11.84656629 | M116: 18.14695078 | N116: =Psychrometric!T116 -> 15.3370091 | O116: ='Input Sheet'!B116 -> 25.3
A117: 23 | B117: 23 | C117: 0.542339931 | D117: 28.10955404 | E117: -4.104377041 | F117: 28.10955404 | G117: 7.02738851 | H117: 14.05477702 | I117: 21.08216553 | J117: 23.01134342 | K117: 1.92729504 | L117: 12.0303927 | M117: 18.34006611 | N117: =Psychrometric!T117 -> 16.53367838 | O117: ='Input Sheet'!B117 -> 24
A118: 23.2 | B118: 23.2 | C118: 0.5420308579 | D118: 28.45168877 | E118: -4.101608355 | F118: 28.45168877 | G118: 7.112922193 | H118: 14.22584439 | I118: 21.33876658 | J118: 23.21148019 | K118: 2.09670142 | L118: 12.21420487 | M118: 18.53317349 | N118: =Psychrometric!T118 -> 16.50043121 | O118: ='Input Sheet'!B118 -> 22.7
A119: 23.4 | B119: 23.4 | C119: 0.5417217847 | D119: 28.79745478 | E119: -4.098840672 | F119: 28.79745478 | G119: 7.199363695 | H119: 14.39872739 | I119: 21.59809109 | J119: 23.41161405 | K119: 2.266084787 | L119: 12.39800275 | M119: 18.72627288 | N119: =Psychrometric!T119 -> 15.93401595 | O119: ='Input Sheet'!B119 -> 21.4
A120: 23.6 | B120: 23.6 | C120: 0.5414127116 | D120: 29.14688447 | E120: -4.096073992 | F120: 29.14688447 | G120: 7.286721116 | H120: 14.57344223 | I120: 21.86016335 | J120: 23.61174495 | K120: 2.435445102 | L120: 12.5817863 | M120: 18.91936422 | N120: =Psychrometric!T120 -> 15.11799714 | O120: ='Input Sheet'!B120 -> 20.1
A121: 23.8 | B121: 23.8 | C121: 0.5411036384 | D121: 29.50001045 | E121: -4.093308314 | F121: 29.50001045 | G121: 7.375002614 | H121: 14.75000523 | I121: 22.12500784 | J121: 23.81187285 | K121: 2.604782327 | L121: 12.76555547 | M121: 19.11244746 | N121: =Psychrometric!T121 -> 14.7873606 | O121: ='Input Sheet'!B121 -> 18.9
A122: 24 | B122: 24 | C122: 0.5407945653 | D122: 29.8568656 | E122: -4.090543637 | F122: 29.8568656 | G122: 7.464216401 | H122: 14.9284328 | I122: 22.3926492 | J122: 24.01199768 | K122: 2.774096423 | L122: 12.94931022 | M122: 19.30552256 | N122: =Psychrometric!T122 -> 14.40784135 | O122: ='Input Sheet'!B122 -> 18.1
A123: 24.2 | B123: 24.2 | C123: 0.5404854921 | D123: 30.217483 | E123: -4.08777996 | F123: 30.217483 | G123: 7.55437075 | H123: 15.1087415 | I123: 22.66311225 | J123: 24.2121194 | K123: 2.943387353 | L123: 13.13305051 | M123: 19.49858947 | N123: =Psychrometric!T123 -> 13.43521454 | O123: ='Input Sheet'!B123 -> 17.1
A124: 24.4 | B124: 24.4 | C124: 0.540176419 | D124: 30.58189596 | E124: -4.085017283 | F124: 30.58189596 | G124: 7.64547399 | H124: 15.29094798 | I124: 22.93642197 | J124: 24.41223795 | K124: 3.112655077 | L124: 13.31677629 | M124: 19.69164814 | N124: =Psychrometric!T124 -> 12.94884852 | O124: ='Input Sheet'!B124 -> 16.6
A125: 24.6 | B125: 24.6 | C125: 0.5398673458 | D125: 30.95013803 | E125: -4.082255604 | F125: 30.95013803 | G125: 7.737534507 | H125: 15.47506901 | I125: 23.21260352 | J125: 24.61235329 | K125: 3.281899559 | L125: 13.50048751 | M125: 19.88469852 | N125: =Psychrometric!T125 -> 12.84390497 | O125: ='Input Sheet'!B125 -> 16.1
A126: 24.8 | B126: 24.8 | C126: 0.5395582727 | D126: 31.32224299 | E126: -4.079494922 | F126: 31.32224299 | G126: 7.830560748 | H126: 15.6611215 | I126: 23.49168224 | J126: 24.81246537 | K126: 3.451120761 | L126: 13.68418413 | M126: 20.07774057 | N126: =Psychrometric!T126 -> 12.64064239 | O126: ='Input Sheet'!B126 -> 15.7
A127: 25 | B127: 25 | C127: 0.5392491995 | D127: 31.69824486 | E127: -4.076735238 | F127: 31.69824486 | G127: 7.924561216 | H127: 15.84912243 | I127: 23.77368365 | J127: 25.01257414 | K127: 3.620318644 | L127: 13.8678661 | M127: 20.27077423 | N127: =Psychrometric!T127 -> 12.73836758 | O127: ='Input Sheet'!B127 -> 15.8
A128: 25.2 | B128: 25.2 | C128: 0.5389401263 | D128: 32.07817789 | E128: -4.073976549 | F128: 32.07817789 | G128: 8.019544473 | H128: 16.03908895 | I128: 24.05863342 | J128: 25.21267954 | K128: 3.789493172 | L128: 14.05153339 | M128: 20.46379945 | N128: =Psychrometric!T128 -> 13.32632621 | O128: ='Input Sheet'!B128 -> 17.6
A129: 25.4 | B129: 25.4 | C129: 0.5386310532 | D129: 32.46207657 | E129: -4.071218855 | F129: 32.46207657 | G129: 8.115519142 | H129: 16.23103828 | I129: 24.34655742 | J129: 25.41278153 | K129: 3.958644306 | L129: 14.23518594 | M129: 20.6568162 | N129: =Psychrometric!T129 -> 13.98782786 | O129: ='Input Sheet'!B129 -> 19.6
A130: 25.6 | B130: 25.6 | C130: 0.53832198 | D130: 32.84997561 | E130: -4.068462155 | F130: 32.84997561 | G130: 8.212493902 | H130: 16.4249878 | I130: 24.63748171 | J130: 25.61288005 | K130: 4.12777201 | L130: 14.41882372 | M130: 20.84982442 | N130: =Psychrometric!T130 -> 14.50875708 | O130: ='Input Sheet'!B130 -> 21.6
A131: 25.8 | B131: 25.8 | C131: =1-(273.15+A131)/647.096 -> 0.5380129069 | D131: =220640*EXP((647.096/(A131+273.15))*E131) -> 33.24190998 | E131: =(-7.85951783*C131)+(1.84408259*C131^1.5)-(11.7866497*C131^3)+(22.6807411*C131^3.5)-(15.9618719*C131^4)+(1.80122502*C131^7.5) -> -4.065706447 | F131: =D131 -> 33.24190998 | G131: =F131/4 -> 8.310477495 | H131: =D131/2 -> 16.62095499 | I131: =D131*3/4 -> 24.93143248 | J131: =240.7263/((7.591386/LOG10(F131/6.116441))-1) -> 25.81297506 | K131: 4.296876246 | L131: 14.60244668 | M131: 21.04282407 | N131: =Psychrometric!T131 -> 14.94359605 | O131: ='Input Sheet'!B131 -> 23.4
A132: 26 | B132: 26 | C132: 0.5377038337 | D132: 33.63791488 | E132: -4.062951732 | F132: 33.63791488 | G132: 8.40947872 | H132: 16.81895744 | I132: 25.22843616 | J132: 26.01306651 | K132: 4.465956977 | L132: 14.78605477 | M132: 21.23581509 | N132: =Psychrometric!T132 -> 15.34455013 | O132: ='Input Sheet'!B132 -> 25
A133: 26.2 | B133: 26.2 | C133: 0.5373947606 | D133: 34.03802575 | E133: -4.060198009 | F133: 34.03802575 | G133: 8.509506438 | H133: 17.01901288 | I133: 25.52851931 | J133: 26.21315435 | K133: 4.635014167 | L133: 14.96964796 | M133: 21.42879744 | N133: =Psychrometric!T133 -> 15.58050441 | O133: ='Input Sheet'!B133 -> 26.2
A134: 26.4 | B134: 26.4 | C134: 0.5370856874 | D134: 34.44227828 | E134: -4.057445275 | F134: 34.44227828 | G134: 8.61056957 | H134: 17.22113914 | I134: 25.83170871 | J134: 26.41323852 | K134: 4.804047777 | L134: 15.15322619 | M134: 21.62177108 | N134: =Psychrometric!T134 -> 15.79563163 | O134: ='Input Sheet'!B134 -> 27.1
A135: 26.6 | B135: 26.6 | C135: 0.5367766143 | D135: 34.85070839 | E135: -4.054693531 | F135: 34.85070839 | G135: 8.712677096 | H135: 17.42535419 | I135: 26.13803129 | J135: 26.61331899 | K135: 4.973057772 | L135: 15.33678942 | M135: 21.81473595 | N135: =Psychrometric!T135 -> 15.61530173 | O135: ='Input Sheet'!B135 -> 27.6
A136: 26.8 | B136: 26.8 | C136: 0.5364675411 | D136: 35.26335224 | E136: -4.051942776 | F136: 35.26335224 | G136: 8.81583806 | H136: 17.63167612 | I136: 26.44751418 | J136: 26.81339569 | K136: 5.142044115 | L136: 15.52033762 | M136: 22.00769202 | N136: =Psychrometric!T136 -> 15.70658402 | O136: ='Input Sheet'!B136 -> 27.7
A137: 27 | B137: 27 | C137: 0.536158468 | D137: 35.68024626 | E137: -4.049193008 | F137: 35.68024626 | G137: 8.920061565 | H137: 17.84012313 | I137: 26.76018469 | J137: 27.01346858 | K137: 5.311006769 | L137: 15.70387074 | M137: 22.20063922 | N137: =Psychrometric!T137 -> 15.75466766 | O137: ='Input Sheet'!B137 -> 27.4
A138: 27.2 | B138: 27.2 | C138: 0.5358493948 | D138: 36.1014271 | E138: -4.046444227 | F138: 36.1014271 | G138: 9.025356775 | H138: 18.05071355 | I138: 27.07607033 | J138: 27.21353762 | K138: 5.479945697 | L138: 15.88738873 | M138: 22.39357752 | N138: =Psychrometric!T138 -> 15.64573369 | O138: ='Input Sheet'!B138 -> 26.6
A139: 27.4 | B139: 27.4 | C139: 0.5355403217 | D139: 36.52693167 | E139: -4.043696431 | F139: 36.52693167 | G139: 9.131732918 | H139: 18.26346584 | I139: 27.39519875 | J139: 27.41360275 | K139: 5.648860864 | L139: 16.07089155 | M139: 22.58650687 | N139: =Psychrometric!T139 -> 15.24431899 | O139: ='Input Sheet'!B139 -> 25.2
A140: 27.6 | B140: 27.6 | C140: 0.5352312485 | D140: 36.95679713 | E140: -4.040949621 | F140: 36.95679713 | G140: 9.239199281 | H140: 18.47839856 | I140: 27.71759784 | J140: 27.61366392 | K140: 5.817752233 | L140: 16.25437916 | M140: 22.77942722 | N140: =Psychrometric!T140 -> 14.95897903 | O140: ='Input Sheet'!B140 -> 23.7
A141: 27.8 | B141: 27.8 | C141: 0.5349221754 | D141: 37.39106087 | E141: -4.038203795 | F141: 37.39106087 | G141: 9.347765217 | H141: 18.69553043 | I141: 28.04329565 | J141: 27.81372109 | K141: 5.986619768 | L141: 16.43785152 | M141: 22.97233853 | N141: =Psychrometric!T141 -> 15.36125459 | O141: ='Input Sheet'!B141 -> 22.5
A142: 28 | B142: 28 | C142: 0.5346131022 | D142: 37.82976055 | E142: -4.035458951 | F142: 37.82976055 | G142: 9.457440138 | H142: 18.91488028 | I142: 28.37232042 | J142: 28.0137742 | K142: 6.155463433 | L142: 16.62130858 | M142: 23.16524075 | N142: =Psychrometric!T142 -> 15.16448453 | O142: ='Input Sheet'!B142 -> 21.3
A143: 28.2 | B143: 28.2 | C143: 0.5343040291 | D143: 38.27293409 | E143: -4.03271509 | F143: 38.27293409 | G143: 9.568233521 | H143: 19.13646704 | I143: 28.70470056 | J143: 28.21382322 | K143: 6.324283192 | L143: 16.8047503 | M143: 23.35813383 | N143: =Psychrometric!T143 -> 14.90361135 | O143: ='Input Sheet'!B143 -> 20.1
A144: 28.4 | B144: 28.4 | C144: 0.5339949559 | D144: 38.72061962 | E144: -4.02997221 | F144: 38.72061962 | G144: 9.680154906 | H144: 19.36030981 | I144: 29.04046472 | J144: 28.41386808 | K144: 6.493079009 | L144: 16.98817664 | M144: 23.55101774 | N144: =Psychrometric!T144 -> 14.05865453 | O144: ='Input Sheet'!B144 -> 19
A145: 28.6 | B145: 28.6 | C145: 0.5336858828 | D145: 39.17285558 | E145: -4.027230311 | F145: 39.17285558 | G145: 9.793213895 | H145: 19.58642779 | I145: 29.37964168 | J145: 28.61390875 | K145: 6.661850849 | L145: 17.17158756 | M145: 23.74389241 | N145: =Psychrometric!T145 -> 13.31662918 | O145: ='Input Sheet'!B145 -> 17.8
A146: 28.8 | B146: 28.8 | C146: 0.5333768096 | D146: 39.62968062 | E146: -4.024489391 | F146: 39.62968062 | G146: 9.907420155 | H146: 19.81484031 | I146: 29.72226046 | J146: 28.81394517 | K146: 6.830598676 | L146: 17.35498301 | M146: 23.93675781 | N146: =Psychrometric!T146 -> 13.13913425 | O146: ='Input Sheet'!B146 -> 17.2
A147: 29 | B147: 29 | C147: 0.5330677365 | D147: 40.09113366 | E147: -4.021749449 | F147: 40.09113366 | G147: 10.02278342 | H147: 20.04556683 | I147: 30.06835025 | J147: 29.01397729 | K147: 6.999322454 | L147: 17.53836295 | M147: 24.12961388 | N147: =Psychrometric!T147 -> 13.33177311 | O147: ='Input Sheet'!B147 -> 16.6
A148: 29.2 | B148: 29.2 | C148: 0.5327586633 | D148: 40.55725389 | E148: -4.019010485 | F148: 40.55725389 | G148: 10.13931347 | H148: 20.27862695 | I148: 30.41794042 | J148: 29.21400507 | K148: 7.168022149 | L148: 17.72172734 | M148: 24.3224606 | N148: =Psychrometric!T148 -> 13.41289212 | O148: ='Input Sheet'!B148 -> 16.3
A149: 29.4 | B149: 29.4 | C149: 0.5324495902 | D149: 41.02808074 | E149: -4.016272498 | F149: 41.02808074 | G149: 10.25702018 | H149: 20.51404037 | I149: 30.77106055 | J149: 29.41402847 | K149: 7.336697725 | L149: 17.90507614 | M149: 24.5152979 | N149: =Psychrometric!T149 -> 12.74632767 | O149: ='Input Sheet'!B149 -> 16
A150: 29.6 | B150: 29.6 | C150: 0.532140517 | D150: 41.5036539 | E150: -4.013535487 | F150: 41.5036539 | G150: 10.37591348 | H150: 20.75182695 | I150: 31.12774043 | J150: 29.61404743 | K150: 7.505349147 | L150: 18.0884093 | M150: 24.70812575 | N150: =Psychrometric!T150 -> 13.54685524 | O150: ='Input Sheet'!B150 -> 15.7
A151: 29.8 | B151: 29.8 | C151: 0.5318314439 | D151: 41.98401334 | E151: -4.01079945 | F151: 41.98401334 | G151: 10.49600334 | H151: 20.99200667 | I151: 31.48801001 | J151: 29.8140619 | K151: 7.67397638 | L151: 18.27172679 | M151: 24.90094409 | N151: =Psychrometric!T151 -> 13.46763211 | O151: ='Input Sheet'!B151 -> 15.8
A152: 30 | B152: 30 | C152: 0.5315223707 | D152: 42.46919927 | E152: -4.008064388 | F152: 42.46919927 | G152: 10.61729982 | H152: 21.23459964 | I152: 31.85189945 | J152: 30.01407184 | K152: 7.842579389 | L152: 18.45502856 | M152: 25.09375289 | N152: =Psychrometric!T152 -> 14.59492132 | O152: ='Input Sheet'!B152 -> 17.7
A153: 30.2 | B153: 30.2 | C153: 0.5312132976 | D153: 42.95925217 | E153: -4.005330298 | F153: 42.95925217 | G153: 10.73981304 | H153: 21.47962608 | I153: 32.21943913 | J153: 30.2140772 | K153: 8.011158139 | L153: 18.63831457 | M153: 25.2865521 | N153: =Psychrometric!T153 -> 15.15268348 | O153: ='Input Sheet'!B153 -> 19.7
A154: 30.4 | B154: 30.4 | C154: 0.5309042244 | D154: 43.45421278 | E154: -4.002597181 | F154: 43.45421278 | G154: 10.8635532 | H154: 21.72710639 | I154: 32.59065959 | J154: 30.41407793 | K154: 8.179712596 | L154: 18.82158478 | M154: 25.47934167 | N154: =Psychrometric!T154 -> 15.31520647 | O154: ='Input Sheet'!B154 -> 21.7
A155: 30.6 | B155: 30.6 | C155: 0.5305951513 | D155: 43.95412211 | E155: -3.999865035 | F155: 43.95412211 | G155: 10.98853053 | H155: 21.97706106 | I155: 32.96559158 | J155: 30.61407399 | K155: 8.348242724 | L155: 19.00483915 | M155: 25.67212156 | N155: =Psychrometric!T155 -> 15.81071063 | O155: ='Input Sheet'!B155 -> 23.5
A156: 30.8 | B156: 30.8 | C156: 0.5302860781 | D156: 44.45902144 | E156: -3.997133859 | F156: 44.45902144 | G156: 11.11475536 | H156: 22.22951072 | I156: 33.34426608 | J156: 30.81406533 | K156: 8.516748491 | L156: 19.18807764 | M156: 25.86489172 | N156: =Psychrometric!T156 -> 16.80159026 | O156: ='Input Sheet'!B156 -> 25.1
A157: 31 | B157: 31 | C157: 0.529977005 | D157: 44.9689523 | E157: -3.994403653 | F157: 44.9689523 | G157: 11.24223807 | H157: 22.48447615 | I157: 33.72671422 | J157: 31.0140519 | K157: 8.68522986 | L157: 19.3713002 | M157: 26.05765211 | N157: =Psychrometric!T157 -> 17.48368108 | O157: ='Input Sheet'!B157 -> 26.4
A158: 31.2 | B158: 31.2 | C158: 0.5296679318 | D158: 45.4839565 | E158: -3.991674415 | F158: 45.4839565 | G158: 11.37098912 | H158: 22.74197825 | I158: 34.11296737 | J158: 31.21403366 | K158: 8.853686799 | L158: 19.5545068 | M158: 26.25040269 | N158: =Psychrometric!T158 -> 18.32473443 | O158: ='Input Sheet'!B158 -> 27.3
A159: 31.4 | B159: 31.4 | C159: 0.5293588587 | D159: 46.00407612 | E159: -3.988946144 | F159: 46.00407612 | G159: 11.50101903 | H159: 23.00203806 | I159: 34.50305709 | J159: 31.41401056 | K159: 9.022119272 | L159: 19.73769739 | M159: 26.44314341 | N159: =Psychrometric!T159 -> 17.7457386 | O159: ='Input Sheet'!B159 -> 27.9
A160: 31.6 | B160: 31.6 | C160: 0.5290497855 | D160: 46.52935351 | E160: -3.986218841 | F160: 46.52935351 | G160: 11.63233838 | H160: 23.26467676 | I160: 34.89701513 | J160: 31.61398254 | K160: 9.190527247 | L160: 19.92087193 | M160: 26.63587422 | N160: =Psychrometric!T160 -> 18.31580066 | O160: ='Input Sheet'!B160 -> 28.2
A161: 31.8 | B161: 31.8 | C161: 0.5287407124 | D161: 47.05983129 | E161: -3.983492503 | F161: 47.05983129 | G161: 11.76495782 | H161: 23.52991564 | I161: 35.29487347 | J161: 31.81394958 | K161: 9.358910688 | L161: 20.10403039 | M161: 26.82859509 | N161: =Psychrometric!T161 -> 18.13020073 | O161: ='Input Sheet'!B161 -> 28
A162: 32 | B162: 32 | C162: 0.5284316392 | D162: 47.59555234 | E162: -3.980767129 | F162: 47.59555234 | G162: 11.89888809 | H162: 23.79777617 | I162: 35.69666426 | J162: 32.01391161 | K162: 9.527269563 | L162: 20.28717273 | M162: 27.02130596 | N162: =Psychrometric!T162 -> 18.23129702 | O162: ='Input Sheet'!B162 -> 27.2
A163: 32.2 | B163: 32.2 | C163: 0.528122566 | D163: 48.13655984 | E163: -3.97804272 | F163: 48.13655984 | G163: 12.03413996 | H163: 24.06827992 | I163: 36.10241988 | J163: 32.2138686 | K163: 9.695603837 | L163: 20.47029889 | M163: 27.2140068 | N163: =Psychrometric!T163 -> 19.07251524 | O163: ='Input Sheet'!B163 -> 25.9
A164: 32.4 | B164: 32.4 | C164: 0.5278134929 | D164: 48.68289722 | E164: -3.975319274 | F164: 48.68289722 | G164: 12.1707243 | H164: 24.34144861 | I164: 36.51217291 | J164: 32.4138205 | K164: 9.863913477 | L164: 20.65340885 | M164: 27.40669756 | N164: =Psychrometric!T164 -> 19.69164814 | O164: ='Input Sheet'!B164 -> 24.4
A165: 32.6 | B165: 32.6 | C165: 0.5275044197 | D165: 49.23460819 | E165: -3.97259679 | F165: 49.23460819 | G165: 12.30865205 | H165: 24.6173041 | I165: 36.92595615 | J165: 32.61376725 | K165: 10.03219845 | L165: 20.83650256 | M165: 27.59937819 | N165: =Psychrometric!T165 -> 20.45450631 | O165: ='Input Sheet'!B165 -> 23.7
A166: 32.8 | B166: 32.8 | C166: 0.5271953466 | D166: 49.79173676 | E166: -3.969875266 | F166: 49.79173676 | G166: 12.44793419 | H166: 24.89586838 | I166: 37.34380257 | J166: 32.81370882 | K166: 10.20045872 | L166: 21.01957998 | M166: 27.79204866 | N166: =Psychrometric!T166 -> 19.86902034 | O166: ='Input Sheet'!B166 -> 22.9
A167: 33 | B167: 33 | C167: 0.5268862734 | D167: 50.35432718 | E167: -3.967154703 | F167: 50.35432718 | G167: 12.5885818 | H167: 25.17716359 | I167: 37.76574539 | J167: 33.01364517 | K167: 10.36869426 | L167: 21.20264107 | M167: 27.98470892 | N167: =Psychrometric!T167 -> 19.46931798 | O167: ='Input Sheet'!B167 -> 22.1
A168: 33.2 | B168: 33.2 | C168: 0.5265772003 | D168: 50.92242401 | E168: -3.9644351 | F168: 50.92242401 | G168: 12.730606 | H168: 25.46121201 | I168: 38.19181801 | J168: 33.21357623 | K168: 10.53690503 | L168: 21.3856858 | M168: 28.17735892 | N168: =Psychrometric!T168 -> 19.33908482 | O168: ='Input Sheet'!B168 -> 21.4
A169: 33.4 | B169: 33.4 | C169: 0.5262681271 | D169: 51.49607208 | E169: -3.961716454 | F169: 51.49607208 | G169: 12.87401802 | H169: 25.74803604 | I169: 38.62205406 | J169: 33.41350198 | K169: 10.705091 | L169: 21.56871411 | M169: 28.36999863 | N169: =Psychrometric!T169 -> 18.91053536 | O169: ='Input Sheet'!B169 -> 20.6
A170: 33.6 | B170: 33.6 | C170: 0.525959054 | D170: 52.07531649 | E170: -3.958998766 | F170: 52.07531649 | G170: 13.01882912 | H170: 26.03765825 | I170: 39.05648737 | J170: 33.61342236 | K170: 10.87325214 | L170: 21.75172599 | M170: 28.562628 | N170: =Psychrometric!T170 -> 17.79129748 | O170: ='Input Sheet'!B170 -> 20.2
A171: 33.8 | B171: 33.8 | C171: 0.5256499808 | D171: 52.66020265 | E171: -3.956282035 | F171: 52.66020265 | G171: 13.16505066 | H171: 26.33010132 | I171: 39.49515199 | J171: 33.81333732 | K171: 11.04138841 | L171: 21.93472137 | M171: 28.75524698 | N171: =Psychrometric!T171 -> 17.76286315 | O171: ='Input Sheet'!B171 -> 19.8
A172: 34 | B172: 34 | C172: 0.5253409077 | D172: 53.25077622 | E172: -3.953566259 | F172: 53.25077622 | G172: 13.31269405 | H172: 26.62538811 | I172: 39.93808216 | J172: 34.01324683 | K172: 11.20949979 | L172: 22.11770023 | M172: 28.94785554 | N172: =Psychrometric!T172 -> 17.56581522 | O172: ='Input Sheet'!B172 -> 19.6
A173: 34.2 | B173: 34.2 | C173: 0.5250318345 | D173: 53.84708317 | E173: -3.950851438 | F173: 53.84708317 | G173: 13.46177079 | H173: 26.92354159 | I173: 40.38531238 | J173: 34.21315084 | K173: 11.37758623 | L173: 22.30066253 | M173: 29.14045363 | N173: =Psychrometric!T173 -> 17.36876297 | O173: ='Input Sheet'!B173 -> 19.4
A174: 34.4 | B174: 34.4 | C174: 0.5247227614 | D174: 54.44916975 | E174: -3.94813757 | F174: 54.44916975 | G174: 13.61229244 | H174: 27.22458487 | I174: 40.83687731 | J174: 34.4130493 | K174: 11.54564771 | L174: 22.48360822 | M174: 29.3330412 | N174: =Psychrometric!T174 -> 18.14738431 | O174: ='Input Sheet'!B174 -> 19.3
A175: 34.6 | B175: 34.6 | C175: 0.5244136882 | D175: 55.05708248 | E175: -3.945424656 | F175: 55.05708248 | G175: 13.76427062 | H175: 27.52854124 | I175: 41.29281186 | J175: 34.61294217 | K175: 11.71368419 | L175: 22.66653726 | M175: 29.52561823 | N175: =Psychrometric!T175 -> 18.94701353 | O175: ='Input Sheet'!B175 -> 19.1
A176: 34.8 | B176: 34.8 | C176: 0.5241046151 | D176: 55.6708682 | E176: -3.942712693 | F176: 55.6708682 | G176: 13.91771705 | H176: 27.8354341 | I176: 41.75315115 | J176: 34.8128294 | K176: 11.88169565 | L176: 22.84944963 | M176: 29.71818465 | N176: =Psychrometric!T176 -> 19.68298677 | O176: ='Input Sheet'!B176 -> 20
A177: 35 | B177: 35 | C177: 0.5237955419 | D177: 56.29057401 | E177: -3.940001681 | F177: 56.29057401 | G177: 14.0726435 | H177: 28.14528701 | I177: 42.21793051 | J177: 35.01271095 | K177: 12.04968204 | L177: 23.03234528 | M177: 29.91074044 | N177: =Psychrometric!T177 -> 20.18216654 | O177: ='Input Sheet'!B177 -> 20.5
A178: 35.2 | B178: 35.2 | C178: 0.5234864688 | D178: 56.91624732 | E178: -3.937291619 | F178: 56.91624732 | G178: 14.22906183 | H178: 28.45812366 | I178: 42.68718549 | J178: 35.21258677 | K178: 12.21764334 | L178: 23.21522416 | M178: 30.10328555 | N178: =Psychrometric!T178 -> 20.18216654 | O178: ='Input Sheet'!B178 -> 20.5
A179: 35.4 | B179: 35.4 | C179: 0.5231773956 | D179: 57.54793581 | E179: -3.934582506 | F179: 57.54793581 | G179: 14.38698395 | H179: 28.77396791 | I179: 43.16095186 | J179: 35.41245682 | K179: 12.38557952 | L179: 23.39808625 | M179: 30.29581993 | N179: =Psychrometric!T179 -> 19.75839066 | O179: ='Input Sheet'!B179 -> 21.1
A180: 35.6 | B180: 35.6 | C180: 0.5228683225 | D180: 58.18568748 | E180: -3.931874342 | F180: 58.18568748 | G180: 14.54642187 | H180: 29.09284374 | I180: 43.63926561 | J180: 35.61232106 | K180: 12.55349055 | L180: 23.5809315 | M180: 30.48834355 | N180: =Psychrometric!T180 -> 19.73309342 | O180: ='Input Sheet'!B180 -> 21.8
A181: 35.8 | B181: 35.8 | C181: 0.5225592493 | D181: 58.8295506 | E181: -3.929167124 | F181: 58.8295506 | G181: 14.70738765 | H181: 29.4147753 | I181: 44.12216295 | J181: 35.81217944 | K181: 12.72137638 | L181: 23.76375988 | M181: 30.68085636 | N181: =Psychrometric!T181 -> 19.56739125 | O181: ='Input Sheet'!B181 -> 22.2
A182: 36 | B182: 36 | C182: 0.5222501762 | D182: 59.47957375 | E182: -3.926460853 | F182: 59.47957375 | G182: 14.86989344 | H182: 29.73978688 | I182: 44.60968031 | J182: 36.01203192 | K182: 12.889237 | L182: 23.94657134 | M182: 30.87335832 | N182: =Psychrometric!T182 -> 19.95967029 | O182: ='Input Sheet'!B182 -> 22.6
A183: 36.2 | B183: 36.2 | C183: 0.521941103 | D183: 60.1358058 | E183: -3.923755527 | F183: 60.1358058 | G183: 15.03395145 | H183: 30.0679029 | I183: 45.10185435 | J183: 36.21187844 | K183: 13.05707237 | L183: 24.12936586 | M183: 31.06584939 | N183: =Psychrometric!T183 -> 20.98482898 | O183: ='Input Sheet'!B183 -> 22.7
A184: 36.4 | B184: 36.4 | C184: 0.5216320299 | D184: 60.79829591 | E184: -3.921051146 | F184: 60.79829591 | G184: 15.19957398 | H184: 30.39914795 | I184: 45.59872193 | J184: 36.41171898 | K184: 13.22488245 | L184: 24.31214338 | M184: 31.25832953 | N184: =Psychrometric!T184 -> 20.53251032 | O184: ='Input Sheet'!B184 -> 22.8
A185: 36.6 | B185: 36.6 | C185: 0.5213229567 | D185: 61.46709354 | E185: -3.918347708 | F185: 61.46709354 | G185: 15.36677339 | H185: 30.73354677 | I185: 46.10032016 | J185: 36.61155349 | K185: 13.39266722 | L185: 24.49490388 | M185: 31.45079869 | N185: =Psychrometric!T185 -> 20.33581272 | O185: ='Input Sheet'!B185 -> 22.6
A186: 36.8 | B186: 36.8 | C186: 0.5210138836 | D186: 62.14224848 | E186: -3.915645213 | F186: 62.14224848 | G186: 15.53556212 | H186: 31.07112424 | I186: 46.60668636 | J186: 36.81138191 | K186: 13.56042665 | L186: 24.67764731 | M186: 31.64325684 | N186: =Psychrometric!T186 -> 20.22557664 | O186: ='Input Sheet'!B186 -> 22.3
A187: 37 | B187: 37 | C187: 0.5207048104 | D187: 62.82381077 | E187: -3.912943659 | F187: 62.82381077 | G187: 15.70595269 | H187: 31.41190538 | I187: 47.11785808 | J187: 37.01120422 | K187: 13.7281607 | L187: 24.86037365 | M187: 31.83570393 | N187: =Psychrometric!T187 -> 20.32956257 | O187: ='Input Sheet'!B187 -> 21.5
A188: 37.2 | B188: 37.2 | C188: 0.5203957373 | D188: 63.51183079 | E188: -3.910243046 | F188: 63.51183079 | G188: 15.8779577 | H188: 31.75591539 | I188: 47.63387309 | J188: 37.21102036 | K188: 13.89586934 | L188: 25.04308284 | M188: 32.02813993 | N188: =Psychrometric!T188 -> 19.53609154 | O188: ='Input Sheet'!B188 -> 21.6
A189: 37.4 | B189: 37.4 | C189: 0.5200866641 | D189: 64.2063592 | E189: -3.907543373 | F189: 64.2063592 | G189: 16.0515898 | H189: 32.1031796 | I189: 48.1547694 | J189: 37.41083029 | K189: 14.06355255 | L189: 25.22577485 | M189: 32.22056479 | N189: =Psychrometric!T189 -> 19.40445877 | O189: ='Input Sheet'!B189 -> 21.1
A190: 37.6 | B190: 37.6 | C190: 0.519777591 | D190: 64.90744698 | E190: -3.904844639 | F190: 64.90744698 | G190: 16.22686174 | H190: 32.45372349 | I190: 48.68058523 | J190: 37.61063397 | K190: 14.23121029 | L190: 25.40844965 | M190: 32.41297846 | N190: =Psychrometric!T190 -> 19.77961112 | O190: ='Input Sheet'!B190 -> 20.6
A191: 37.8 | B191: 37.8 | C191: 0.5194685178 | D191: 65.6151454 | E191: -3.902146842 | F191: 65.6151454 | G191: 16.40378635 | H191: 32.8075727 | I191: 49.21135905 | J191: 37.81043135 | K191: 14.39884254 | L191: 25.5911072 | M191: 32.60538092 | N191: =Psychrometric!T191 -> 19.54681171 | O191: ='Input Sheet'!B191 -> 19.7
A192: 38 | B192: 38 | C192: 0.5191594447 | D192: 66.32950605 | E192: -3.899449983 | F192: 66.32950605 | G192: 16.58237651 | H192: 33.16475303 | I192: 49.74712954 | J192: 38.0102224 | K192: 14.56644925 | L192: 25.77374746 | M192: 32.79777212 | N192: =Psychrometric!T192 -> 17.44744131 | O192: ='Input Sheet'!B192 -> 17.6
A193: 38.2 | B193: 38.2 | C193: 0.5188503715 | D193: 67.05058083 | E193: -3.89675406 | F193: 67.05058083 | G193: 16.76264521 | H193: 33.52529041 | I193: 50.28793562 | J193: 38.21000707 | K193: 14.73403041 | L193: 25.95637039 | M193: 32.99015201 | N193: =Psychrometric!T193 -> 18.04728246 | O193: ='Input Sheet'!B193 -> 18.2
A194: 38.4 | B194: 38.4 | C194: 0.5185412984 | D194: 67.77842192 | E194: -3.894059071 | F194: 67.77842192 | G194: 16.94460548 | H194: 33.88921096 | I194: 50.83381644 | J194: 38.40978531 | K194: 14.90158597 | L194: 26.13897596 | M194: =240.7263/((7.591386/LOG10(I194/6.116441))-1) -> 33.18252057 | N194: =Psychrometric!T194 -> 17.34746632 | O194: ='Input Sheet'!B194 -> 17.5
A195: 38.6 | B195: 38.6 | C195: =1-(273.15+A195)/647.096 -> 0.5182322252 | D195: =220640*EXP((647.096/(A195+273.15))*E195) -> 68.51308185 | E195: =(-7.85951783*C195)+(1.84408259*C195^1.5)-(11.7866497*C195^3)+(22.6807411*C195^3.5)-(15.9618719*C195^4)+(1.80122502*C195^7.5) -> -3.891365017 | F195: =D195 -> 68.51308185 | G195: =F195/4 -> 17.12827046 | H195: =D195/2 -> 34.25654092 | I195: =D195*3/4 -> 51.38481138 | J195: =240.7263/((7.591386/LOG10(F195/6.116441))-1) -> 38.60955709 | K195: 15.06911592 | L195: 26.32156414 | M195: 33.37487774 | N195: =Psychrometric!T195 -> 17.68612236 | O195: ='Input Sheet'!B195 -> 18
A196: 38.8 | B196: 38.8 | C196: 0.5179231521 | D196: 69.25461342 | E196: -3.888671896 | F196: 69.25461342 | G196: 17.31365335 | H196: 34.62730671 | I196: 51.94096006 | J196: 38.80932236 | K196: 15.23662021 | L196: 26.50413487 | M196: 33.56722349 | N196: =Psychrometric!T196 -> 17.58627364 | O196: ='Input Sheet'!B196 -> 17.9
A197: 39 | B197: 39 | C197: 0.5176140789 | D197: 70.00306977 | E197: -3.885979708 | F197: 70.00306977 | G197: 17.50076744 | H197: 35.00153488 | I197: 52.50230233 | J197: 39.00908108 | K197: 15.40409883 | L197: 26.68668814 | M197: 33.75955778 | N197: =Psychrometric!T197 -> 17.24749093 | O197: ='Input Sheet'!B197 -> 17.4
A198: 39.2 | B198: 39.2 | C198: 0.5173050057 | D198: 70.75850434 | E198: -3.88328845 | F198: 70.75850434 | G198: 17.68962609 | H198: 35.37925217 | I198: 53.06887826 | J198: 39.2088332 | K198: 15.57155174 | L198: 26.86922389 | M198: 33.95188056 | N198: =Psychrometric!T198 -> 16.84758551 | O198: ='Input Sheet'!B198 -> 17
A199: 39.4 | B199: 39.4 | C199: 0.5169959326 | D199: 71.52097089 | E199: -3.880598123 | F199: 71.52097089 | G199: 17.88024272 | H199: 35.76048545 | I199: 53.64072817 | J199: 39.40857869 | K199: 15.73897891 | L199: 27.0517421 | M199: 34.1441918 | N199: =Psychrometric!T199 -> 17.44744131 | O199: ='Input Sheet'!B199 -> 17.6
A200: 39.6 | B200: 39.6 | C200: 0.5166868594 | D200: 72.2905235 | E200: -3.877908726 | F200: 72.2905235 | G200: 18.07263088 | H200: 36.14526175 | I200: 54.21789263 | J200: 39.60831751 | K200: 15.90638031 | L200: 27.23424273 | M200: 34.33649146 | N200: =Psychrometric!T200 -> 18.247226 | O200: ='Input Sheet'!B200 -> 18.4
... 4300 more rows

Sheet tclcalcul
A2: 2 | B2: 29.07377857
B3: 29.39277128
B4: 29.31292948
B5: 29.27303183
B6: 29.23315015
B7: 29.27303183
B8: 29.63267171
B9: 30.1141685
B10: 30.5979374
B11: 31.04340015
B12: 31.36858603
B13: 31.65396505
B14: 31.81739265
B15: 31.94013244
B16: 31.9810782
B17: 31.89920315
B18: 31.69479797
B19: 31.36858603
B20: 30.96226351
B21: 30.84067799
B22: 30.51715087
B23: 30.31546177
B24: 30.1141685
B25: 29.87313698
B26: 29.63267171
B27: 29.1534332
B28: 29.27303183
B29: 29.23315015
B30: 29.11359828
B31: 29.1534332
B32: 29.5526425
B33: 30.03376163
B34: 30.47678122
B35: 30.80018157
B36: 31.08399225
B37: 31.3278816
B38: 31.57234782
B39: 31.69479797
B40: 31.69479797
B41: 31.61314856
B42: 31.40930616
B43: 31.16522471
B44: 30.84067799
B45: 30.51715087
B46: 30.31546177
B47: 30.03376163
B48: 29.63267171
B49: 29.4726756
B50: 29.31292948
B51: 29.11359828
B52: 29.03397479
B53: 28.91465604
B54: 28.83518799
B55: 28.87491443
B56: 29.39277128
B57: 29.95341781
B58: 30.5979374
B59: 31.08399225
B60: 31.53156348
B61: 31.89920315
B62: 32.1450222
B63: 32.26814997
B64: 32.30922519
B65: 32.18604849
B66: 31.94013244
B67: 31.61314856
B68: 31.2058651
B69: 30.80018157
B70: 30.35576805
B71: 29.9132697
B72: 29.4726756
B73: 29.03397479
B74: 28.63678943
B75: 28.24115181
B76: 28.00450831
B77: 27.7684171
B78: 27.61132927
B79: 27.68984282
B80: 28.51793612
B81: 29.39277128
B82: 30.27517164
B83: 31.08399225
B84: 31.77651176
B85: 32.3503163
B86: 32.76212284
B87: 33.00998901
B88: 33.09274183
B89: 32.9686373
B90: 32.59720499
B91: 32.02203978
B92: 31.3278816
B93: 30.80018157
B94: 30.31546177
B95: 29.79291906
B96: 29.27303183
B97: 28.755782
B98: 28.43877771
B99: 28.04391031
B100: 27.84705291
B101: 27.65057823
B102: 27.53287675
B103: 27.5720952
B104: 28.39922148
B105: 29.27303183
B106: 30.19463848
B107: 31.00282368
B108: 31.73564664
B109: 32.30922519
B110: 32.7208691
B111: 32.9686373
B112: 33.0513574
B113: 32.92730162
B114: 32.55601639
B115: 31.94013244
B116: 31.28719353
B117: 30.75970107
B118: 30.23489699
B119: 29.71276399
B120: 29.1932837
B121: 28.71610245
B122: 28.39922148
B123: 28.00450831
B124: 27.80772754
B125: 27.61132927
B126: 27.4544852
B127: 27.49367317
B128: 28.20167261
B129: 28.99418621
B130: 29.79291906
B131: 30.51715087
B132: 31.16522471
B133: 31.65396505
B134: 32.02203978
B135: 32.22709129
B136: 32.26814997
B137: 32.1450222
B138: 31.81739265
B139: 31.24652114
B140: 30.63835431
B141: 30.15439542
B142: 29.67271018
B143: 29.1932837
B144: 28.755782
B145: 28.28064602
B146: 28.04391031
B147: 27.80772754
B148: 27.68984282
B149: 27.5720952
B150: 27.4544852
B151: 27.49367317
B152: 28.24115181
B153: 29.03397479
B154: 29.83302033
B155: 30.55753603
B156: 31.2058651
B157: 31.73564664
B158: 32.10401178
B159: 32.3503163
B160: 32.47368767
B161: 32.39142396
B162: 32.06301786
B163: 31.53156348
B164: 30.92171895
B165: 30.63835431
B166: 30.31546177
B167: 29.99358202
B168: 29.71276399
B169: 29.39277128
B170: 29.23315015
B171: 29.07377857
B172: 28.99418621
B173: 28.91465604
B174: 28.87491443
B175: 28.79547743
B176: 29.1534332
B177: 29.35284239
B178: 29.35284239
B179: 29.59264927
B180: 29.87313698
B181: 30.03376163
B182: 30.19463848
B183: 30.23489699
B184: 30.27517164
B185: 30.19463848
B186: 30.07395735
B187: 29.75283385
B188: 29.79291906
B189: 29.59264927
B190: 29.39277128
B191: 29.03397479
B192: 28.20167261
B193: 28.43877771
B194: 28.16220917
B195: 28.35968104
B196: 28.32015601
B197: 28.12276073
B198: 27.96512166
B199: 28.20167261
B200: 28.51793612
B201: 28.95441353
... 8560 more rows
